Body Name,Vendor Number,Vendor Name,Cost Centre,Service Label,BV Code,Amount,Period
Slough Borough Council,804709,247 Careservices Ltd,M44D,Adult Social Care Operations,Supplies and Services,"10,800.00",Mar-22
Slough Borough Council,804709,247 Careservices Ltd,M44D,Adult Social Care Operations,Supplies and Services,"11,880.00",Mar-22
Slough Borough Council,804709,247 Careservices Ltd,M44D,Adult Social Care Operations,Supplies and Services,"11,160.00",Mar-22
Slough Borough Council,804709,247 Careservices Ltd,M44D,Adult Social Care Operations,Supplies and Services,"12,600.00",Mar-22
Slough Borough Council,804709,247 Careservices Ltd,M44D,Adult Social Care Operations,Supplies and Services,"10,080.00",Mar-22
Slough Borough Council,3963,50:50 Sync Cic,F449,DSG - High Needs Block,Supplies and Services,"3,630.00",Mar-22
Slough Borough Council,1055,A J Chapman,F123,Schools,Supplies and Services,"48,809.13",Mar-22
Slough Borough Council,1055,A J Chapman,F123,Schools,Supplies and Services,544.50,Mar-22
Slough Borough Council,1055,A J Chapman,F123,Schools,Supplies and Services,"3,190.00",Mar-22
Slough Borough Council,536,Ability Housing Association,M42E,Adult Social Care Operations,Supplies and Services,"2,201.29",Mar-22
Slough Borough Council,536,Ability Housing Association,M42E,Adult Social Care Operations,Supplies and Services,"2,491.53",Mar-22
Slough Borough Council,536,Ability Housing Association,M42E,Adult Social Care Operations,Supplies and Services,"2,273.85",Mar-22
Slough Borough Council,536,Ability Housing Association,M42E,Adult Social Care Operations,Supplies and Services,"1,149.17",Mar-22
Slough Borough Council,536,Ability Housing Association,M42E,Adult Social Care Operations,Supplies and Services,"2,745.49",Mar-22
Slough Borough Council,536,Ability Housing Association,M42E,Adult Social Care Operations,Supplies and Services,"2,437.11",Mar-22
Slough Borough Council,536,Ability Housing Association,M42E,Adult Social Care Operations,Supplies and Services,"2,416.25",Mar-22
Slough Borough Council,536,Ability Housing Association,M42E,Adult Social Care Operations,Supplies and Services,"1,676.14",Mar-22
Slough Borough Council,536,Ability Housing Association,M42E,Adult Social Care Operations,Supplies and Services,"2,779.05",Mar-22
Slough Borough Council,536,Ability Housing Association,M42E,Adult Social Care Operations,Supplies and Services,"1,291.57",Mar-22
Slough Borough Council,536,Ability Housing Association,M42E,Adult Social Care Operations,Supplies and Services,"2,575.88",Mar-22
Slough Borough Council,536,Ability Housing Association,M42E,Adult Social Care Operations,Supplies and Services,"3,152.73",Mar-22
Slough Borough Council,536,Ability Housing Association,M42E,Adult Social Care Operations,Supplies and Services,"2,376.34",Mar-22
Slough Borough Council,536,Ability Housing Association,M42E,Adult Social Care Operations,Supplies and Services,"2,467.04",Mar-22
Slough Borough Council,536,Ability Housing Association,M42E,Adult Social Care Operations,Supplies and Services,"2,430.76",Mar-22
Slough Borough Council,536,Ability Housing Association,M42E,Adult Social Care Operations,Supplies and Services,"2,285.64",Mar-22
Slough Borough Council,536,Ability Housing Association,M42E,Adult Social Care Operations,Supplies and Services,"1,306.08",Mar-22
Slough Borough Council,536,Ability Housing Association,M42E,Adult Social Care Operations,Supplies and Services,"1,711.51",Mar-22
Slough Borough Council,536,Ability Housing Association,M44E,Adult Social Care Operations,Supplies and Services,"1,639.86",Mar-22
Slough Borough Council,536,Ability Housing Association,M44E,Adult Social Care Operations,Supplies and Services,"1,701.54",Mar-22
Slough Borough Council,536,Ability Housing Association,M44E,Adult Social Care Operations,Supplies and Services,"2,006.29",Mar-22
Slough Borough Council,536,Ability Housing Association,M44E,Adult Social Care Operations,Supplies and Services,"2,078.85",Mar-22
Slough Borough Council,807554,Acorn Care & Education Ltd,F558,DSG - High Needs Block,Supplies and Services,"4,028.00",Mar-22
Slough Borough Council,807554,Acorn Care & Education Ltd,F462,DSG - High Needs Block,Supplies and Services,"14,235.80",Mar-22
Slough Borough Council,1506,Acorns Project Limited,P157,Capital,Capital Charges,"1,000.00",Mar-22
Slough Borough Council,1506,Acorns Project Limited,P235,Capital,Capital Charges,800.00,Mar-22
Slough Borough Council,1506,Acorns Project Limited,P579,Capital,Capital Charges,"1,000.00",Mar-22
Slough Borough Council,2185,Activate Learning,F558,DSG - High Needs Block,Supplies and Services,"28,614.00",Mar-22
Slough Borough Council,805001,Active Movement Ltd,D509,Major Infrastructure Projects,Supplies and Services,"3,314.00",Mar-22
Slough Borough Council,2855,Advance Housing & Support Ltd,M42F,Adult Social Care Operations,Supplies and Services,"1,170.56",Mar-22
Slough Borough Council,2855,Advance Housing & Support Ltd,M42F,Adult Social Care Operations,Supplies and Services,731.60,Mar-22
Slough Borough Council,2855,Advance Housing & Support Ltd,M42F,Adult Social Care Operations,Supplies and Services,"1,609.52",Mar-22
Slough Borough Council,2855,Advance Housing & Support Ltd,M42F,Adult Social Care Operations,Supplies and Services,"1,097.40",Mar-22
Slough Borough Council,2855,Advance Housing & Support Ltd,M42F,Adult Social Care Operations,Supplies and Services,"1,609.52",Mar-22
Slough Borough Council,2855,Advance Housing & Support Ltd,M42F,Adult Social Care Operations,Supplies and Services,"1,170.56",Mar-22
Slough Borough Council,2855,Advance Housing & Support Ltd,M42F,Adult Social Care Operations,Supplies and Services,"1,097.40",Mar-22
Slough Borough Council,2855,Advance Housing & Support Ltd,M42F,Adult Social Care Operations,Supplies and Services,731.60,Mar-22
Slough Borough Council,2855,Advance Housing & Support Ltd,M42F,Adult Social Care Operations,Supplies and Services,"1,170.56",Mar-22
Slough Borough Council,2855,Advance Housing & Support Ltd,M42F,Adult Social Care Operations,Supplies and Services,"1,609.52",Mar-22
Slough Borough Council,2855,Advance Housing & Support Ltd,M42F,Adult Social Care Operations,Supplies and Services,"1,170.56",Mar-22
Slough Borough Council,2855,Advance Housing & Support Ltd,M42F,Adult Social Care Operations,Supplies and Services,"1,609.52",Mar-22
Slough Borough Council,2855,Advance Housing & Support Ltd,M42F,Adult Social Care Operations,Supplies and Services,"1,097.40",Mar-22
Slough Borough Council,2855,Advance Housing & Support Ltd,M42F,Adult Social Care Operations,Supplies and Services,731.60,Mar-22
Slough Borough Council,805178,AFM Transport Limited,D880,Direct Service Organisation (DSO),Supplies and Services,565.00,Mar-22
Slough Borough Council,805178,AFM Transport Limited,D880,Direct Service Organisation (DSO),Supplies and Services,"11,754.92",Mar-22
Slough Borough Council,805178,AFM Transport Limited,D880,Direct Service Organisation (DSO),Supplies and Services,"3,762.24",Mar-22
Slough Borough Council,805178,AFM Transport Limited,D880,Direct Service Organisation (DSO),Supplies and Services,"10,731.24",Mar-22
Slough Borough Council,805178,AFM Transport Limited,D880,Direct Service Organisation (DSO),Supplies and Services,"9,490.24",Mar-22
Slough Borough Council,805178,AFM Transport Limited,D880,Direct Service Organisation (DSO),Supplies and Services,848.00,Mar-22
Slough Borough Council,808292,Alison Lowton,B096,Governance,Indirect Employee Expenses,"7,800.00",Mar-22
Slough Borough Council,808191,Ambrose Adrian Healthcare Ltd,M44E,Adult Social Care Operations,Supplies and Services,"3,800.00",Mar-22
Slough Borough Council,805264,Ameresco Limited,P239,Capital,Supplies and Services,"90,602.72",Mar-22
Slough Borough Council,805264,Ameresco Limited,P239,Capital,Supplies and Services,"362,845.04",Mar-22
Slough Borough Council,3137,Applegarth Care Home Ltd,B298,Finance,Supplies and Services,"1,704.41",Mar-22
Slough Borough Council,3137,Applegarth Care Home Ltd,M25C,Adult Social Care Operations,Supplies and Services,"3,200.00",Mar-22
Slough Borough Council,3137,Applegarth Care Home Ltd,M25C,Adult Social Care Operations,Supplies and Services,"3,400.00",Mar-22
Slough Borough Council,3137,Applegarth Care Home Ltd,M27C,Adult Social Care Operations,Supplies and Services,"3,500.00",Mar-22
Slough Borough Council,808206,Applenet Care & Support,M81D,Adult Social Care Operations,Supplies and Services,"9,222.00",Mar-22
Slough Borough Council,808206,Applenet Care & Support,M81D,Adult Social Care Operations,Supplies and Services,"7,632.00",Mar-22
Slough Borough Council,808206,Applenet Care & Support,M81D,Adult Social Care Operations,Supplies and Services,"8,904.00",Mar-22
Slough Borough Council,808206,Applenet Care & Support,M81D,Adult Social Care Operations,Supplies and Services,"8,904.00",Mar-22
Slough Borough Council,808206,Applenet Care & Support,M81D,Adult Social Care Operations,Supplies and Services,"9,858.00",Mar-22
Slough Borough Council,3350,Arbour Vale School,E509,DSG - High Needs Block,Supplies and Services,"877,469.04",Mar-22
Slough Borough Council,806299,ARC Group London Limited,P577,Capital,Capital Charges,"33,520.25",Mar-22
Slough Borough Council,831,Argos Business Solutions Ltd,H055,Finance & Commercial,Supplies and Services,"6,926.80",Mar-22
Slough Borough Council,831,Argos Business Solutions Ltd,H055,Finance & Commercial,Supplies and Services,"4,903.50",Mar-22
Slough Borough Council,831,Argos Business Solutions Ltd,H055,Finance & Commercial,Supplies and Services,"9,293.85",Mar-22
Slough Borough Council,831,Argos Business Solutions Ltd,H055,Finance & Commercial,Supplies and Services,"1,577.75",Mar-22
Slough Borough Council,831,Argos Business Solutions Ltd,H055,Finance & Commercial,Supplies and Services,"6,823.10",Mar-22
Slough Borough Council,831,Argos Business Solutions Ltd,H055,Finance & Commercial,Supplies and Services,"1,964.25",Mar-22
Slough Borough Council,831,Argos Business Solutions Ltd,H055,Finance & Commercial,Supplies and Services,"10,126.20",Mar-22
Slough Borough Council,1985,Ascentis,F210,Communities and Leisure,Supplies and Services,660.00,Mar-22
Slough Borough Council,1985,Ascentis,F210,Communities and Leisure,Supplies and Services,855.00,Mar-22
Slough Borough Council,1985,Ascentis,F210,Communities and Leisure,Supplies and Services,574.00,Mar-22
Slough Borough Council,3666,Assisted Living South West,M26E,Adult Social Care Operations,Supplies and Services,"4,816.04",Mar-22
Slough Borough Council,804324,Astoria Healthcare,M27F,Adult Social Care Operations,Supplies and Services,"4,207.14",Mar-22
Slough Borough Council,806232,Astral PS LTD (Trading as Foundations),A06C,Adult Social Care Commissioning,Agency Staff,540.00,Mar-22
Slough Borough Council,3414,Barrett & Thomson Solicitors,H207,Housing (People) Services,#N/A,"6,614.04",Mar-22
Slough Borough Council,3370,Baylis Court School,E709,DSG - Schools,Supplies and Services,"9,166.68",Mar-22
Slough Borough Council,1681,Bcq,B240,Governance,Supplies and Services,"28,768.00",Mar-22
Slough Borough Council,805539,Beech Haven Ltd,M27C,Adult Social Care Operations,Supplies and Services,"3,277.14",Mar-22
Slough Borough Council,609,Beechwood Secondary School,E519,DSG - Schools,Supplies and Services,"17,166.67",Mar-22
Slough Borough Council,804588,BEN Motor & Allied Trades Bev.Fnd,M15D,Adult Social Care Operations,Supplies and Services,"5,714.29",Mar-22
Slough Borough Council,612,Berkshire Healthcare Nhs Foundation Trust,A01D,Adult Social Care Operations,Agency Staff,"2,604.08",Mar-22
Slough Borough Council,612,Berkshire Healthcare Nhs Foundation Trust,A07M,Mental Health Services,Agency Staff,"4,303.33",Mar-22
Slough Borough Council,612,Berkshire Healthcare Nhs Foundation Trust,A07M,Mental Health Services,Agency Staff,"5,379.25",Mar-22
Slough Borough Council,612,Berkshire Healthcare Nhs Foundation Trust,A07M,Mental Health Services,Agency Staff,"3,894.50",Mar-22
Slough Borough Council,612,Berkshire Healthcare Nhs Foundation Trust,F520,Inclusion,Supplies and Services,"4,750.00",Mar-22
Slough Borough Council,612,Berkshire Healthcare Nhs Foundation Trust,F520,Inclusion,Supplies and Services,"21,000.00",Mar-22
Slough Borough Council,612,Berkshire Healthcare Nhs Foundation Trust,F417,DSG - High Needs Block,Supplies and Services,"4,116.67",Mar-22
Slough Borough Council,612,Berkshire Healthcare Nhs Foundation Trust,A01P,Public Health,#N/A,"4,224.00",Mar-22
Slough Borough Council,612,Berkshire Healthcare Nhs Foundation Trust,A01P,Public Health,#N/A,"14,344.00",Mar-22
Slough Borough Council,612,Berkshire Healthcare Nhs Foundation Trust,A01P,Public Health,#N/A,"3,960.00",Mar-22
Slough Borough Council,612,Berkshire Healthcare Nhs Foundation Trust,A01P,Public Health,#N/A,"3,256.00",Mar-22
Slough Borough Council,612,Berkshire Healthcare Nhs Foundation Trust,A01P,Public Health,#N/A,"4,400.00",Mar-22
Slough Borough Council,612,Berkshire Healthcare Nhs Foundation Trust,A01P,Public Health,#N/A,"3,696.00",Mar-22
Slough Borough Council,808148,BEST CHOICE CARE LTD,A07R,Adult Social Care Operations,Supplies and Services,"1,102.64",Mar-22
Slough Borough Council,1736,Bevan Brittan Llp,B086,Place Strategy & Infrastructure,Capital Charges,819.00,Mar-22
Slough Borough Council,806917,Boulters Lock,M27F,Adult Social Care Operations,Supplies and Services,"4,400.00",Mar-22
Slough Borough Council,806917,Boulters Lock,M27F,Adult Social Care Operations,Supplies and Services,"4,871.43",Mar-22
Slough Borough Council,806917,Boulters Lock,M27F,Adult Social Care Operations,Supplies and Services,"4,871.43",Mar-22
Slough Borough Council,805160,Bouygues E&S FM UK Limited,B060,Business Services,Premises,-630.25,Mar-22
Slough Borough Council,805160,Bouygues E&S FM UK Limited,K521,Building Management,Premises,"17,145.36",Mar-22
Slough Borough Council,805160,Bouygues E&S FM UK Limited,K521,Building Management,Premises,"46,789.45",Mar-22
Slough Borough Council,805160,Bouygues E&S FM UK Limited,K521,Building Management,Premises,"12,513.64",Mar-22
Slough Borough Council,805060,BPS Dorking Ltd t/a BPS Chartered Surveyors,D224,Planning and Transport,Supplies and Services,"1,920.00",Mar-22
Slough Borough Council,2856,Brain Injury Rehabilitation Trust,M26E,Adult Social Care Operations,Supplies and Services,"5,593.60",Mar-22
Slough Borough Council,2856,Brain Injury Rehabilitation Trust,M26E,Adult Social Care Operations,Supplies and Services,"5,593.60",Mar-22
Slough Borough Council,2856,Brain Injury Rehabilitation Trust,M26E,Adult Social Care Operations,Supplies and Services,"5,593.60",Mar-22
Slough Borough Council,2856,Brain Injury Rehabilitation Trust,M27C,Adult Social Care Operations,Supplies and Services,"7,481.67",Mar-22
Slough Borough Council,2856,Brain Injury Rehabilitation Trust,M27C,Adult Social Care Operations,Supplies and Services,"7,481.67",Mar-22
Slough Borough Council,2856,Brain Injury Rehabilitation Trust,M27C,Adult Social Care Operations,Supplies and Services,"7,481.67",Mar-22
Slough Borough Council,1745,Bre Global,D224,Planning and Transport,Supplies and Services,"1,880.00",Mar-22
Slough Borough Council,617,British Telecommunications,K089,Place Regulation,#N/A,"1,998.50",Mar-22
Slough Borough Council,803553,BUPA CARE HOME (CFH CARE),M25D,Adult Social Care Operations,Supplies and Services,"3,172.00",Mar-22
Slough Borough Council,804448,Bupa Care Homes (ANS) Ltd,M15D,Adult Social Care Operations,Supplies and Services,"5,257.84",Mar-22
Slough Borough Council,629,C.H.O.I.C.E Limited,M26E,Adult Social Care Operations,Supplies and Services,"8,738.50",Mar-22
Slough Borough Council,629,C.H.O.I.C.E Limited,M26E,Adult Social Care Operations,Supplies and Services,"10,756.82",Mar-22
Slough Borough Council,629,C.H.O.I.C.E Limited,M26E,Adult Social Care Operations,Supplies and Services,"10,997.65",Mar-22
Slough Borough Council,629,C.H.O.I.C.E Limited,M26E,Adult Social Care Operations,Supplies and Services,"9,383.56",Mar-22
Slough Borough Council,629,C.H.O.I.C.E Limited,M26E,Adult Social Care Operations,Supplies and Services,"6,421.47",Mar-22
Slough Borough Council,629,C.H.O.I.C.E Limited,M26E,Adult Social Care Operations,Supplies and Services,"10,427.25",Mar-22
Slough Borough Council,629,C.H.O.I.C.E Limited,M26E,Adult Social Care Operations,Supplies and Services,"10,756.82",Mar-22
Slough Borough Council,629,C.H.O.I.C.E Limited,M26E,Adult Social Care Operations,Supplies and Services,"11,453.17",Mar-22
Slough Borough Council,629,C.H.O.I.C.E Limited,M42E,Adult Social Care Operations,Supplies and Services,"5,631.64",Mar-22
Slough Borough Council,629,C.H.O.I.C.E Limited,M42E,Adult Social Care Operations,Supplies and Services,"5,127.64",Mar-22
Slough Borough Council,629,C.H.O.I.C.E Limited,M42E,Adult Social Care Operations,Supplies and Services,"5,517.64",Mar-22
Slough Borough Council,629,C.H.O.I.C.E Limited,M42E,Adult Social Care Operations,Supplies and Services,"5,550.64",Mar-22
Slough Borough Council,629,C.H.O.I.C.E Limited,M44D,Adult Social Care Operations,Supplies and Services,"4,002.64",Mar-22
Slough Borough Council,629,C.H.O.I.C.E Limited,M44F,Adult Social Care Operations,Supplies and Services,"2,332.04",Mar-22
Slough Borough Council,629,C.H.O.I.C.E Limited,M44F,Adult Social Care Operations,Supplies and Services,"2,355.68",Mar-22
Slough Borough Council,737,Capita Business Services Ltd,B282,Digital and Strategic IT,Supplies and Services,"21,495.00",Mar-22
Slough Borough Council,737,Capita Business Services Ltd,B409,People,#N/A,"1,830.00",Mar-22
Slough Borough Council,804861,Care Management Group Ltd,M26E,Adult Social Care Operations,Supplies and Services,"13,317.16",Mar-22
Slough Borough Council,804861,Care Management Group Ltd,M26E,Adult Social Care Operations,Supplies and Services,"12,725.12",Mar-22
Slough Borough Council,804861,Care Management Group Ltd,M42F,Adult Social Care Operations,Supplies and Services,"1,740.28",Mar-22
Slough Borough Council,805621,Care Staff Services,B298,Finance,Supplies and Services,"5,970.44",Mar-22
Slough Borough Council,805621,Care Staff Services,A07R,Adult Social Care Operations,Supplies and Services,577.50,Mar-22
Slough Borough Council,805621,Care Staff Services,A07R,Adult Social Care Operations,Supplies and Services,"1,165.50",Mar-22
Slough Borough Council,805621,Care Staff Services,A07R,Adult Social Care Operations,Supplies and Services,735.00,Mar-22
Slough Borough Council,805621,Care Staff Services,A07R,Adult Social Care Operations,Supplies and Services,910.00,Mar-22
Slough Borough Council,805621,Care Staff Services,A07R,Adult Social Care Operations,Supplies and Services,"1,715.00",Mar-22
Slough Borough Council,805621,Care Staff Services,M44C,Adult Social Care Operations,Supplies and Services,777.00,Mar-22
Slough Borough Council,805621,Care Staff Services,M44C,Adult Social Care Operations,Supplies and Services,"1,102.50",Mar-22
Slough Borough Council,805621,Care Staff Services,M44C,Adult Social Care Operations,Supplies and Services,857.50,Mar-22
Slough Borough Council,805621,Care Staff Services,M44C,Adult Social Care Operations,Supplies and Services,"2,072.00",Mar-22
Slough Borough Council,805621,Care Staff Services,M44C,Adult Social Care Operations,Supplies and Services,682.50,Mar-22
Slough Borough Council,805621,Care Staff Services,M44C,Adult Social Care Operations,Supplies and Services,805.00,Mar-22
Slough Borough Council,805621,Care Staff Services,M44C,Adult Social Care Operations,Supplies and Services,"2,331.00",Mar-22
Slough Borough Council,805621,Care Staff Services,M44C,Adult Social Care Operations,Supplies and Services,735.00,Mar-22
Slough Borough Council,805621,Care Staff Services,M44C,Adult Social Care Operations,Supplies and Services,"1,165.50",Mar-22
Slough Borough Council,805621,Care Staff Services,M44C,Adult Social Care Operations,Supplies and Services,666.00,Mar-22
Slough Borough Council,805621,Care Staff Services,M44C,Adult Social Care Operations,Supplies and Services,"2,146.00",Mar-22
Slough Borough Council,805621,Care Staff Services,M44C,Adult Social Care Operations,Supplies and Services,"1,406.00",Mar-22
Slough Borough Council,805621,Care Staff Services,M44C,Adult Social Care Operations,Supplies and Services,795.50,Mar-22
Slough Borough Council,805621,Care Staff Services,M44C,Adult Social Care Operations,Supplies and Services,906.50,Mar-22
Slough Borough Council,805621,Care Staff Services,M44C,Adult Social Care Operations,Supplies and Services,"1,239.50",Mar-22
Slough Borough Council,805621,Care Staff Services,M44C,Adult Social Care Operations,Supplies and Services,638.75,Mar-22
Slough Borough Council,805621,Care Staff Services,M44C,Adult Social Care Operations,Supplies and Services,"2,664.00",Mar-22
Slough Borough Council,805621,Care Staff Services,M44C,Adult Social Care Operations,Supplies and Services,682.50,Mar-22
Slough Borough Council,805621,Care Staff Services,M44C,Adult Social Care Operations,Supplies and Services,"1,813.00",Mar-22
Slough Borough Council,805621,Care Staff Services,M44C,Adult Social Care Operations,Supplies and Services,"2,331.00",Mar-22
Slough Borough Council,805621,Care Staff Services,M44C,Adult Social Care Operations,Supplies and Services,892.50,Mar-22
Slough Borough Council,805621,Care Staff Services,M44C,Adult Social Care Operations,Supplies and Services,"2,072.00",Mar-22
Slough Borough Council,805621,Care Staff Services,M44C,Adult Social Care Operations,Supplies and Services,721.50,Mar-22
Slough Borough Council,805621,Care Staff Services,M44C,Adult Social Care Operations,Supplies and Services,"1,802.50",Mar-22
Slough Borough Council,805621,Care Staff Services,M44C,Adult Social Care Operations,Supplies and Services,647.50,Mar-22
Slough Borough Council,805621,Care Staff Services,M44C,Adult Social Care Operations,Supplies and Services,"2,205.00",Mar-22
Slough Borough Council,805621,Care Staff Services,M44C,Adult Social Care Operations,Supplies and Services,"1,295.00",Mar-22
Slough Borough Council,805621,Care Staff Services,M44C,Adult Social Care Operations,Supplies and Services,624.38,Mar-22
Slough Borough Council,805621,Care Staff Services,M44C,Adult Social Care Operations,Supplies and Services,"1,102.50",Mar-22
Slough Borough Council,805621,Care Staff Services,M44C,Adult Social Care Operations,Supplies and Services,906.50,Mar-22
Slough Borough Council,805621,Care Staff Services,M44C,Adult Social Care Operations,Supplies and Services,551.25,Mar-22
Slough Borough Council,805621,Care Staff Services,M44C,Adult Social Care Operations,Supplies and Services,"1,165.50",Mar-22
Slough Borough Council,805621,Care Staff Services,M44C,Adult Social Care Operations,Supplies and Services,953.75,Mar-22
Slough Borough Council,805621,Care Staff Services,M44C,Adult Social Care Operations,Supplies and Services,518.00,Mar-22
Slough Borough Council,805621,Care Staff Services,M44C,Adult Social Care Operations,Supplies and Services,925.00,Mar-22
Slough Borough Council,805621,Care Staff Services,M44C,Adult Social Care Operations,Supplies and Services,573.50,Mar-22
Slough Borough Council,805621,Care Staff Services,M44C,Adult Social Care Operations,Supplies and Services,"1,165.50",Mar-22
Slough Borough Council,805621,Care Staff Services,M44C,Adult Social Care Operations,Supplies and Services,906.50,Mar-22
Slough Borough Council,805621,Care Staff Services,M44C,Adult Social Care Operations,Supplies and Services,647.50,Mar-22
Slough Borough Council,805621,Care Staff Services,M44C,Adult Social Care Operations,Supplies and Services,"1,165.50",Mar-22
Slough Borough Council,805621,Care Staff Services,M44C,Adult Social Care Operations,Supplies and Services,906.50,Mar-22
Slough Borough Council,805621,Care Staff Services,M44C,Adult Social Care Operations,Supplies and Services,"1,359.75",Mar-22
Slough Borough Council,805621,Care Staff Services,M44C,Adult Social Care Operations,Supplies and Services,"1,202.50",Mar-22
Slough Borough Council,805621,Care Staff Services,M44D,Adult Social Care Operations,Supplies and Services,518.00,Mar-22
Slough Borough Council,805621,Care Staff Services,M44D,Adult Social Care Operations,Supplies and Services,"1,592.50",Mar-22
Slough Borough Council,805621,Care Staff Services,M44D,Adult Social Care Operations,Supplies and Services,"1,096.11",Mar-22
Slough Borough Council,805621,Care Staff Services,M44D,Adult Social Care Operations,Supplies and Services,629.00,Mar-22
Slough Borough Council,805621,Care Staff Services,M44D,Adult Social Care Operations,Supplies and Services,"2,331.00",Mar-22
Slough Borough Council,805621,Care Staff Services,M44D,Adult Social Care Operations,Supplies and Services,"1,785.00",Mar-22
Slough Borough Council,805621,Care Staff Services,M44D,Adult Social Care Operations,Supplies and Services,612.50,Mar-22
Slough Borough Council,805621,Care Staff Services,M44D,Adult Social Care Operations,Supplies and Services,"1,102.50",Mar-22
Slough Borough Council,805621,Care Staff Services,M44D,Adult Social Care Operations,Supplies and Services,832.50,Mar-22
Slough Borough Council,805621,Care Staff Services,M44D,Adult Social Care Operations,Supplies and Services,"1,165.50",Mar-22
Slough Borough Council,805621,Care Staff Services,M44F,Adult Social Care Operations,Supplies and Services,999.00,Mar-22
Slough Borough Council,805621,Care Staff Services,M44F,Adult Social Care Operations,Supplies and Services,980.00,Mar-22
Slough Borough Council,805621,Care Staff Services,M44F,Adult Social Care Operations,Supplies and Services,740.00,Mar-22
Slough Borough Council,805621,Care Staff Services,M44F,Adult Social Care Operations,Supplies and Services,"1,461.50",Mar-22
Slough Borough Council,805621,Care Staff Services,M44F,Adult Social Care Operations,Supplies and Services,"1,387.50",Mar-22
Slough Borough Council,805621,Care Staff Services,M44F,Adult Social Care Operations,Supplies and Services,"2,571.50",Mar-22
Slough Borough Council,805621,Care Staff Services,M44F,Adult Social Care Operations,Supplies and Services,703.00,Mar-22
Slough Borough Council,805621,Care Staff Services,M44F,Adult Social Care Operations,Supplies and Services,666.00,Mar-22
Slough Borough Council,805621,Care Staff Services,M45C,Adult Social Care Operations,Supplies and Services,857.50,Mar-22
Slough Borough Council,805621,Care Staff Services,M45C,Adult Social Care Operations,Supplies and Services,743.75,Mar-22
Slough Borough Council,805621,Care Staff Services,M48C,Adult Social Care Operations,Supplies and Services,"3,700.00",Mar-22
Slough Borough Council,805621,Care Staff Services,M48C,Adult Social Care Operations,Supplies and Services,"2,331.00",Mar-22
Slough Borough Council,805621,Care Staff Services,M48C,Adult Social Care Operations,Supplies and Services,"1,793.75",Mar-22
Slough Borough Council,805621,Care Staff Services,M85F,Adult Social Care Operations,Supplies and Services,592.00,Mar-22
Slough Borough Council,808149,Care Staff Services Support,M44F,Adult Social Care Operations,Supplies and Services,"1,808.48",Mar-22
Slough Borough Council,808149,Care Staff Services Support,M44F,Adult Social Care Operations,Supplies and Services,"2,002.25",Mar-22
Slough Borough Council,808149,Care Staff Services Support,M44F,Adult Social Care Operations,Supplies and Services,"4,891.12",Mar-22
Slough Borough Council,808149,Care Staff Services Support,M44F,Adult Social Care Operations,Supplies and Services,"5,414.34",Mar-22
Slough Borough Council,1162,Care Uk Community Partnership Ltd,B298,Finance,Supplies and Services,"10,226.46",Mar-22
Slough Borough Council,1162,Care Uk Community Partnership Ltd,B298,Finance,Supplies and Services,"1,012.17",Mar-22
Slough Borough Council,1162,Care Uk Community Partnership Ltd,B324,Finance,Supplies and Services,"20,881.10",Mar-22
Slough Borough Council,1162,Care Uk Community Partnership Ltd,A03E,Adult Social Care Operations,Supplies and Services,"3,840.00",Mar-22
Slough Borough Council,1162,Care Uk Community Partnership Ltd,A03E,Adult Social Care Operations,Supplies and Services,"3,840.00",Mar-22
Slough Borough Council,1162,Care Uk Community Partnership Ltd,M15D,Adult Social Care Operations,Supplies and Services,"3,680.80",Mar-22
Slough Borough Council,1162,Care Uk Community Partnership Ltd,M15D,Adult Social Care Operations,Supplies and Services,"3,680.80",Mar-22
Slough Borough Council,1162,Care Uk Community Partnership Ltd,M15D,Adult Social Care Operations,Supplies and Services,"3,680.80",Mar-22
Slough Borough Council,1162,Care Uk Community Partnership Ltd,M15D,Adult Social Care Operations,Supplies and Services,"3,680.80",Mar-22
Slough Borough Council,1162,Care Uk Community Partnership Ltd,M15D,Adult Social Care Operations,Supplies and Services,"3,842.16",Mar-22
Slough Borough Council,1162,Care Uk Community Partnership Ltd,M15D,Adult Social Care Operations,Supplies and Services,"2,827.20",Mar-22
Slough Borough Council,1162,Care Uk Community Partnership Ltd,M15D,Adult Social Care Operations,Supplies and Services,"3,680.80",Mar-22
Slough Borough Council,1162,Care Uk Community Partnership Ltd,M15D,Adult Social Care Operations,Supplies and Services,"3,680.80",Mar-22
Slough Borough Council,1162,Care Uk Community Partnership Ltd,M15D,Adult Social Care Operations,Supplies and Services,"3,680.80",Mar-22
Slough Borough Council,1162,Care Uk Community Partnership Ltd,M15D,Adult Social Care Operations,Supplies and Services,"3,680.80",Mar-22
Slough Borough Council,1162,Care Uk Community Partnership Ltd,M15D,Adult Social Care Operations,Supplies and Services,"3,842.16",Mar-22
Slough Borough Council,1162,Care Uk Community Partnership Ltd,M17C,Adult Social Care Operations,Supplies and Services,"24,861.60",Mar-22
Slough Borough Council,1162,Care Uk Community Partnership Ltd,M17C,Adult Social Care Operations,Supplies and Services,"3,842.16",Mar-22
Slough Borough Council,1162,Care Uk Community Partnership Ltd,M17C,Adult Social Care Operations,Supplies and Services,"3,842.16",Mar-22
Slough Borough Council,1162,Care Uk Community Partnership Ltd,M17C,Adult Social Care Operations,Supplies and Services,"3,842.16",Mar-22
Slough Borough Council,1162,Care Uk Community Partnership Ltd,M17C,Adult Social Care Operations,Supplies and Services,"3,842.16",Mar-22
Slough Borough Council,1162,Care Uk Community Partnership Ltd,M17C,Adult Social Care Operations,Supplies and Services,"5,200.00",Mar-22
Slough Borough Council,1162,Care Uk Community Partnership Ltd,M17C,Adult Social Care Operations,Supplies and Services,557.14,Mar-22
Slough Borough Council,1162,Care Uk Community Partnership Ltd,M17C,Adult Social Care Operations,Supplies and Services,"3,842.16",Mar-22
Slough Borough Council,1162,Care Uk Community Partnership Ltd,M17C,Adult Social Care Operations,Supplies and Services,823.32,Mar-22
Slough Borough Council,1162,Care Uk Community Partnership Ltd,M17C,Adult Social Care Operations,Supplies and Services,"3,842.16",Mar-22
Slough Borough Council,1162,Care Uk Community Partnership Ltd,M17C,Adult Social Care Operations,Supplies and Services,"3,842.16",Mar-22
Slough Borough Council,1162,Care Uk Community Partnership Ltd,M17C,Adult Social Care Operations,Supplies and Services,"24,038.28",Mar-22
Slough Borough Council,1162,Care Uk Community Partnership Ltd,M17C,Adult Social Care Operations,Supplies and Services,"3,842.16",Mar-22
Slough Borough Council,1162,Care Uk Community Partnership Ltd,M18C,Adult Social Care Operations,Supplies and Services,"3,842.16",Mar-22
Slough Borough Council,1162,Care Uk Community Partnership Ltd,M18C,Adult Social Care Operations,Supplies and Services,"62,573.60",Mar-22
Slough Borough Council,1162,Care Uk Community Partnership Ltd,M18C,Adult Social Care Operations,Supplies and Services,"3,680.80",Mar-22
Slough Borough Council,1162,Care Uk Community Partnership Ltd,M18C,Adult Social Care Operations,Supplies and Services,"3,680.80",Mar-22
Slough Borough Council,1162,Care Uk Community Partnership Ltd,M18C,Adult Social Care Operations,Supplies and Services,"3,680.80",Mar-22
Slough Borough Council,1162,Care Uk Community Partnership Ltd,M18C,Adult Social Care Operations,Supplies and Services,"3,680.80",Mar-22
Slough Borough Council,1162,Care Uk Community Partnership Ltd,M18C,Adult Social Care Operations,Supplies and Services,"3,842.16",Mar-22
Slough Borough Council,1162,Care Uk Community Partnership Ltd,M18C,Adult Social Care Operations,Supplies and Services,"3,680.80",Mar-22
Slough Borough Council,1162,Care Uk Community Partnership Ltd,M18C,Adult Social Care Operations,Supplies and Services,"3,680.80",Mar-22
Slough Borough Council,1162,Care Uk Community Partnership Ltd,M18C,Adult Social Care Operations,Supplies and Services,"3,680.80",Mar-22
Slough Borough Council,1162,Care Uk Community Partnership Ltd,M18C,Adult Social Care Operations,Supplies and Services,"3,680.80",Mar-22
Slough Borough Council,1162,Care Uk Community Partnership Ltd,M18C,Adult Social Care Operations,Supplies and Services,"3,680.80",Mar-22
Slough Borough Council,1162,Care Uk Community Partnership Ltd,M18C,Adult Social Care Operations,Supplies and Services,"3,680.80",Mar-22
Slough Borough Council,1162,Care Uk Community Partnership Ltd,M18C,Adult Social Care Operations,Supplies and Services,"-9,494.80",Mar-22
Slough Borough Council,1162,Care Uk Community Partnership Ltd,M18C,Adult Social Care Operations,Supplies and Services,"3,680.80",Mar-22
Slough Borough Council,1162,Care Uk Community Partnership Ltd,M18C,Adult Social Care Operations,Supplies and Services,"3,680.80",Mar-22
Slough Borough Council,1162,Care Uk Community Partnership Ltd,M18C,Adult Social Care Operations,Supplies and Services,"3,842.16",Mar-22
Slough Borough Council,1162,Care Uk Community Partnership Ltd,M18C,Adult Social Care Operations,Supplies and Services,"3,680.80",Mar-22
Slough Borough Council,1162,Care Uk Community Partnership Ltd,M18C,Adult Social Care Operations,Supplies and Services,"3,680.80",Mar-22
Slough Borough Council,1162,Care Uk Community Partnership Ltd,M18C,Adult Social Care Operations,Supplies and Services,"3,680.80",Mar-22
Slough Borough Council,1162,Care Uk Community Partnership Ltd,M18C,Adult Social Care Operations,Supplies and Services,"-29,446.40",Mar-22
Slough Borough Council,1162,Care Uk Community Partnership Ltd,M18C,Adult Social Care Operations,Supplies and Services,"3,842.16",Mar-22
Slough Borough Council,1162,Care Uk Community Partnership Ltd,M18C,Adult Social Care Operations,Supplies and Services,"3,680.80",Mar-22
Slough Borough Council,1162,Care Uk Community Partnership Ltd,M18C,Adult Social Care Operations,Supplies and Services,"3,842.16",Mar-22
Slough Borough Council,1162,Care Uk Community Partnership Ltd,M18C,Adult Social Care Operations,Supplies and Services,"3,680.80",Mar-22
Slough Borough Council,1162,Care Uk Community Partnership Ltd,M18C,Adult Social Care Operations,Supplies and Services,"3,680.80",Mar-22
Slough Borough Council,1162,Care Uk Community Partnership Ltd,M18C,Adult Social Care Operations,Supplies and Services,"3,680.80",Mar-22
Slough Borough Council,1162,Care Uk Community Partnership Ltd,M18C,Adult Social Care Operations,Supplies and Services,"3,842.16",Mar-22
Slough Borough Council,1162,Care Uk Community Partnership Ltd,M18C,Adult Social Care Operations,Supplies and Services,"3,680.80",Mar-22
Slough Borough Council,1162,Care Uk Community Partnership Ltd,M18C,Adult Social Care Operations,Supplies and Services,"3,680.80",Mar-22
Slough Borough Council,1162,Care Uk Community Partnership Ltd,M18C,Adult Social Care Operations,Supplies and Services,"3,680.80",Mar-22
Slough Borough Council,1162,Care Uk Community Partnership Ltd,M18C,Adult Social Care Operations,Supplies and Services,"3,680.80",Mar-22
Slough Borough Council,1162,Care Uk Community Partnership Ltd,M18C,Adult Social Care Operations,Supplies and Services,"3,842.16",Mar-22
Slough Borough Council,1162,Care Uk Community Partnership Ltd,M18C,Adult Social Care Operations,Supplies and Services,"3,680.80",Mar-22
Slough Borough Council,1162,Care Uk Community Partnership Ltd,M18C,Adult Social Care Operations,Supplies and Services,"3,680.80",Mar-22
Slough Borough Council,1162,Care Uk Community Partnership Ltd,M18C,Adult Social Care Operations,Supplies and Services,"3,680.80",Mar-22
Slough Borough Council,1162,Care Uk Community Partnership Ltd,M18C,Adult Social Care Operations,Supplies and Services,"3,680.80",Mar-22
Slough Borough Council,1162,Care Uk Community Partnership Ltd,M18C,Adult Social Care Operations,Supplies and Services,"3,680.80",Mar-22
Slough Borough Council,1162,Care Uk Community Partnership Ltd,M18C,Adult Social Care Operations,Supplies and Services,"3,842.16",Mar-22
Slough Borough Council,1162,Care Uk Community Partnership Ltd,M18C,Adult Social Care Operations,Supplies and Services,"3,842.16",Mar-22
Slough Borough Council,1162,Care Uk Community Partnership Ltd,M18C,Adult Social Care Operations,Supplies and Services,"3,680.80",Mar-22
Slough Borough Council,1162,Care Uk Community Partnership Ltd,M18C,Adult Social Care Operations,Supplies and Services,"3,842.16",Mar-22
Slough Borough Council,1162,Care Uk Community Partnership Ltd,M18C,Adult Social Care Operations,Supplies and Services,"3,680.80",Mar-22
Slough Borough Council,1162,Care Uk Community Partnership Ltd,M18C,Adult Social Care Operations,Supplies and Services,"62,573.60",Mar-22
Slough Borough Council,1162,Care Uk Community Partnership Ltd,M18C,Adult Social Care Operations,Supplies and Services,"3,680.80",Mar-22
Slough Borough Council,1162,Care Uk Community Partnership Ltd,M18C,Adult Social Care Operations,Supplies and Services,"3,680.80",Mar-22
Slough Borough Council,1162,Care Uk Community Partnership Ltd,M18C,Adult Social Care Operations,Supplies and Services,"3,842.16",Mar-22
Slough Borough Council,1162,Care Uk Community Partnership Ltd,M18C,Adult Social Care Operations,Supplies and Services,"3,680.80",Mar-22
Slough Borough Council,1162,Care Uk Community Partnership Ltd,M25C,Adult Social Care Operations,Supplies and Services,"57,333.52",Mar-22
Slough Borough Council,1162,Care Uk Community Partnership Ltd,M25C,Adult Social Care Operations,Supplies and Services,"3,372.56",Mar-22
Slough Borough Council,1162,Care Uk Community Partnership Ltd,M25C,Adult Social Care Operations,Supplies and Services,"3,372.56",Mar-22
Slough Borough Council,1162,Care Uk Community Partnership Ltd,M25C,Adult Social Care Operations,Supplies and Services,"3,372.56",Mar-22
Slough Borough Council,1162,Care Uk Community Partnership Ltd,M25C,Adult Social Care Operations,Supplies and Services,"3,372.56",Mar-22
Slough Borough Council,1162,Care Uk Community Partnership Ltd,M25C,Adult Social Care Operations,Supplies and Services,"3,372.56",Mar-22
Slough Borough Council,1162,Care Uk Community Partnership Ltd,M25C,Adult Social Care Operations,Supplies and Services,"-23,607.92",Mar-22
Slough Borough Council,1162,Care Uk Community Partnership Ltd,M25C,Adult Social Care Operations,Supplies and Services,"3,372.56",Mar-22
Slough Borough Council,1162,Care Uk Community Partnership Ltd,M25C,Adult Social Care Operations,Supplies and Services,"3,372.56",Mar-22
Slough Borough Council,1162,Care Uk Community Partnership Ltd,M25C,Adult Social Care Operations,Supplies and Services,"3,372.56",Mar-22
Slough Borough Council,1162,Care Uk Community Partnership Ltd,M25C,Adult Social Care Operations,Supplies and Services,"3,372.56",Mar-22
Slough Borough Council,1162,Care Uk Community Partnership Ltd,M25C,Adult Social Care Operations,Supplies and Services,"3,372.56",Mar-22
Slough Borough Council,1162,Care Uk Community Partnership Ltd,M25C,Adult Social Care Operations,Supplies and Services,"57,333.52",Mar-22
Slough Borough Council,1162,Care Uk Community Partnership Ltd,M25C,Adult Social Care Operations,Supplies and Services,"-70,071.88",Mar-22
Slough Borough Council,1162,Care Uk Community Partnership Ltd,M26E,Adult Social Care Operations,Supplies and Services,"3,372.56",Mar-22
Slough Borough Council,1162,Care Uk Community Partnership Ltd,M26E,Adult Social Care Operations,Supplies and Services,"3,680.80",Mar-22
Slough Borough Council,1162,Care Uk Community Partnership Ltd,M26E,Adult Social Care Operations,Supplies and Services,"3,372.56",Mar-22
Slough Borough Council,1162,Care Uk Community Partnership Ltd,M26E,Adult Social Care Operations,Supplies and Services,"3,680.80",Mar-22
Slough Borough Council,1162,Care Uk Community Partnership Ltd,M27C,Adult Social Care Operations,Supplies and Services,"3,372.56",Mar-22
Slough Borough Council,1162,Care Uk Community Partnership Ltd,M27C,Adult Social Care Operations,Supplies and Services,"3,079.16",Mar-22
Slough Borough Council,1162,Care Uk Community Partnership Ltd,M27C,Adult Social Care Operations,Supplies and Services,"3,372.56",Mar-22
Slough Borough Council,1162,Care Uk Community Partnership Ltd,M27C,Adult Social Care Operations,Supplies and Services,"3,079.16",Mar-22
Slough Borough Council,1162,Care Uk Community Partnership Ltd,M27C,Adult Social Care Operations,Supplies and Services,"3,079.16",Mar-22
Slough Borough Council,1162,Care Uk Community Partnership Ltd,M27C,Adult Social Care Operations,Supplies and Services,"3,372.56",Mar-22
Slough Borough Council,1162,Care Uk Community Partnership Ltd,M27C,Adult Social Care Operations,Supplies and Services,"3,372.56",Mar-22
Slough Borough Council,1162,Care Uk Community Partnership Ltd,M27C,Adult Social Care Operations,Supplies and Services,"3,372.56",Mar-22
Slough Borough Council,1162,Care Uk Community Partnership Ltd,M27C,Adult Social Care Operations,Supplies and Services,"27,712.44",Mar-22
Slough Borough Council,1162,Care Uk Community Partnership Ltd,M27C,Adult Social Care Operations,Supplies and Services,"3,372.56",Mar-22
Slough Borough Council,1162,Care Uk Community Partnership Ltd,M27C,Adult Social Care Operations,Supplies and Services,"3,372.56",Mar-22
Slough Borough Council,1162,Care Uk Community Partnership Ltd,M27C,Adult Social Care Operations,Supplies and Services,"3,372.56",Mar-22
Slough Borough Council,1162,Care Uk Community Partnership Ltd,M27C,Adult Social Care Operations,Supplies and Services,"3,372.56",Mar-22
Slough Borough Council,1162,Care Uk Community Partnership Ltd,M27C,Adult Social Care Operations,Supplies and Services,"3,372.56",Mar-22
Slough Borough Council,1162,Care Uk Community Partnership Ltd,M27C,Adult Social Care Operations,Supplies and Services,"3,372.56",Mar-22
Slough Borough Council,1162,Care Uk Community Partnership Ltd,M27C,Adult Social Care Operations,Supplies and Services,"3,372.56",Mar-22
Slough Borough Council,1162,Care Uk Community Partnership Ltd,M27C,Adult Social Care Operations,Supplies and Services,"3,079.16",Mar-22
Slough Borough Council,1162,Care Uk Community Partnership Ltd,M27C,Adult Social Care Operations,Supplies and Services,"3,079.16",Mar-22
Slough Borough Council,1162,Care Uk Community Partnership Ltd,M27C,Adult Social Care Operations,Supplies and Services,"3,372.56",Mar-22
Slough Borough Council,1162,Care Uk Community Partnership Ltd,M27C,Adult Social Care Operations,Supplies and Services,"3,079.16",Mar-22
Slough Borough Council,1162,Care Uk Community Partnership Ltd,M27C,Adult Social Care Operations,Supplies and Services,"3,372.56",Mar-22
Slough Borough Council,1162,Care Uk Community Partnership Ltd,M27C,Adult Social Care Operations,Supplies and Services,"3,372.56",Mar-22
Slough Borough Council,1162,Care Uk Community Partnership Ltd,M27C,Adult Social Care Operations,Supplies and Services,"3,372.56",Mar-22
Slough Borough Council,1162,Care Uk Community Partnership Ltd,M27C,Adult Social Care Operations,Supplies and Services,"3,079.16",Mar-22
Slough Borough Council,1162,Care Uk Community Partnership Ltd,M27C,Adult Social Care Operations,Supplies and Services,"3,372.56",Mar-22
Slough Borough Council,1162,Care Uk Community Partnership Ltd,M27C,Adult Social Care Operations,Supplies and Services,"3,079.16",Mar-22
Slough Borough Council,1162,Care Uk Community Partnership Ltd,M27C,Adult Social Care Operations,Supplies and Services,"3,372.56",Mar-22
Slough Borough Council,1162,Care Uk Community Partnership Ltd,M27C,Adult Social Care Operations,Supplies and Services,"3,372.56",Mar-22
Slough Borough Council,1162,Care Uk Community Partnership Ltd,M27C,Adult Social Care Operations,Supplies and Services,"3,372.56",Mar-22
Slough Borough Council,1162,Care Uk Community Partnership Ltd,M27C,Adult Social Care Operations,Supplies and Services,"3,079.16",Mar-22
Slough Borough Council,1162,Care Uk Community Partnership Ltd,M27C,Adult Social Care Operations,Supplies and Services,"3,079.16",Mar-22
Slough Borough Council,1162,Care Uk Community Partnership Ltd,M27C,Adult Social Care Operations,Supplies and Services,"3,372.56",Mar-22
Slough Borough Council,1162,Care Uk Community Partnership Ltd,M27C,Adult Social Care Operations,Supplies and Services,"3,372.56",Mar-22
Slough Borough Council,1162,Care Uk Community Partnership Ltd,M27C,Adult Social Care Operations,Supplies and Services,"3,079.16",Mar-22
Slough Borough Council,1162,Care Uk Community Partnership Ltd,M27C,Adult Social Care Operations,Supplies and Services,"3,372.56",Mar-22
Slough Borough Council,1162,Care Uk Community Partnership Ltd,M27C,Adult Social Care Operations,Supplies and Services,"3,079.16",Mar-22
Slough Borough Council,1162,Care Uk Community Partnership Ltd,M27C,Adult Social Care Operations,Supplies and Services,"3,372.56",Mar-22
Slough Borough Council,1162,Care Uk Community Partnership Ltd,M27C,Adult Social Care Operations,Supplies and Services,"3,372.56",Mar-22
Slough Borough Council,1162,Care Uk Community Partnership Ltd,M27C,Adult Social Care Operations,Supplies and Services,"3,372.56",Mar-22
Slough Borough Council,1162,Care Uk Community Partnership Ltd,M27C,Adult Social Care Operations,Supplies and Services,"3,372.56",Mar-22
Slough Borough Council,1162,Care Uk Community Partnership Ltd,M27C,Adult Social Care Operations,Supplies and Services,"3,372.56",Mar-22
Slough Borough Council,1162,Care Uk Community Partnership Ltd,M27C,Adult Social Care Operations,Supplies and Services,"27,712.24",Mar-22
Slough Borough Council,1910,Carousel Buses Ltd,D512,Major Infrastructure Projects,Supplies and Services,"2,278.18",Mar-22
Slough Borough Council,804413,Castle Water,B068,Business Services,Premises,"1,968.81",Mar-22
Slough Borough Council,804413,Castle Water,B082,Place Strategy,Premises,"1,919.00",Mar-22
Slough Borough Council,418,Castleview School,E239,DSG - Schools,Supplies and Services,"64,805.67",Mar-22
Slough Borough Council,1837,Cemetery Development Services Ltd,P083,Capital,Capital Charges,"7,500.00",Mar-22
Slough Borough Council,3609,Centurion Healthcare Ltd,M26E,Adult Social Care Operations,Supplies and Services,"6,031.67",Mar-22
Slough Borough Council,2892,Chalfont Lodge,M15D,Adult Social Care Operations,Supplies and Services,"5,978.57",Mar-22
Slough Borough Council,2892,Chalfont Lodge,M15D,Adult Social Care Operations,Supplies and Services,"3,321.43",Mar-22
Slough Borough Council,2892,Chalfont Lodge,M15F,Adult Social Care Operations,Supplies and Services,"8,857.14",Mar-22
Slough Borough Council,2892,Chalfont Lodge,M26E,Adult Social Care Operations,Supplies and Services,"5,978.57",Mar-22
Slough Borough Council,2608,Chandos Lodge Nursing Home,M18C,Adult Social Care Operations,Supplies and Services,"3,600.00",Mar-22
Slough Borough Council,806512,Charles Chisangaurwe,A02A,People (Adults),Supplies and Services,500.00,Mar-22
Slough Borough Council,806512,Charles Chisangaurwe,A02A,People (Adults),Supplies and Services,500.00,Mar-22
Slough Borough Council,1877,Chelsie Innes,C322,Communities and Leisure,Supplies and Services,"2,206.75",Mar-22
Slough Borough Council,1877,Chelsie Innes,C322,Communities and Leisure,Supplies and Services,"1,601.00",Mar-22
Slough Borough Council,2871,Cherry Trees Residential Care,M42F,Adult Social Care Operations,Supplies and Services,"1,660.71",Mar-22
Slough Borough Council,2871,Cherry Trees Residential Care,M42F,Adult Social Care Operations,Supplies and Services,"3,321.43",Mar-22
Slough Borough Council,2871,Cherry Trees Residential Care,M42F,Adult Social Care Operations,Supplies and Services,"3,321.43",Mar-22
Slough Borough Council,807225,Chiltern Way Academy,F551,Children & Families,Supplies and Services,"9,280.00",Mar-22
Slough Borough Council,807225,Chiltern Way Academy,F551,Children & Families,Supplies and Services,"9,280.00",Mar-22
Slough Borough Council,807225,Chiltern Way Academy,F551,Children & Families,Supplies and Services,"3,990.84",Mar-22
Slough Borough Council,807225,Chiltern Way Academy,F551,Children & Families,Supplies and Services,"9,280.00",Mar-22
Slough Borough Council,807225,Chiltern Way Academy,F551,Children & Families,Supplies and Services,"3,990.84",Mar-22
Slough Borough Council,807225,Chiltern Way Academy,F551,Children & Families,Supplies and Services,"3,990.84",Mar-22
Slough Borough Council,807225,Chiltern Way Academy,F551,Children & Families,Supplies and Services,"3,990.84",Mar-22
Slough Borough Council,807225,Chiltern Way Academy,F551,Children & Families,Supplies and Services,"9,280.00",Mar-22
Slough Borough Council,807225,Chiltern Way Academy,F551,Children & Families,Supplies and Services,"9,280.00",Mar-22
Slough Borough Council,803495,Christchurch Court Ltd,M15D,Adult Social Care Operations,Supplies and Services,"8,859.80",Mar-22
Slough Borough Council,2561,Christies Care Ltd,M44D,Adult Social Care Operations,Supplies and Services,"4,404.00",Mar-22
Slough Borough Council,808253,CIA Fire & Security Ltd,B190,Business Services,Premises,832.00,Mar-22
Slough Borough Council,1573,Cipfa Business Limited,B081,Regeneration Development,Indirect Employee Expenses,"2,800.00",Mar-22
Slough Borough Council,807491,Cippenham School,E579,Children & Families,Supplies and Services,"20,750.00",Mar-22
Slough Borough Council,806550,City Homecare Ltd,A07R,Adult Social Care Operations,Supplies and Services,"2,116.80",Mar-22
Slough Borough Council,806550,City Homecare Ltd,A07R,Adult Social Care Operations,Supplies and Services,"1,764.00",Mar-22
Slough Borough Council,806550,City Homecare Ltd,A07R,Adult Social Care Operations,Supplies and Services,950.40,Mar-22
Slough Borough Council,806550,City Homecare Ltd,A07R,Adult Social Care Operations,Supplies and Services,"1,125.60",Mar-22
Slough Borough Council,806550,City Homecare Ltd,A07R,Adult Social Care Operations,Supplies and Services,"2,116.80",Mar-22
Slough Borough Council,806550,City Homecare Ltd,A07R,Adult Social Care Operations,Supplies and Services,772.80,Mar-22
Slough Borough Council,806550,City Homecare Ltd,A07R,Adult Social Care Operations,Supplies and Services,"2,822.40",Mar-22
Slough Borough Council,806550,City Homecare Ltd,A07R,Adult Social Care Operations,Supplies and Services,"2,116.80",Mar-22
Slough Borough Council,806550,City Homecare Ltd,A07R,Adult Social Care Operations,Supplies and Services,"2,822.40",Mar-22
Slough Borough Council,806550,City Homecare Ltd,A07R,Adult Social Care Operations,Supplies and Services,974.40,Mar-22
Slough Borough Council,806550,City Homecare Ltd,A07R,Adult Social Care Operations,Supplies and Services,680.40,Mar-22
Slough Borough Council,806550,City Homecare Ltd,M44C,Adult Social Care Operations,Supplies and Services,831.60,Mar-22
Slough Borough Council,806550,City Homecare Ltd,M44C,Adult Social Care Operations,Supplies and Services,"2,116.80",Mar-22
Slough Borough Council,806550,City Homecare Ltd,M44C,Adult Social Care Operations,Supplies and Services,"2,066.40",Mar-22
Slough Borough Council,806550,City Homecare Ltd,M44C,Adult Social Care Operations,Supplies and Services,772.80,Mar-22
Slough Borough Council,806550,City Homecare Ltd,M44C,Adult Social Care Operations,Supplies and Services,"2,073.20",Mar-22
Slough Borough Council,806550,City Homecare Ltd,M44C,Adult Social Care Operations,Supplies and Services,"1,444.80",Mar-22
Slough Borough Council,806550,City Homecare Ltd,M44C,Adult Social Care Operations,Supplies and Services,823.20,Mar-22
Slough Borough Council,806550,City Homecare Ltd,M44C,Adult Social Care Operations,Supplies and Services,823.20,Mar-22
Slough Borough Council,806550,City Homecare Ltd,M44C,Adult Social Care Operations,Supplies and Services,831.60,Mar-22
Slough Borough Council,806550,City Homecare Ltd,M44C,Adult Social Care Operations,Supplies and Services,856.80,Mar-22
Slough Borough Council,806550,City Homecare Ltd,M44C,Adult Social Care Operations,Supplies and Services,974.40,Mar-22
Slough Borough Council,806550,City Homecare Ltd,M44C,Adult Social Care Operations,Supplies and Services,"1,646.40",Mar-22
Slough Borough Council,806550,City Homecare Ltd,M44C,Adult Social Care Operations,Supplies and Services,"1,176.00",Mar-22
Slough Borough Council,806550,City Homecare Ltd,M44C,Adult Social Care Operations,Supplies and Services,"2,116.80",Mar-22
Slough Borough Council,806550,City Homecare Ltd,M44C,Adult Social Care Operations,Supplies and Services,823.20,Mar-22
Slough Borough Council,806550,City Homecare Ltd,M44C,Adult Social Care Operations,Supplies and Services,"2,116.80",Mar-22
Slough Borough Council,806550,City Homecare Ltd,M44C,Adult Social Care Operations,Supplies and Services,"1,058.40",Mar-22
Slough Borough Council,806550,City Homecare Ltd,M44C,Adult Social Care Operations,Supplies and Services,940.80,Mar-22
Slough Borough Council,806550,City Homecare Ltd,M44C,Adult Social Care Operations,Supplies and Services,"3,528.00",Mar-22
Slough Borough Council,806550,City Homecare Ltd,M44C,Adult Social Care Operations,Supplies and Services,688.80,Mar-22
Slough Borough Council,806550,City Homecare Ltd,M44C,Adult Social Care Operations,Supplies and Services,"1,646.40",Mar-22
Slough Borough Council,806550,City Homecare Ltd,M44C,Adult Social Care Operations,Supplies and Services,588.00,Mar-22
Slough Borough Council,806550,City Homecare Ltd,M44C,Adult Social Care Operations,Supplies and Services,"1,058.40",Mar-22
Slough Borough Council,806550,City Homecare Ltd,M44C,Adult Social Care Operations,Supplies and Services,"1,058.40",Mar-22
Slough Borough Council,806550,City Homecare Ltd,M44C,Adult Social Care Operations,Supplies and Services,"1,176.00",Mar-22
Slough Borough Council,806550,City Homecare Ltd,M44C,Adult Social Care Operations,Supplies and Services,"1,881.60",Mar-22
Slough Borough Council,806550,City Homecare Ltd,M44C,Adult Social Care Operations,Supplies and Services,"2,251.20",Mar-22
Slough Borough Council,806550,City Homecare Ltd,M44C,Adult Social Care Operations,Supplies and Services,"1,881.60",Mar-22
Slough Borough Council,806550,City Homecare Ltd,M44C,Adult Social Care Operations,Supplies and Services,"2,116.80",Mar-22
Slough Borough Council,806550,City Homecare Ltd,M44C,Adult Social Care Operations,Supplies and Services,"1,176.00",Mar-22
Slough Borough Council,806550,City Homecare Ltd,M44C,Adult Social Care Operations,Supplies and Services,"1,176.00",Mar-22
Slough Borough Council,806550,City Homecare Ltd,M44C,Adult Social Care Operations,Supplies and Services,"1,008.00",Mar-22
Slough Borough Council,806550,City Homecare Ltd,M44C,Adult Social Care Operations,Supplies and Services,823.20,Mar-22
Slough Borough Council,806550,City Homecare Ltd,M44C,Adult Social Care Operations,Supplies and Services,856.80,Mar-22
Slough Borough Council,806550,City Homecare Ltd,M44C,Adult Social Care Operations,Supplies and Services,"1,075.20",Mar-22
Slough Borough Council,806550,City Homecare Ltd,M44C,Adult Social Care Operations,Supplies and Services,772.80,Mar-22
Slough Borough Council,806550,City Homecare Ltd,M44C,Adult Social Care Operations,Supplies and Services,823.20,Mar-22
Slough Borough Council,806550,City Homecare Ltd,M44C,Adult Social Care Operations,Supplies and Services,"1,814.40",Mar-22
Slough Borough Council,806550,City Homecare Ltd,M44D,Adult Social Care Operations,Supplies and Services,705.60,Mar-22
Slough Borough Council,806550,City Homecare Ltd,M44D,Adult Social Care Operations,Supplies and Services,"1,176.00",Mar-22
Slough Borough Council,806550,City Homecare Ltd,M44D,Adult Social Care Operations,Supplies and Services,705.60,Mar-22
Slough Borough Council,806550,City Homecare Ltd,M44D,Adult Social Care Operations,Supplies and Services,638.40,Mar-22
Slough Borough Council,806550,City Homecare Ltd,M44D,Adult Social Care Operations,Supplies and Services,567.00,Mar-22
Slough Borough Council,806550,City Homecare Ltd,M44D,Adult Social Care Operations,Supplies and Services,823.20,Mar-22
Slough Borough Council,806550,City Homecare Ltd,M44D,Adult Social Care Operations,Supplies and Services,588.00,Mar-22
Slough Borough Council,806550,City Homecare Ltd,M44D,Adult Social Care Operations,Supplies and Services,"1,881.60",Mar-22
Slough Borough Council,806550,City Homecare Ltd,M44D,Adult Social Care Operations,Supplies and Services,"1,948.80",Mar-22
Slough Borough Council,806550,City Homecare Ltd,M44E,Adult Social Care Operations,Supplies and Services,554.40,Mar-22
Slough Borough Council,806550,City Homecare Ltd,M44F,Adult Social Care Operations,Supplies and Services,806.40,Mar-22
Slough Borough Council,806550,City Homecare Ltd,M44F,Adult Social Care Operations,Supplies and Services,840.00,Mar-22
Slough Borough Council,806550,City Homecare Ltd,M44F,Adult Social Care Operations,Supplies and Services,"1,478.40",Mar-22
Slough Borough Council,806550,City Homecare Ltd,M45C,Adult Social Care Operations,Supplies and Services,516.60,Mar-22
Slough Borough Council,806550,City Homecare Ltd,M45C,Adult Social Care Operations,Supplies and Services,940.80,Mar-22
Slough Borough Council,806550,City Homecare Ltd,M45C,Adult Social Care Operations,Supplies and Services,705.60,Mar-22
Slough Borough Council,806550,City Homecare Ltd,M48C,Adult Social Care Operations,Supplies and Services,588.00,Mar-22
Slough Borough Council,806550,City Homecare Ltd,M48C,Adult Social Care Operations,Supplies and Services,588.00,Mar-22
Slough Borough Council,806550,City Homecare Ltd,M48C,Adult Social Care Operations,Supplies and Services,"1,058.40",Mar-22
Slough Borough Council,807242,Civica Election Services Ltd,B246,Governance,Supplies and Services,864.30,Mar-22
Slough Borough Council,455,Cj Associates,F150,Early Years & Prevention,Indirect Employee Expenses,"1,400.00",Mar-22
Slough Borough Council,1151,Claycots Primary School,E209,DSG - Schools,Supplies and Services,"734,978.22",Mar-22
Slough Borough Council,408,Clear Channel Uk Ltd,B324,Finance,Supplies and Services,"1,020.00",Mar-22
Slough Borough Council,3685,Coghlan Lodges Limited,M44D,Adult Social Care Operations,Supplies and Services,"2,116.04",Mar-22
Slough Borough Council,3685,Coghlan Lodges Limited,M44D,Adult Social Care Operations,Supplies and Services,"2,116.04",Mar-22
Slough Borough Council,3685,Coghlan Lodges Limited,M44F,Adult Social Care Operations,Supplies and Services,"1,870.00",Mar-22
Slough Borough Council,3685,Coghlan Lodges Limited,M44F,Adult Social Care Operations,Supplies and Services,"1,870.00",Mar-22
Slough Borough Council,3685,Coghlan Lodges Limited,M44F,Adult Social Care Operations,Supplies and Services,979.71,Mar-22
Slough Borough Council,805823,Collaborative Care Solutions,M42E,Adult Social Care Operations,Supplies and Services,"9,211.42",Mar-22
Slough Borough Council,805823,Collaborative Care Solutions,M42E,Adult Social Care Operations,Supplies and Services,"9,211.42",Mar-22
Slough Borough Council,805823,Collaborative Care Solutions,M42E,Adult Social Care Operations,Supplies and Services,"8,857.14",Mar-22
Slough Borough Council,805823,Collaborative Care Solutions,M42E,Adult Social Care Operations,Supplies and Services,"9,477.14",Mar-22
Slough Borough Council,805823,Collaborative Care Solutions,M42E,Adult Social Care Operations,Supplies and Services,"8,000.00",Mar-22
Slough Borough Council,805823,Collaborative Care Solutions,M42E,Adult Social Care Operations,Supplies and Services,"8,560.00",Mar-22
Slough Borough Council,805823,Collaborative Care Solutions,M42E,Adult Social Care Operations,Supplies and Services,"8,320.00",Mar-22
Slough Borough Council,805823,Collaborative Care Solutions,M42E,Adult Social Care Operations,Supplies and Services,"9,477.14",Mar-22
Slough Borough Council,805823,Collaborative Care Solutions,M42E,Adult Social Care Operations,Supplies and Services,"8,857.14",Mar-22
Slough Borough Council,805823,Collaborative Care Solutions,M42F,Adult Social Care Operations,Supplies and Services,"2,684.00",Mar-22
Slough Borough Council,805823,Collaborative Care Solutions,M42F,Adult Social Care Operations,Supplies and Services,"2,400.00",Mar-22
Slough Borough Council,805823,Collaborative Care Solutions,M42F,Adult Social Care Operations,Supplies and Services,"2,971.57",Mar-22
Slough Borough Council,805823,Collaborative Care Solutions,M42F,Adult Social Care Operations,Supplies and Services,"2,657.14",Mar-22
Slough Borough Council,805823,Collaborative Care Solutions,M42F,Adult Social Care Operations,Supplies and Services,"2,971.57",Mar-22
Slough Borough Council,805823,Collaborative Care Solutions,M42F,Adult Social Care Operations,Supplies and Services,"2,657.14",Mar-22
Slough Borough Council,805823,Collaborative Care Solutions,M44D,Adult Social Care Operations,Supplies and Services,"9,211.42",Mar-22
Slough Borough Council,805823,Collaborative Care Solutions,M44D,Adult Social Care Operations,Supplies and Services,"8,320.00",Mar-22
Slough Borough Council,805823,Collaborative Care Solutions,M44D,Adult Social Care Operations,Supplies and Services,"9,211.42",Mar-22
Slough Borough Council,805823,Collaborative Care Solutions,M44F,Adult Social Care Operations,Supplies and Services,"4,317.85",Mar-22
Slough Borough Council,805823,Collaborative Care Solutions,M44F,Adult Social Care Operations,Supplies and Services,"4,317.85",Mar-22
Slough Borough Council,805823,Collaborative Care Solutions,M44F,Adult Social Care Operations,Supplies and Services,"3,900.00",Mar-22
Slough Borough Council,805823,Collaborative Care Solutions,M44F,Adult Social Care Operations,Supplies and Services,"4,317.85",Mar-22
Slough Borough Council,805823,Collaborative Care Solutions,M44F,Adult Social Care Operations,Supplies and Services,"4,317.85",Mar-22
Slough Borough Council,805823,Collaborative Care Solutions,M44F,Adult Social Care Operations,Supplies and Services,"3,900.00",Mar-22
Slough Borough Council,805823,Collaborative Care Solutions,M44F,Adult Social Care Operations,Supplies and Services,"3,365.71",Mar-22
Slough Borough Council,805823,Collaborative Care Solutions,M44F,Adult Social Care Operations,Supplies and Services,"3,040.00",Mar-22
Slough Borough Council,805823,Collaborative Care Solutions,M44F,Adult Social Care Operations,Supplies and Services,"3,365.71",Mar-22
Slough Borough Council,459,Colliers Cre,J006,HDC Housing Development,Supplies and Services,"3,666.67",Mar-22
Slough Borough Council,459,Colliers Cre,J006,HDC Housing Development,Supplies and Services,"3,666.67",Mar-22
Slough Borough Council,286,Colnbrook C Of E Primary School,E219,DSG - Schools,Supplies and Services,"31,738.15",Mar-22
Slough Borough Council,2535,Comfort Care Services,B298,Finance,Supplies and Services,"4,802.97",Mar-22
Slough Borough Council,2535,Comfort Care Services,B298,Finance,Supplies and Services,"20,207.63",Mar-22
Slough Borough Council,2535,Comfort Care Services,M42E,Adult Social Care Operations,Supplies and Services,775.00,Mar-22
Slough Borough Council,2535,Comfort Care Services,M42E,Adult Social Care Operations,Supplies and Services,"3,192.03",Mar-22
Slough Borough Council,2535,Comfort Care Services,M42E,Adult Social Care Operations,Supplies and Services,"1,165.82",Mar-22
Slough Borough Council,2535,Comfort Care Services,M42E,Adult Social Care Operations,Supplies and Services,"2,587.09",Mar-22
Slough Borough Council,2535,Comfort Care Services,M42E,Adult Social Care Operations,Supplies and Services,"2,325.00",Mar-22
Slough Borough Council,2535,Comfort Care Services,M42F,Adult Social Care Operations,Supplies and Services,"2,635.00",Mar-22
Slough Borough Council,2535,Comfort Care Services,M42F,Adult Social Care Operations,Supplies and Services,"3,893.82",Mar-22
Slough Borough Council,2535,Comfort Care Services,M42F,Adult Social Care Operations,Supplies and Services,"1,749.29",Mar-22
Slough Borough Council,2535,Comfort Care Services,M42F,Adult Social Care Operations,Supplies and Services,839.21,Mar-22
Slough Borough Council,2535,Comfort Care Services,M42F,Adult Social Care Operations,Supplies and Services,"2,635.00",Mar-22
Slough Borough Council,2535,Comfort Care Services,M42F,Adult Social Care Operations,Supplies and Services,839.21,Mar-22
Slough Borough Council,2535,Comfort Care Services,M42F,Adult Social Care Operations,Supplies and Services,"1,477.99",Mar-22
Slough Borough Council,2535,Comfort Care Services,M42F,Adult Social Care Operations,Supplies and Services,"1,007.06",Mar-22
Slough Borough Council,2535,Comfort Care Services,M42F,Adult Social Care Operations,Supplies and Services,"1,632.15",Mar-22
Slough Borough Council,2535,Comfort Care Services,M42F,Adult Social Care Operations,Supplies and Services,"2,778.71",Mar-22
Slough Borough Council,2535,Comfort Care Services,M42F,Adult Social Care Operations,Supplies and Services,"1,300.80",Mar-22
Slough Borough Council,2535,Comfort Care Services,M42F,Adult Social Care Operations,Supplies and Services,"1,300.80",Mar-22
Slough Borough Council,2535,Comfort Care Services,M42F,Adult Social Care Operations,Supplies and Services,839.21,Mar-22
Slough Borough Council,2535,Comfort Care Services,M42F,Adult Social Care Operations,Supplies and Services,"2,337.84",Mar-22
Slough Borough Council,2535,Comfort Care Services,M42F,Adult Social Care Operations,Supplies and Services,"2,635.00",Mar-22
Slough Borough Council,2535,Comfort Care Services,M42F,Adult Social Care Operations,Supplies and Services,"3,474.21",Mar-22
Slough Borough Council,2535,Comfort Care Services,M42F,Adult Social Care Operations,Supplies and Services,"2,635.00",Mar-22
Slough Borough Council,2535,Comfort Care Services,M42F,Adult Social Care Operations,Supplies and Services,"2,635.00",Mar-22
Slough Borough Council,2535,Comfort Care Services,M44C,Adult Social Care Operations,Supplies and Services,"2,349.80",Mar-22
Slough Borough Council,2535,Comfort Care Services,M44E,Adult Social Care Operations,Supplies and Services,"4,461.56",Mar-22
Slough Borough Council,2535,Comfort Care Services,M44E,Adult Social Care Operations,Supplies and Services,564.20,Mar-22
Slough Borough Council,2535,Comfort Care Services,M44E,Adult Social Care Operations,Supplies and Services,"2,141.66",Mar-22
Slough Borough Council,2535,Comfort Care Services,M44F,Adult Social Care Operations,Supplies and Services,"3,357.48",Mar-22
Slough Borough Council,2535,Comfort Care Services,M44F,Adult Social Care Operations,Supplies and Services,"3,474.21",Mar-22
Slough Borough Council,2535,Comfort Care Services,M44F,Adult Social Care Operations,Supplies and Services,"2,635.00",Mar-22
Slough Borough Council,2535,Comfort Care Services,M44F,Adult Social Care Operations,Supplies and Services,"1,317.50",Mar-22
Slough Borough Council,2535,Comfort Care Services,M44F,Adult Social Care Operations,Supplies and Services,503.53,Mar-22
Slough Borough Council,2535,Comfort Care Services,M44F,Adult Social Care Operations,Supplies and Services,"1,317.50",Mar-22
Slough Borough Council,2535,Comfort Care Services,M44F,Adult Social Care Operations,Supplies and Services,"1,317.50",Mar-22
Slough Borough Council,2535,Comfort Care Services,M81D,Adult Social Care Operations,Supplies and Services,"2,635.00",Mar-22
Slough Borough Council,1772,Computershare Voucher Services,B348,People,Supplies and Services,"3,183.00",Mar-22
Slough Borough Council,807468,"Connect Managed Services (UK) Ltd, trading as Conn3ct",A106,Customer,Supplies and Services,"16,170.00",Mar-22
Slough Borough Council,807468,"Connect Managed Services (UK) Ltd, trading as Conn3ct",A106,Customer,#N/A,"3,567.16",Mar-22
Slough Borough Council,806608,Corecare Global Ltd T/A Innova Care Concepts,A03F,Adult Social Care Operations,Supplies and Services,505.00,Mar-22
Slough Borough Council,806608,Corecare Global Ltd T/A Innova Care Concepts,A03F,Adult Social Care Operations,Supplies and Services,578.80,Mar-22
Slough Borough Council,3670,Craegmoor Birches Grove Priory,M27F,Adult Social Care Operations,Supplies and Services,"1,984.04",Mar-22
Slough Borough Council,3670,Craegmoor Birches Grove Priory,M27F,Adult Social Care Operations,Supplies and Services,"3,805.68",Mar-22
Slough Borough Council,3670,Craegmoor Birches Grove Priory,M27F,Adult Social Care Operations,Supplies and Services,"1,514.34",Mar-22
Slough Borough Council,1638,Creative Support Ltd,B298,Finance,Supplies and Services,"10,447.73",Mar-22
Slough Borough Council,1638,Creative Support Ltd,B298,Finance,Supplies and Services,"1,224.70",Mar-22
Slough Borough Council,1638,Creative Support Ltd,A02L,Adult Social Care Operations,Supplies and Services,"1,431.90",Mar-22
Slough Borough Council,1638,Creative Support Ltd,A02L,Adult Social Care Operations,Supplies and Services,"1,565.10",Mar-22
Slough Borough Council,1638,Creative Support Ltd,A02L,Adult Social Care Operations,Supplies and Services,"1,165.50",Mar-22
Slough Borough Council,1638,Creative Support Ltd,A02L,Adult Social Care Operations,Supplies and Services,"1,165.50",Mar-22
Slough Borough Council,1638,Creative Support Ltd,A02L,Adult Social Care Operations,Supplies and Services,"1,431.90",Mar-22
Slough Borough Council,1638,Creative Support Ltd,A02L,Adult Social Care Operations,Supplies and Services,"1,565.10",Mar-22
Slough Borough Council,1638,Creative Support Ltd,M42E,Adult Social Care Operations,Supplies and Services,"2,214.45",Mar-22
Slough Borough Council,1638,Creative Support Ltd,M42E,Adult Social Care Operations,Supplies and Services,"2,214.45",Mar-22
Slough Borough Council,1638,Creative Support Ltd,M42E,Adult Social Care Operations,Supplies and Services,"3,013.65",Mar-22
Slough Borough Council,1638,Creative Support Ltd,M42E,Adult Social Care Operations,Supplies and Services,"3,013.65",Mar-22
Slough Borough Council,806983,Critiqom,H015,Customer and Communications,Supplies and Services,"1,279.87",Mar-22
Slough Borough Council,807288,David Allwood,C322,Communities and Leisure,Supplies and Services,"3,144.00",Mar-22
Slough Borough Council,3554,Dimensions (Uk) Ltd,M42E,Adult Social Care Operations,Supplies and Services,"6,322.88",Mar-22
Slough Borough Council,3554,Dimensions (Uk) Ltd,M42E,Adult Social Care Operations,Supplies and Services,"5,630.24",Mar-22
Slough Borough Council,3554,Dimensions (Uk) Ltd,M42E,Adult Social Care Operations,Supplies and Services,"6,760.24",Mar-22
Slough Borough Council,3554,Dimensions (Uk) Ltd,M42E,Adult Social Care Operations,Supplies and Services,"5,079.76",Mar-22
Slough Borough Council,3554,Dimensions (Uk) Ltd,M42E,Adult Social Care Operations,Supplies and Services,"6,809.20",Mar-22
Slough Borough Council,3554,Dimensions (Uk) Ltd,M42E,Adult Social Care Operations,Supplies and Services,"6,504.88",Mar-22
Slough Borough Council,3554,Dimensions (Uk) Ltd,M42E,Adult Social Care Operations,Supplies and Services,"6,495.60",Mar-22
Slough Borough Council,803306,Ditton Park Academy,E269,DSG - Schools,Supplies and Services,"36,415.00",Mar-22
Slough Borough Council,1457,Dr Norman Gordon,D320,Regulatory Services,Premises,"2,060.00",Mar-22
Slough Borough Council,1528,Ecolab Limited,M27B,Children & Families,Supplies and Services,"1,176.44",Mar-22
Slough Borough Council,803301,Eden Girls School,E279,DSG - Schools,Supplies and Services,"6,583.33",Mar-22
Slough Borough Council,1299,Edf Energy,K526,Building Management,Premises,"91,518.66",Mar-22
Slough Borough Council,1299,Edf Energy,K526,Building Management,Premises,512.13,Mar-22
Slough Borough Council,807543,EHSL,A04M,People (Adults),Supplies and Services,"2,626.28",Mar-22
Slough Borough Council,807543,EHSL,A04M,People (Adults),Supplies and Services,"1,039.57",Mar-22
Slough Borough Council,807543,EHSL,A04M,People (Adults),Supplies and Services,"1,641.43",Mar-22
Slough Borough Council,807001,Elegant Care Services Ltd,M42E,Adult Social Care Operations,Supplies and Services,"5,757.14",Mar-22
Slough Borough Council,807001,Elegant Care Services Ltd,M42E,Adult Social Care Operations,Supplies and Services,"10,185.71",Mar-22
Slough Borough Council,807001,Elegant Care Services Ltd,M42E,Adult Social Care Operations,Supplies and Services,"5,978.57",Mar-22
Slough Borough Council,807001,Elegant Care Services Ltd,M44C,Adult Social Care Operations,Supplies and Services,"6,753.57",Mar-22
Slough Borough Council,806355,Elysium Healthcare,M26E,Adult Social Care Operations,Supplies and Services,"11,044.68",Mar-22
Slough Borough Council,806355,Elysium Healthcare,M26E,Adult Social Care Operations,Supplies and Services,"9,576.52",Mar-22
Slough Borough Council,806355,Elysium Healthcare,M26E,Adult Social Care Operations,Supplies and Services,"9,975.84",Mar-22
Slough Borough Council,806355,Elysium Healthcare,M26E,Adult Social Care Operations,Supplies and Services,"8,649.76",Mar-22
Slough Borough Council,3752,Endurance Health,B298,Finance,Supplies and Services,"3,470.00",Mar-22
Slough Borough Council,3752,Endurance Health,B298,Finance,Supplies and Services,824.75,Mar-22
Slough Borough Council,3752,Endurance Health,A07R,Adult Social Care Operations,Supplies and Services,"1,406.31",Mar-22
Slough Borough Council,3752,Endurance Health,A07R,Adult Social Care Operations,Supplies and Services,"1,381.32",Mar-22
Slough Borough Council,3752,Endurance Health,A07R,Adult Social Care Operations,Supplies and Services,866.93,Mar-22
Slough Borough Council,3752,Endurance Health,A07R,Adult Social Care Operations,Supplies and Services,"2,067.65",Mar-22
Slough Borough Council,3752,Endurance Health,A07R,Adult Social Care Operations,Supplies and Services,642.60,Mar-22
Slough Borough Council,3752,Endurance Health,A07R,Adult Social Care Operations,Supplies and Services,642.60,Mar-22
Slough Borough Council,3752,Endurance Health,M44C,Adult Social Care Operations,Supplies and Services,915.78,Mar-22
Slough Borough Council,3752,Endurance Health,M44C,Adult Social Care Operations,Supplies and Services,"2,307.12",Mar-22
Slough Borough Council,3752,Endurance Health,M44C,Adult Social Care Operations,Supplies and Services,"2,488.61",Mar-22
Slough Borough Council,3752,Endurance Health,M44C,Adult Social Care Operations,Supplies and Services,887.76,Mar-22
Slough Borough Council,3752,Endurance Health,M44C,Adult Social Care Operations,Supplies and Services,743.76,Mar-22
Slough Borough Council,3752,Endurance Health,M44C,Adult Social Care Operations,Supplies and Services,999.60,Mar-22
Slough Borough Council,3752,Endurance Health,M44C,Adult Social Care Operations,Supplies and Services,"1,249.50",Mar-22
Slough Borough Council,3752,Endurance Health,M44C,Adult Social Care Operations,Supplies and Services,"1,124.55",Mar-22
Slough Borough Council,3752,Endurance Health,M44C,Adult Social Care Operations,Supplies and Services,946.05,Mar-22
Slough Borough Council,3752,Endurance Health,M44C,Adult Social Care Operations,Supplies and Services,"2,998.80",Mar-22
Slough Borough Council,3752,Endurance Health,M44C,Adult Social Care Operations,Supplies and Services,"1,999.20",Mar-22
Slough Borough Council,3752,Endurance Health,M44C,Adult Social Care Operations,Supplies and Services,696.15,Mar-22
Slough Borough Council,3752,Endurance Health,M44C,Adult Social Care Operations,Supplies and Services,"1,121.89",Mar-22
Slough Borough Council,3752,Endurance Health,M44C,Adult Social Care Operations,Supplies and Services,874.65,Mar-22
Slough Borough Council,3752,Endurance Health,M44C,Adult Social Care Operations,Supplies and Services,604.54,Mar-22
Slough Borough Council,3752,Endurance Health,M44C,Adult Social Care Operations,Supplies and Services,"1,051.04",Mar-22
Slough Borough Council,3752,Endurance Health,M44C,Adult Social Care Operations,Supplies and Services,"1,124.55",Mar-22
Slough Borough Council,3752,Endurance Health,M44C,Adult Social Care Operations,Supplies and Services,696.61,Mar-22
Slough Borough Council,3752,Endurance Health,M44C,Adult Social Care Operations,Supplies and Services,946.05,Mar-22
Slough Borough Council,3752,Endurance Health,M44C,Adult Social Care Operations,Supplies and Services,522.42,Mar-22
Slough Borough Council,3752,Endurance Health,M44C,Adult Social Care Operations,Supplies and Services,838.95,Mar-22
Slough Borough Council,3752,Endurance Health,M44C,Adult Social Care Operations,Supplies and Services,515.28,Mar-22
Slough Borough Council,3752,Endurance Health,M44C,Adult Social Care Operations,Supplies and Services,624.75,Mar-22
Slough Borough Council,3752,Endurance Health,M44C,Adult Social Care Operations,Supplies and Services,"2,249.10",Mar-22
Slough Borough Council,3752,Endurance Health,M44C,Adult Social Care Operations,Supplies and Services,727.68,Mar-22
Slough Borough Council,3752,Endurance Health,M44C,Adult Social Care Operations,Supplies and Services,"1,124.55",Mar-22
Slough Borough Council,3752,Endurance Health,M44C,Adult Social Care Operations,Supplies and Services,"1,124.55",Mar-22
Slough Borough Council,3752,Endurance Health,M44C,Adult Social Care Operations,Supplies and Services,"1,156.40",Mar-22
Slough Borough Council,3752,Endurance Health,M44C,Adult Social Care Operations,Supplies and Services,"1,302.78",Mar-22
Slough Borough Council,3752,Endurance Health,M44D,Adult Social Care Operations,Supplies and Services,562.57,Mar-22
Slough Borough Council,3752,Endurance Health,M44D,Adult Social Care Operations,Supplies and Services,624.75,Mar-22
Slough Borough Council,3752,Endurance Health,M44D,Adult Social Care Operations,Supplies and Services,"1,267.35",Mar-22
Slough Borough Council,3752,Endurance Health,M44D,Adult Social Care Operations,Supplies and Services,"1,842.45",Mar-22
Slough Borough Council,3752,Endurance Health,M44D,Adult Social Care Operations,Supplies and Services,624.75,Mar-22
Slough Borough Council,3752,Endurance Health,M44F,Adult Social Care Operations,Supplies and Services,554.84,Mar-22
Slough Borough Council,3752,Endurance Health,M48C,Adult Social Care Operations,Supplies and Services,"2,828.63",Mar-22
Slough Borough Council,3752,Endurance Health,M48C,Adult Social Care Operations,Supplies and Services,663.42,Mar-22
Slough Borough Council,805423,Enriched Care,M44D,Adult Social Care Operations,Supplies and Services,"3,741.70",Mar-22
Slough Borough Council,805423,Enriched Care,M44F,Adult Social Care Operations,Supplies and Services,"2,768.30",Mar-22
Slough Borough Council,805423,Enriched Care,M44F,Adult Social Care Operations,Supplies and Services,"4,417.50",Mar-22
Slough Borough Council,805423,Enriched Care,M44F,Adult Social Care Operations,Supplies and Services,"2,613.30",Mar-22
Slough Borough Council,805423,Enriched Care,M44F,Adult Social Care Operations,Supplies and Services,"2,879.90",Mar-22
Slough Borough Council,805423,Enriched Care,M80F,Adult Social Care Operations,Supplies and Services,"1,758.01",Mar-22
Slough Borough Council,4035,Ernst & Young Llp,B015,Finance,Supplies and Services,"54,000.00",Mar-22
Slough Borough Council,4035,Ernst & Young Llp,B015,Finance,Supplies and Services,"27,000.00",Mar-22
Slough Borough Council,803645,Esotec,K089,Place Regulation,Supplies and Services,"7,666.67",Mar-22
Slough Borough Council,2677,Eton House Residential Home,M25C,Adult Social Care Operations,Supplies and Services,"3,534.00",Mar-22
Slough Borough Council,2677,Eton House Residential Home,M25C,Adult Social Care Operations,Supplies and Services,"3,534.00",Mar-22
Slough Borough Council,2677,Eton House Residential Home,M27C,Adult Social Care Operations,Supplies and Services,"2,657.14",Mar-22
Slough Borough Council,2677,Eton House Residential Home,M27C,Adult Social Care Operations,Supplies and Services,"2,657.14",Mar-22
Slough Borough Council,2677,Eton House Residential Home,M27F,Adult Social Care Operations,Supplies and Services,"4,364.36",Mar-22
Slough Borough Council,806501,Excellent Healthcare Services Ltd,M45C,Adult Social Care Operations,Supplies and Services,"-1,524.88",Mar-22
Slough Borough Council,806501,Excellent Healthcare Services Ltd,A07R,Adult Social Care Operations,Supplies and Services,"2,144.52",Mar-22
Slough Borough Council,806501,Excellent Healthcare Services Ltd,M44C,Adult Social Care Operations,Supplies and Services,842.49,Mar-22
Slough Borough Council,806501,Excellent Healthcare Services Ltd,M44C,Adult Social Care Operations,Supplies and Services,980.28,Mar-22
Slough Borough Council,806501,Excellent Healthcare Services Ltd,M44C,Adult Social Care Operations,Supplies and Services,"2,144.52",Mar-22
Slough Borough Council,806501,Excellent Healthcare Services Ltd,M44C,Adult Social Care Operations,Supplies and Services,510.60,Mar-22
Slough Borough Council,806501,Excellent Healthcare Services Ltd,M44C,Adult Social Care Operations,Supplies and Services,595.70,Mar-22
Slough Borough Council,806501,Excellent Healthcare Services Ltd,M44F,Adult Social Care Operations,Supplies and Services,714.84,Mar-22
Slough Borough Council,806501,Excellent Healthcare Services Ltd,M44F,Adult Social Care Operations,Supplies and Services,851.00,Mar-22
Slough Borough Council,806501,Excellent Healthcare Services Ltd,M44F,Adult Social Care Operations,Supplies and Services,953.12,Mar-22
Slough Borough Council,806501,Excellent Healthcare Services Ltd,M45C,Adult Social Care Operations,Supplies and Services,"1,524.88",Mar-22
Slough Borough Council,805225,Falcon Surfacing Ltd,D880,Direct Service Organisation (DSO),Supplies and Services,"10,880.00",Mar-22
Slough Borough Council,805225,Falcon Surfacing Ltd,D880,Direct Service Organisation (DSO),Supplies and Services,"2,720.76",Mar-22
Slough Borough Council,805225,Falcon Surfacing Ltd,D880,Direct Service Organisation (DSO),Supplies and Services,"1,118.38",Mar-22
Slough Borough Council,805225,Falcon Surfacing Ltd,D880,Direct Service Organisation (DSO),Supplies and Services,"5,550.50",Mar-22
Slough Borough Council,805225,Falcon Surfacing Ltd,D880,Direct Service Organisation (DSO),Supplies and Services,600.00,Mar-22
Slough Borough Council,805225,Falcon Surfacing Ltd,D880,Direct Service Organisation (DSO),Supplies and Services,"1,504.40",Mar-22
Slough Borough Council,805225,Falcon Surfacing Ltd,D880,Direct Service Organisation (DSO),Supplies and Services,"2,722.50",Mar-22
Slough Borough Council,805225,Falcon Surfacing Ltd,D880,Direct Service Organisation (DSO),Supplies and Services,"1,742.50",Mar-22
Slough Borough Council,805225,Falcon Surfacing Ltd,D880,Direct Service Organisation (DSO),Supplies and Services,905.00,Mar-22
Slough Borough Council,805225,Falcon Surfacing Ltd,D880,Direct Service Organisation (DSO),Supplies and Services,"2,291.92",Mar-22
Slough Borough Council,805225,Falcon Surfacing Ltd,D880,Direct Service Organisation (DSO),Supplies and Services,"20,016.00",Mar-22
Slough Borough Council,805225,Falcon Surfacing Ltd,D880,Direct Service Organisation (DSO),Supplies and Services,"1,129.96",Mar-22
Slough Borough Council,805225,Falcon Surfacing Ltd,D880,Direct Service Organisation (DSO),Supplies and Services,"3,050.00",Mar-22
Slough Borough Council,805225,Falcon Surfacing Ltd,D880,Direct Service Organisation (DSO),Supplies and Services,"1,640.00",Mar-22
Slough Borough Council,805225,Falcon Surfacing Ltd,D880,Direct Service Organisation (DSO),Supplies and Services,"1,203.42",Mar-22
Slough Borough Council,805225,Falcon Surfacing Ltd,D880,Direct Service Organisation (DSO),Supplies and Services,"3,450.24",Mar-22
Slough Borough Council,805225,Falcon Surfacing Ltd,D880,Direct Service Organisation (DSO),Supplies and Services,"12,042.24",Mar-22
Slough Borough Council,805225,Falcon Surfacing Ltd,D880,Direct Service Organisation (DSO),Supplies and Services,"20,035.00",Mar-22
Slough Borough Council,805225,Falcon Surfacing Ltd,D880,Direct Service Organisation (DSO),Supplies and Services,"1,455.42",Mar-22
Slough Borough Council,805225,Falcon Surfacing Ltd,D880,Direct Service Organisation (DSO),Supplies and Services,555.00,Mar-22
Slough Borough Council,805225,Falcon Surfacing Ltd,D880,Direct Service Organisation (DSO),Supplies and Services,"2,700.00",Mar-22
Slough Borough Council,805225,Falcon Surfacing Ltd,D880,Direct Service Organisation (DSO),Supplies and Services,903.20,Mar-22
Slough Borough Council,805225,Falcon Surfacing Ltd,D880,Direct Service Organisation (DSO),Supplies and Services,"1,013.20",Mar-22
Slough Borough Council,805225,Falcon Surfacing Ltd,D880,Direct Service Organisation (DSO),Supplies and Services,"4,575.00",Mar-22
Slough Borough Council,805225,Falcon Surfacing Ltd,D880,Direct Service Organisation (DSO),Supplies and Services,"4,575.00",Mar-22
Slough Borough Council,805225,Falcon Surfacing Ltd,D880,Direct Service Organisation (DSO),Supplies and Services,"6,355.00",Mar-22
Slough Borough Council,805225,Falcon Surfacing Ltd,D880,Direct Service Organisation (DSO),Supplies and Services,"2,778.08",Mar-22
Slough Borough Council,4031,Family Support Practise Limited,A03D,Adult Social Care Operations,Supplies and Services,"2,025.00",Mar-22
Slough Borough Council,4031,Family Support Practise Limited,B277,Digital and Strategic IT,Supplies and Services,"1,665.00",Mar-22
Slough Borough Council,4031,Family Support Practise Limited,B277,Digital and Strategic IT,Supplies and Services,"1,665.00",Mar-22
Slough Borough Council,475,Farnham Road Surgery,A04C,Adult Social Care Commissioning,Supplies and Services,"13,703.66",Mar-22
Slough Borough Council,475,Farnham Road Surgery,A04C,Adult Social Care Commissioning,Supplies and Services,"14,203.66",Mar-22
Slough Borough Council,475,Farnham Road Surgery,A04C,Adult Social Care Commissioning,Supplies and Services,"14,813.66",Mar-22
Slough Borough Council,955,First Beeline Buses Ltd,D512,Major Infrastructure Projects,Supplies and Services,"84,105.34",Mar-22
Slough Borough Council,955,First Beeline Buses Ltd,D512,Major Infrastructure Projects,Supplies and Services,"84,105.34",Mar-22
Slough Borough Council,955,First Beeline Buses Ltd,D512,Major Infrastructure Projects,Supplies and Services,"98,699.05",Mar-22
Slough Borough Council,1413,First Greater Western Ltd,P213,Capital,Capital Charges,"19,164.00",Mar-22
Slough Borough Council,1626,Five Star Radio Cars Limited,F123,Schools,Supplies and Services,"1,496.25",Mar-22
Slough Borough Council,1626,Five Star Radio Cars Limited,F123,Schools,Supplies and Services,"2,380.00",Mar-22
Slough Borough Council,1626,Five Star Radio Cars Limited,F123,Schools,Supplies and Services,"2,160.00",Mar-22
Slough Borough Council,1626,Five Star Radio Cars Limited,F123,Schools,Supplies and Services,950.00,Mar-22
Slough Borough Council,1626,Five Star Radio Cars Limited,F123,Schools,Supplies and Services,"1,500.00",Mar-22
Slough Borough Council,1204,Forget Me Not,B298,Finance,Supplies and Services,"1,363.53",Mar-22
Slough Borough Council,806249,Formact Ltd,P006,Capital,Supplies and Services,"1,288.00",Mar-22
Slough Borough Council,647,Foxborough Primary School,E229,DSG - Schools,Supplies and Services,"13,388.08",Mar-22
Slough Borough Council,807125,Futures For Shared Lives,M40E,Adult Social Care Operations,Supplies and Services,"3,436.35",Mar-22
Slough Borough Council,1555,Gallagher Bassett,B018,Finance,Supplies and Services,"6,505.89",Mar-22
Slough Borough Council,804911,GAP Group Limited,D880,Direct Service Organisation (DSO),Supplies and Services,924.00,Mar-22
Slough Borough Council,804911,GAP Group Limited,D880,Direct Service Organisation (DSO),Supplies and Services,882.00,Mar-22
Slough Borough Council,804911,GAP Group Limited,D880,Direct Service Organisation (DSO),Supplies and Services,950.40,Mar-22
Slough Borough Council,806619,Gate One,B203,Finance & Commercial,Salaries and Wages,"60,730.00",Mar-22
Slough Borough Council,806619,Gate One,B203,Finance & Commercial,Salaries and Wages,"-75,000.00",Mar-22
Slough Borough Council,806619,Gate One,B203,Finance & Commercial,Salaries and Wages,"27,134.10",Mar-22
Slough Borough Council,806619,Gate One,B203,Finance & Commercial,Salaries and Wages,"43,840.00",Mar-22
Slough Borough Council,807952,Gazprom Energy,K526,Building Management,Premises,"34,130.72",Mar-22
Slough Borough Council,807952,Gazprom Energy,K526,Building Management,Premises,"9,243.12",Mar-22
Slough Borough Council,806663,General Register Office /Home Office,D332,Community,Supplies and Services,"2,040.12",Mar-22
Slough Borough Council,806300,Glasscubes Limited,B211,Communities and Leisure,Supplies and Services,996.00,Mar-22
Slough Borough Council,807340,Goldcrest Care Services,B298,Finance,Supplies and Services,"2,194.26",Mar-22
Slough Borough Council,807340,Goldcrest Care Services,B298,Finance,Supplies and Services,521.53,Mar-22
Slough Borough Council,2830,GR Response Healthcare Ltd,B324,Finance,Supplies and Services,"3,314.46",Mar-22
Slough Borough Council,2830,GR Response Healthcare Ltd,A07R,Adult Social Care Operations,Supplies and Services,"1,169.32",Mar-22
Slough Borough Council,2830,GR Response Healthcare Ltd,M44C,Adult Social Care Operations,Supplies and Services,"2,071.00",Mar-22
Slough Borough Council,2830,GR Response Healthcare Ltd,M44C,Adult Social Care Operations,Supplies and Services,"1,064.00",Mar-22
Slough Borough Council,2830,GR Response Healthcare Ltd,M44C,Adult Social Care Operations,Supplies and Services,"1,539.00",Mar-22
Slough Borough Council,2830,GR Response Healthcare Ltd,M44C,Adult Social Care Operations,Supplies and Services,"2,394.00",Mar-22
Slough Borough Council,2830,GR Response Healthcare Ltd,M44C,Adult Social Care Operations,Supplies and Services,"2,394.00",Mar-22
Slough Borough Council,2830,GR Response Healthcare Ltd,M44C,Adult Social Care Operations,Supplies and Services,"2,250.08",Mar-22
Slough Borough Council,2830,GR Response Healthcare Ltd,M44C,Adult Social Care Operations,Supplies and Services,"2,499.92",Mar-22
Slough Borough Council,2830,GR Response Healthcare Ltd,M44C,Adult Social Care Operations,Supplies and Services,"2,546.00",Mar-22
Slough Borough Council,2830,GR Response Healthcare Ltd,M44C,Adult Social Care Operations,Supplies and Services,"2,499.84",Mar-22
Slough Borough Council,2830,GR Response Healthcare Ltd,M44C,Adult Social Care Operations,Supplies and Services,665.00,Mar-22
Slough Borough Council,2830,GR Response Healthcare Ltd,M44C,Adult Social Care Operations,Supplies and Services,"1,596.00",Mar-22
Slough Borough Council,2830,GR Response Healthcare Ltd,M44C,Adult Social Care Operations,Supplies and Services,"2,394.00",Mar-22
Slough Borough Council,2830,GR Response Healthcare Ltd,M44D,Adult Social Care Operations,Supplies and Services,"2,736.00",Mar-22
Slough Borough Council,2830,GR Response Healthcare Ltd,M44D,Adult Social Care Operations,Supplies and Services,"1,596.00",Mar-22
Slough Borough Council,2830,GR Response Healthcare Ltd,M44D,Adult Social Care Operations,Supplies and Services,"1,750.00",Mar-22
Slough Borough Council,2830,GR Response Healthcare Ltd,M44D,Adult Social Care Operations,Supplies and Services,665.00,Mar-22
Slough Borough Council,2830,GR Response Healthcare Ltd,M44D,Adult Social Care Operations,Supplies and Services,"2,812.00",Mar-22
Slough Borough Council,2830,GR Response Healthcare Ltd,M44D,Adult Social Care Operations,Supplies and Services,"2,250.08",Mar-22
Slough Borough Council,2830,GR Response Healthcare Ltd,M44D,Adult Social Care Operations,Supplies and Services,"2,394.00",Mar-22
Slough Borough Council,2830,GR Response Healthcare Ltd,M44D,Adult Social Care Operations,Supplies and Services,"2,250.08",Mar-22
Slough Borough Council,2830,GR Response Healthcare Ltd,M44F,Adult Social Care Operations,Supplies and Services,"2,128.00",Mar-22
Slough Borough Council,2830,GR Response Healthcare Ltd,M44F,Adult Social Care Operations,Supplies and Services,570.92,Mar-22
Slough Borough Council,2830,GR Response Healthcare Ltd,M45C,Adult Social Care Operations,Supplies and Services,"2,394.00",Mar-22
Slough Borough Council,2830,GR Response Healthcare Ltd,M48C,Adult Social Care Operations,Supplies and Services,"3,002.00",Mar-22
Slough Borough Council,2830,GR Response Healthcare Ltd,A06C,Adult Social Care Commissioning,Supplies and Services,"9,400.00",Mar-22
Slough Borough Council,807255,Green Corridor,F558,DSG - High Needs Block,Supplies and Services,"17,296.58",Mar-22
Slough Borough Council,805069,Grove Academy,E299,DSG - Schools,Supplies and Services,"15,166.67",Mar-22
Slough Borough Council,744,Hampshire County Council,D015,Major Infrastructure Projects,Supplies and Services,"32,559.04",Mar-22
Slough Borough Council,1381,Haybrook College,E809,DSG - High Needs Block,Supplies and Services,"206,347.50",Mar-22
Slough Borough Council,3784,Haybrook College Pru,E809,DSG - High Needs Block,Supplies and Services,"53,600.00",Mar-22
Slough Borough Council,803753,Healthcare Homes,M15D,Adult Social Care Operations,Supplies and Services,"2,825.43",Mar-22
Slough Borough Council,803753,Healthcare Homes,M15D,Adult Social Care Operations,Supplies and Services,"2,825.43",Mar-22
Slough Borough Council,803753,Healthcare Homes,M15D,Adult Social Care Operations,Supplies and Services,"2,734.29",Mar-22
Slough Borough Council,803753,Healthcare Homes,M15D,Adult Social Care Operations,Supplies and Services,"2,825.43",Mar-22
Slough Borough Council,803753,Healthcare Homes,M15D,Adult Social Care Operations,Supplies and Services,"2,552.00",Mar-22
Slough Borough Council,803753,Healthcare Homes,M15D,Adult Social Care Operations,Supplies and Services,"2,825.43",Mar-22
Slough Borough Council,803753,Healthcare Homes,M15D,Adult Social Care Operations,Supplies and Services,"2,825.43",Mar-22
Slough Borough Council,803753,Healthcare Homes,M15D,Adult Social Care Operations,Supplies and Services,"2,825.43",Mar-22
Slough Borough Council,803753,Healthcare Homes,M18C,Adult Social Care Operations,Supplies and Services,"2,985.71",Mar-22
Slough Borough Council,803753,Healthcare Homes,M18C,Adult Social Care Operations,Supplies and Services,"4,400.00",Mar-22
Slough Borough Council,803753,Healthcare Homes,M18C,Adult Social Care Operations,Supplies and Services,"4,871.43",Mar-22
Slough Borough Council,803753,Healthcare Homes,M18C,Adult Social Care Operations,Supplies and Services,"4,871.43",Mar-22
Slough Borough Council,803753,Healthcare Homes,M18C,Adult Social Care Operations,Supplies and Services,"4,871.43",Mar-22
Slough Borough Council,803753,Healthcare Homes,M18C,Adult Social Care Operations,Supplies and Services,"3,321.43",Mar-22
Slough Borough Council,803753,Healthcare Homes,M27C,Adult Social Care Operations,Supplies and Services,"3,100.00",Mar-22
Slough Borough Council,803753,Healthcare Homes,M27C,Adult Social Care Operations,Supplies and Services,"3,000.00",Mar-22
Slough Borough Council,803753,Healthcare Homes,M27C,Adult Social Care Operations,Supplies and Services,"3,100.00",Mar-22
Slough Borough Council,803753,Healthcare Homes,M27C,Adult Social Care Operations,Supplies and Services,"2,800.00",Mar-22
Slough Borough Council,803753,Healthcare Homes,M27C,Adult Social Care Operations,Supplies and Services,"3,100.00",Mar-22
Slough Borough Council,803753,Healthcare Homes,M27C,Adult Social Care Operations,Supplies and Services,"3,100.00",Mar-22
Slough Borough Council,803753,Healthcare Homes,M28C,Adult Social Care Operations,Supplies and Services,"3,142.86",Mar-22
Slough Borough Council,805368,Heathermount School,F462,DSG - High Needs Block,Supplies and Services,"14,262.67",Mar-22
Slough Borough Council,805368,Heathermount School,F462,DSG - High Needs Block,Supplies and Services,"14,262.67",Mar-22
Slough Borough Council,807682,Help and Care,A02C,Adult Social Care Commissioning,Supplies and Services,"16,109.74",Mar-22
Slough Borough Council,1686,Herald Chase,B660,Place Operations,Supplies and Services,"2,861.82",Mar-22
Slough Borough Council,3387,Herschel Grammar School,B210,Democratic Services,Premises,"1,000.00",Mar-22
Slough Borough Council,3387,Herschel Grammar School,E309,Children & Families,Supplies and Services,833.34,Mar-22
Slough Borough Council,808258,Hillingdon Primary School,F552,DSG - High Needs Block,Supplies and Services,"13,426.00",Mar-22
Slough Borough Council,3250,Hodge Hill Grange H C One Ltd,M15D,Adult Social Care Operations,Supplies and Services,"2,380.00",Mar-22
Slough Borough Council,850,Holy Family Catholic Primary School,E259,DSG - Schools,Supplies and Services,"184,008.23",Mar-22
Slough Borough Council,808028,Huntercombe Young People Ltd t/a Huntercombe Hospital Maidenhead,F447,Education & Inclusion,Supplies and Services,525.00,Mar-22
Slough Borough Council,808028,Huntercombe Young People Ltd t/a Huntercombe Hospital Maidenhead,F447,Education & Inclusion,Supplies and Services,"1,225.00",Mar-22
Slough Borough Council,2917,Imperial Coaches Ltd,F123,Schools,Supplies and Services,"3,150.00",Mar-22
Slough Borough Council,807666,Independence Home and Domicilary Care,M44F,Adult Social Care Operations,Supplies and Services,"3,381.17",Mar-22
Slough Borough Council,807666,Independence Home and Domicilary Care,M44F,Adult Social Care Operations,Supplies and Services,"1,544.60",Mar-22
Slough Borough Council,807666,Independence Home and Domicilary Care,M44F,Adult Social Care Operations,Supplies and Services,"2,940.66",Mar-22
Slough Borough Council,807666,Independence Home and Domicilary Care,M44F,Adult Social Care Operations,Supplies and Services,"3,053.96",Mar-22
Slough Borough Council,807666,Independence Home and Domicilary Care,M44F,Adult Social Care Operations,Supplies and Services,"1,395.10",Mar-22
Slough Borough Council,807666,Independence Home and Domicilary Care,M44F,Adult Social Care Operations,Supplies and Services,"1,395.10",Mar-22
Slough Borough Council,807666,Independence Home and Domicilary Care,M44F,Adult Social Care Operations,Supplies and Services,"3,024.00",Mar-22
Slough Borough Council,3570,Independent Supported Living And Disabilities Ltd,M44F,Adult Social Care Operations,Supplies and Services,"1,362.06",Mar-22
Slough Borough Council,3570,Independent Supported Living And Disabilities Ltd,M44F,Adult Social Care Operations,Supplies and Services,"2,608.00",Mar-22
Slough Borough Council,3172,Intelligent Transport Services,D509,Major Infrastructure Projects,Supplies and Services,"1,200.00",Mar-22
Slough Borough Council,3172,Intelligent Transport Services,D508,Major Infrastructure Projects,Supplies and Services,"6,207.00",Mar-22
Slough Borough Council,3500,Iqra Slough Islamic Primary School,E489,DSG - Schools,Supplies and Services,"104,658.43",Mar-22
Slough Borough Council,998,Iron Mountain Uk Ltd,B282,Digital and Strategic IT,Supplies and Services,589.73,Mar-22
Slough Borough Council,998,Iron Mountain Uk Ltd,B282,Digital and Strategic IT,Supplies and Services,"1,548.06",Mar-22
Slough Borough Council,1858,Itso Limited,D512,Major Infrastructure Projects,Supplies and Services,"1,185.00",Mar-22
Slough Borough Council,807346,Jacaranda,M44F,Adult Social Care Operations,Supplies and Services,"3,908.00",Mar-22
Slough Borough Council,805377,Jack Steadman,C032,Community,Supplies and Services,"1,770.00",Mar-22
Slough Borough Council,733,James Elliman  School,E319,DSG - Schools,Supplies and Services,"30,123.83",Mar-22
Slough Borough Council,805666,James Rosental,C322,Communities and Leisure,Supplies and Services,"1,722.00",Mar-22
Slough Borough Council,808236,James Stokes,C322,Communities and Leisure,Supplies and Services,"1,173.36",Mar-22
Slough Borough Council,805226,JD Surfacing & Civil Engineering Limited,D880,Direct Service Organisation (DSO),Supplies and Services,"1,855.00",Mar-22
Slough Borough Council,805226,JD Surfacing & Civil Engineering Limited,D880,Direct Service Organisation (DSO),Supplies and Services,"16,615.80",Mar-22
Slough Borough Council,805226,JD Surfacing & Civil Engineering Limited,D880,Direct Service Organisation (DSO),Supplies and Services,"15,384.80",Mar-22
Slough Borough Council,805226,JD Surfacing & Civil Engineering Limited,D880,Direct Service Organisation (DSO),Supplies and Services,"7,950.00",Mar-22
Slough Borough Council,805226,JD Surfacing & Civil Engineering Limited,D880,Direct Service Organisation (DSO),Supplies and Services,"1,855.00",Mar-22
Slough Borough Council,805226,JD Surfacing & Civil Engineering Limited,D880,Direct Service Organisation (DSO),Supplies and Services,"1,630.00",Mar-22
Slough Borough Council,805226,JD Surfacing & Civil Engineering Limited,D880,Direct Service Organisation (DSO),Supplies and Services,"7,560.00",Mar-22
Slough Borough Council,805226,JD Surfacing & Civil Engineering Limited,D880,Direct Service Organisation (DSO),Supplies and Services,700.00,Mar-22
Slough Borough Council,805226,JD Surfacing & Civil Engineering Limited,D880,Direct Service Organisation (DSO),Supplies and Services,"7,560.00",Mar-22
Slough Borough Council,2200,Joshua Pilmore,C322,Communities and Leisure,Supplies and Services,"2,202.00",Mar-22
Slough Borough Council,805699,K&J Carers Ltd,B298,Finance,Supplies and Services,510.29,Mar-22
Slough Borough Council,201,Kamal Enterprises Ltd,A04C,Adult Social Care Commissioning,Supplies and Services,555.00,Mar-22
Slough Borough Council,2620,Kcare Nursing Agency Ltd,M44C,Adult Social Care Operations,Supplies and Services,"1,366.40",Mar-22
Slough Borough Council,2620,Kcare Nursing Agency Ltd,M44C,Adult Social Care Operations,Supplies and Services,896.70,Mar-22
Slough Borough Council,2620,Kcare Nursing Agency Ltd,M44C,Adult Social Care Operations,Supplies and Services,"2,391.20",Mar-22
Slough Borough Council,2620,Kcare Nursing Agency Ltd,M44D,Adult Social Care Operations,Supplies and Services,"1,067.50",Mar-22
Slough Borough Council,2620,Kcare Nursing Agency Ltd,M44D,Adult Social Care Operations,Supplies and Services,"1,067.50",Mar-22
Slough Borough Council,2620,Kcare Nursing Agency Ltd,M48C,Adult Social Care Operations,Supplies and Services,"4,000.00",Mar-22
Slough Borough Council,2620,Kcare Nursing Agency Ltd,M48C,Adult Social Care Operations,Supplies and Services,"4,000.00",Mar-22
Slough Borough Council,2620,Kcare Nursing Agency Ltd,M48C,Adult Social Care Operations,Supplies and Services,"4,000.00",Mar-22
Slough Borough Council,2620,Kcare Nursing Agency Ltd,M48C,Adult Social Care Operations,Supplies and Services,"4,000.00",Mar-22
Slough Borough Council,804887,KCare Nursing Agency Ltd Supported House Living,M42F,Adult Social Care Operations,Supplies and Services,"2,926.00",Mar-22
Slough Borough Council,804887,KCare Nursing Agency Ltd Supported House Living,M44F,Adult Social Care Operations,Supplies and Services,"2,493.50",Mar-22
Slough Borough Council,804887,KCare Nursing Agency Ltd Supported House Living,M44F,Adult Social Care Operations,Supplies and Services,"2,493.52",Mar-22
Slough Borough Council,804875,Kennel Lane School,F551,Children & Families,#N/A,"3,978.00",Mar-22
Slough Borough Council,804875,Kennel Lane School,F551,Children & Families,#N/A,"4,855.00",Mar-22
Slough Borough Council,804875,Kennel Lane School,F551,Children & Families,#N/A,"18,145.00",Mar-22
Slough Borough Council,807742,Khalsa Primary School,E529,DSG - Schools,Supplies and Services,"14,953.42",Mar-22
Slough Borough Council,803916,Kharis Solutions,B298,Finance,Supplies and Services,"1,786.03",Mar-22
Slough Borough Council,803916,Kharis Solutions,A07R,Adult Social Care Operations,Supplies and Services,714.00,Mar-22
Slough Borough Council,803916,Kharis Solutions,M44C,Adult Social Care Operations,Supplies and Services,"1,904.00",Mar-22
Slough Borough Council,803916,Kharis Solutions,M44C,Adult Social Care Operations,Supplies and Services,"2,278.00",Mar-22
Slough Borough Council,803916,Kharis Solutions,M44C,Adult Social Care Operations,Supplies and Services,"1,428.00",Mar-22
Slough Borough Council,803916,Kharis Solutions,M44D,Adult Social Care Operations,Supplies and Services,"1,802.00",Mar-22
Slough Borough Council,803916,Kharis Solutions,M44E,Adult Social Care Operations,Supplies and Services,909.42,Mar-22
Slough Borough Council,803916,Kharis Solutions,M44E,Adult Social Care Operations,Supplies and Services,547.14,Mar-22
Slough Borough Council,803916,Kharis Solutions,M48C,Adult Social Care Operations,Supplies and Services,"2,210.00",Mar-22
Slough Borough Council,664,Langley Grammar School,E329,DSG - Schools,Supplies and Services,833.33,Mar-22
Slough Borough Council,1699,Langley Hall Primary Academy,E739,DSG - Schools,Supplies and Services,"4,833.33",Mar-22
Slough Borough Council,3001,Langley Haven Care Homes Ltd,B298,Finance,Supplies and Services,"2,982.72",Mar-22
Slough Borough Council,3001,Langley Haven Care Homes Ltd,B298,Finance,Supplies and Services,"4,197.76",Mar-22
Slough Borough Council,3001,Langley Haven Care Homes Ltd,M25C,Adult Social Care Operations,Supplies and Services,"3,604.68",Mar-22
Slough Borough Council,3001,Langley Haven Care Homes Ltd,M25C,Adult Social Care Operations,Supplies and Services,"3,604.68",Mar-22
Slough Borough Council,3001,Langley Haven Care Homes Ltd,M26D,Adult Social Care Operations,Supplies and Services,930.24,Mar-22
Slough Borough Council,3001,Langley Haven Care Homes Ltd,M26D,Adult Social Care Operations,Supplies and Services,"2,674.44",Mar-22
Slough Borough Council,3001,Langley Haven Care Homes Ltd,M26D,Adult Social Care Operations,Supplies and Services,"3,604.68",Mar-22
Slough Borough Council,3001,Langley Haven Care Homes Ltd,M26E,Adult Social Care Operations,Supplies and Services,"3,720.00",Mar-22
Slough Borough Council,3001,Langley Haven Care Homes Ltd,M26E,Adult Social Care Operations,Supplies and Services,"3,720.00",Mar-22
Slough Borough Council,3001,Langley Haven Care Homes Ltd,M27C,Adult Social Care Operations,Supplies and Services,"3,604.68",Mar-22
Slough Borough Council,3001,Langley Haven Care Homes Ltd,M27C,Adult Social Care Operations,Supplies and Services,"3,604.68",Mar-22
Slough Borough Council,3001,Langley Haven Care Homes Ltd,M27C,Adult Social Care Operations,Supplies and Services,"3,604.68",Mar-22
Slough Borough Council,3001,Langley Haven Care Homes Ltd,M27C,Adult Social Care Operations,Supplies and Services,"3,604.68",Mar-22
Slough Borough Council,3001,Langley Haven Care Homes Ltd,M27C,Adult Social Care Operations,Supplies and Services,"3,604.68",Mar-22
Slough Borough Council,3001,Langley Haven Care Homes Ltd,M27F,Adult Social Care Operations,Supplies and Services,"1,700.00",Mar-22
Slough Borough Council,3001,Langley Haven Care Homes Ltd,M27F,Adult Social Care Operations,Supplies and Services,"1,882.14",Mar-22
Slough Borough Council,3001,Langley Haven Care Homes Ltd,M27F,Adult Social Care Operations,Supplies and Services,"3,604.68",Mar-22
Slough Borough Council,3001,Langley Haven Care Homes Ltd,M27F,Adult Social Care Operations,Supplies and Services,"3,985.71",Mar-22
Slough Borough Council,3001,Langley Haven Care Homes Ltd,M27F,Adult Social Care Operations,Supplies and Services,"3,604.68",Mar-22
Slough Borough Council,3001,Langley Haven Care Homes Ltd,M27F,Adult Social Care Operations,Supplies and Services,"3,604.68",Mar-22
Slough Borough Council,3001,Langley Haven Care Homes Ltd,M29C,Adult Social Care Operations,Supplies and Services,"3,604.68",Mar-22
Slough Borough Council,1077,Lavat Consulting Limited,B015,Finance,Supplies and Services,540.00,Mar-22
Slough Borough Council,1077,Lavat Consulting Limited,B015,Finance,Indirect Employee Expenses,"1,512.00",Mar-22
Slough Borough Council,3019,Lg Futures Limited,B015,Finance,Supplies and Services,"9,495.00",Mar-22
Slough Borough Council,3791,Littledown Pru,E807,DSG - High Needs Block,Supplies and Services,"17,250.00",Mar-22
Slough Borough Council,667,Littledown School,E807,DSG - High Needs Block,Supplies and Services,"100,364.02",Mar-22
Slough Borough Council,804544,London Borough of Harrow,B096,Governance,Indirect Employee Expenses,"99,301.32",Mar-22
Slough Borough Council,804544,London Borough of Harrow,B096,Governance,Indirect Employee Expenses,"-99,301.32",Mar-22
Slough Borough Council,804585,Longlea Ltd,M18C,Adult Social Care Operations,Supplies and Services,"3,985.71",Mar-22
Slough Borough Council,2302,Look Ahead Care And Support,M42F,Adult Social Care Operations,Supplies and Services,"21,330.56",Mar-22
Slough Borough Council,2302,Look Ahead Care And Support,M44F,Adult Social Care Operations,Supplies and Services,"3,131.62",Mar-22
Slough Borough Council,2302,Look Ahead Care And Support,M44F,Adult Social Care Operations,Supplies and Services,"3,131.62",Mar-22
Slough Borough Council,2302,Look Ahead Care And Support,M44F,Adult Social Care Operations,Supplies and Services,"3,131.62",Mar-22
Slough Borough Council,2302,Look Ahead Care And Support,H211,Adult Social Care Operations,Supplies and Services,"11,511.16",Mar-22
Slough Borough Council,2302,Look Ahead Care And Support,H211,Adult Social Care Operations,Supplies and Services,816.68,Mar-22
Slough Borough Council,2302,Look Ahead Care And Support,H211,Adult Social Care Operations,Supplies and Services,"1,633.80",Mar-22
Slough Borough Council,807659,Looking Local Ltd,B212,Customer,Supplies and Services,"14,000.00",Mar-22
Slough Borough Council,1195,Lynch Hill (Foundation Primary) School,E749,DSG - Schools,Supplies and Services,"18,975.30",Mar-22
Slough Borough Council,1771,Lynch Hill Academy,E359,DSG - Schools,Supplies and Services,"22,250.00",Mar-22
Slough Borough Council,807217,Macadamia Support Limited,M42E,Adult Social Care Operations,Supplies and Services,"3,589.12",Mar-22
Slough Borough Council,807217,Macadamia Support Limited,M42E,Adult Social Care Operations,Supplies and Services,"6,931.20",Mar-22
Slough Borough Council,807217,Macadamia Support Limited,M42E,Adult Social Care Operations,Supplies and Services,"6,713.00",Mar-22
Slough Borough Council,807217,Macadamia Support Limited,M42E,Adult Social Care Operations,Supplies and Services,"3,973.20",Mar-22
Slough Borough Council,807217,Macadamia Support Limited,M42E,Adult Social Care Operations,Supplies and Services,"7,308.00",Mar-22
Slough Borough Council,807217,Macadamia Support Limited,M44C,Adult Social Care Operations,Supplies and Services,"3,591.56",Mar-22
Slough Borough Council,807217,Macadamia Support Limited,M44D,Adult Social Care Operations,Supplies and Services,"5,523.00",Mar-22
Slough Borough Council,1874,Maccabee Pets Hotel,H253,Neighbourhood Services,Supplies and Services,"2,244.00",Mar-22
Slough Borough Council,1874,Maccabee Pets Hotel,H253,Neighbourhood Services,Supplies and Services,833.00,Mar-22
Slough Borough Council,1874,Maccabee Pets Hotel,H253,Neighbourhood Services,Supplies and Services,"3,060.00",Mar-22
Slough Borough Council,1874,Maccabee Pets Hotel,H253,Neighbourhood Services,Supplies and Services,"1,228.00",Mar-22
Slough Borough Council,1941,Manor Green School,F449,DSG - High Needs Block,Supplies and Services,"2,452.50",Mar-22
Slough Borough Council,1941,Manor Green School,F551,Children & Families,Supplies and Services,"48,300.00",Mar-22
Slough Borough Council,529,Marish Primary School,E759,DSG - Schools,Supplies and Services,"121,954.08",Mar-22
Slough Borough Council,807774,Marsh Ltd,B018,Finance,Supplies and Services,"1,021.81",Mar-22
Slough Borough Council,3277,Marston Group Ltd,B377,Finance & Commercial,Supplies and Services,518.39,Mar-22
Slough Borough Council,2752,Martin Conway,H205,Housing (People) Services,Supplies and Services,799.99,Mar-22
Slough Borough Council,1886,Matrix Scm,B023,Finance & Commercial,Agency Staff,"341,128.74",Mar-22
Slough Borough Council,1886,Matrix Scm,B023,Finance & Commercial,Agency Staff,"289,536.29",Mar-22
Slough Borough Council,1886,Matrix Scm,B023,Finance & Commercial,Agency Staff,"341,498.40",Mar-22
Slough Borough Council,1886,Matrix Scm,B023,Finance & Commercial,Agency Staff,"332,656.31",Mar-22
Slough Borough Council,1886,Matrix Scm,B023,Finance & Commercial,Agency Staff,"333,289.00",Mar-22
Slough Borough Council,1886,Matrix Scm,B023,Finance & Commercial,Agency Staff,"363,857.98",Mar-22
Slough Borough Council,806926,Meadow High School,F551,Children & Families,Supplies and Services,"6,666.66",Mar-22
Slough Borough Council,806926,Meadow High School,F551,Children & Families,Supplies and Services,"5,000.00",Mar-22
Slough Borough Council,806926,Meadow High School,F551,Children & Families,Supplies and Services,"3,333.33",Mar-22
Slough Borough Council,807009,Medigold Health Consultancy Ltd,B349,People,Supplies and Services,"6,998.25",Mar-22
Slough Borough Council,807009,Medigold Health Consultancy Ltd,B349,People,Supplies and Services,"6,998.25",Mar-22
Slough Borough Council,2237,Metts Ltd,M50A,Major Infrastructure Projects,Supplies and Services,"1,221.68",Mar-22
Slough Borough Council,2237,Metts Ltd,M50A,Major Infrastructure Projects,Transport,967.36,Mar-22
Slough Borough Council,806737,Mishcon de Reya LLP,P405,Capital,Capital Charges,"1,700.00",Mar-22
Slough Borough Council,1879,Mj Events Support Limited,B310,Finance,Supplies and Services,"12,368.00",Mar-22
Slough Borough Council,1879,Mj Events Support Limited,B310,Finance,Supplies and Services,"5,072.00",Mar-22
Slough Borough Council,805121,MMCG (2) Limited,A03E,Adult Social Care Operations,Supplies and Services,"3,962.72",Mar-22
Slough Borough Council,805121,MMCG (2) Limited,A03E,Adult Social Care Operations,Supplies and Services,"3,641.40",Mar-22
Slough Borough Council,805121,MMCG (2) Limited,A03E,Adult Social Care Operations,Supplies and Services,"3,962.72",Mar-22
Slough Borough Council,805121,MMCG (2) Limited,M15D,Adult Social Care Operations,Supplies and Services,"3,213.00",Mar-22
Slough Borough Council,805121,MMCG (2) Limited,M15F,Adult Social Care Operations,Supplies and Services,"3,213.00",Mar-22
Slough Borough Council,805121,MMCG (2) Limited,M17C,Adult Social Care Operations,Supplies and Services,"3,511.35",Mar-22
Slough Borough Council,805121,MMCG (2) Limited,M17C,Adult Social Care Operations,Supplies and Services,"3,213.00",Mar-22
Slough Borough Council,805121,MMCG (2) Limited,M17C,Adult Social Care Operations,Supplies and Services,"3,213.00",Mar-22
Slough Borough Council,805121,MMCG (2) Limited,M18C,Adult Social Care Operations,Supplies and Services,"3,213.00",Mar-22
Slough Borough Council,805121,MMCG (2) Limited,M18C,Adult Social Care Operations,Supplies and Services,"3,213.00",Mar-22
Slough Borough Council,805121,MMCG (2) Limited,M18C,Adult Social Care Operations,Supplies and Services,"3,213.00",Mar-22
Slough Borough Council,805121,MMCG (2) Limited,M18C,Adult Social Care Operations,Supplies and Services,"3,213.00",Mar-22
Slough Borough Council,805121,MMCG (2) Limited,M18C,Adult Social Care Operations,Supplies and Services,"3,213.00",Mar-22
Slough Borough Council,805121,MMCG (2) Limited,M18C,Adult Social Care Operations,Supplies and Services,"3,641.40",Mar-22
Slough Borough Council,805121,MMCG (2) Limited,M25C,Adult Social Care Operations,Supplies and Services,"3,213.00",Mar-22
Slough Borough Council,805121,MMCG (2) Limited,M25C,Adult Social Care Operations,Supplies and Services,"3,213.00",Mar-22
Slough Borough Council,805121,MMCG (2) Limited,M27C,Adult Social Care Operations,Supplies and Services,"3,213.00",Mar-22
Slough Borough Council,805121,MMCG (2) Limited,M27C,Adult Social Care Operations,Supplies and Services,"3,213.00",Mar-22
Slough Borough Council,805121,MMCG (2) Limited,M27C,Adult Social Care Operations,Supplies and Services,"3,213.00",Mar-22
Slough Borough Council,805121,MMCG (2) Limited,M27C,Adult Social Care Operations,Supplies and Services,"3,213.00",Mar-22
Slough Borough Council,805121,MMCG (2) Limited,M27C,Adult Social Care Operations,Supplies and Services,"3,213.00",Mar-22
Slough Borough Council,805121,MMCG (2) Limited,M27C,Adult Social Care Operations,Supplies and Services,"3,213.00",Mar-22
Slough Borough Council,805121,MMCG (2) Limited,M28C,Adult Social Care Operations,Supplies and Services,"3,442.50",Mar-22
Slough Borough Council,1786,Mobius Networks Ltd,D500,Major Infrastructure Projects,Premises,"19,800.00",Mar-22
Slough Borough Council,804815,Molly Southall,C322,Communities and Leisure,Supplies and Services,927.00,Mar-22
Slough Borough Council,2115,Montagu Evans Llp,B086,Place Strategy & Infrastructure,Capital Charges,"9,532.00",Mar-22
Slough Borough Council,2166,Montague Swift Recruitment Ltd,F640,Inclusion,Agency Staff,"3,250.00",Mar-22
Slough Borough Council,3302,Montem Primary School,E339,DSG - Schools,Supplies and Services,"36,195.45",Mar-22
Slough Borough Council,808068,NEC Software Solutions UK Limited,J160,Place Management,Supplies and Services,"10,000.00",Mar-22
Slough Borough Council,808068,NEC Software Solutions UK Limited,J160,Place Management,Supplies and Services,"42,051.05",Mar-22
Slough Borough Council,808068,NEC Software Solutions UK Limited,J160,Place Management,Supplies and Services,"21,685.00",Mar-22
Slough Borough Council,808068,NEC Software Solutions UK Limited,J160,Place Management,Supplies and Services,"1,275.00",Mar-22
Slough Borough Council,1945,Neem Tree Care Ltd,M17C,Adult Social Care Operations,Supplies and Services,"3,255.84",Mar-22
Slough Borough Council,804696,Net World Sports,C406,Communities and Leisure,#N/A,645.48,Mar-22
Slough Borough Council,1216,Network Rail Infrastructure Ltd,P213,Capital,Capital Charges,"7,380.70",Mar-22
Slough Borough Council,1216,Network Rail Infrastructure Ltd,P213,Capital,Capital Charges,"21,314.11",Mar-22
Slough Borough Council,1949,Nhs Supply Chain,A01P,Public Health,Supplies and Services,540.00,Mar-22
Slough Borough Council,805330,Norden Farm Centre Trust Limited,B175,Business Services,External Receipts,"2,400.00",Mar-22
Slough Borough Council,3717,Norwood Schools Limited,M26E,Adult Social Care Operations,Supplies and Services,"4,040.28",Mar-22
Slough Borough Council,3717,Norwood Schools Limited,M26E,Adult Social Care Operations,Supplies and Services,"3,801.01",Mar-22
Slough Borough Council,3717,Norwood Schools Limited,M26E,Adult Social Care Operations,External Receipts,-608.80,Mar-22
Slough Borough Council,1343,Novacroft,D512,Major Infrastructure Projects,Supplies and Services,"2,700.00",Mar-22
Slough Borough Council,803238,Oasis Care and Training Agency,M42C,Adult Social Care Operations,Supplies and Services,"1,443.96",Mar-22
Slough Borough Council,803238,Oasis Care and Training Agency,M44C,Adult Social Care Operations,Supplies and Services,"2,045.60",Mar-22
Slough Borough Council,803238,Oasis Care and Training Agency,M44C,Adult Social Care Operations,Supplies and Services,601.64,Mar-22
Slough Borough Council,803238,Oasis Care and Training Agency,M44C,Adult Social Care Operations,Supplies and Services,"1,203.32",Mar-22
Slough Borough Council,803238,Oasis Care and Training Agency,M44C,Adult Social Care Operations,Supplies and Services,"2,681.64",Mar-22
Slough Borough Council,803238,Oasis Care and Training Agency,M44C,Adult Social Care Operations,Supplies and Services,"2,784.80",Mar-22
Slough Borough Council,803238,Oasis Care and Training Agency,M44C,Adult Social Care Operations,Supplies and Services,"1,203.30",Mar-22
Slough Borough Council,803238,Oasis Care and Training Agency,M44C,Adult Social Care Operations,Supplies and Services,"1,183.13",Mar-22
Slough Borough Council,803238,Oasis Care and Training Agency,M44C,Adult Social Care Operations,Supplies and Services,"1,194.72",Mar-22
Slough Borough Council,803238,Oasis Care and Training Agency,M44C,Adult Social Care Operations,Supplies and Services,"2,165.96",Mar-22
Slough Borough Council,803238,Oasis Care and Training Agency,M44C,Adult Social Care Operations,Supplies and Services,"1,014.20",Mar-22
Slough Borough Council,803238,Oasis Care and Training Agency,M44C,Adult Social Care Operations,Supplies and Services,571.57,Mar-22
Slough Borough Council,803238,Oasis Care and Training Agency,M44C,Adult Social Care Operations,Supplies and Services,962.64,Mar-22
Slough Borough Council,803238,Oasis Care and Training Agency,M44C,Adult Social Care Operations,Supplies and Services,"2,165.96",Mar-22
Slough Borough Council,803238,Oasis Care and Training Agency,M44D,Adult Social Care Operations,Supplies and Services,842.32,Mar-22
Slough Borough Council,803238,Oasis Care and Training Agency,M44D,Adult Social Care Operations,Supplies and Services,"2,165.96",Mar-22
Slough Borough Council,803238,Oasis Care and Training Agency,M44D,Adult Social Care Operations,Supplies and Services,704.79,Mar-22
Slough Borough Council,803238,Oasis Care and Training Agency,M44D,Adult Social Care Operations,Supplies and Services,670.40,Mar-22
Slough Borough Council,803238,Oasis Care and Training Agency,M44D,Adult Social Care Operations,Supplies and Services,"1,323.64",Mar-22
Slough Borough Council,803238,Oasis Care and Training Agency,M44D,Adult Social Care Operations,Supplies and Services,795.04,Mar-22
Slough Borough Council,803238,Oasis Care and Training Agency,M44D,Adult Social Care Operations,Supplies and Services,979.84,Mar-22
Slough Borough Council,803238,Oasis Care and Training Agency,M44D,Adult Social Care Operations,Supplies and Services,"1,340.84",Mar-22
Slough Borough Council,803238,Oasis Care and Training Agency,M44D,Adult Social Care Operations,Supplies and Services,550.08,Mar-22
Slough Borough Council,803238,Oasis Care and Training Agency,M44D,Adult Social Care Operations,Supplies and Services,"2,148.77",Mar-22
Slough Borough Council,803238,Oasis Care and Training Agency,M44D,Adult Social Care Operations,Supplies and Services,979.84,Mar-22
Slough Borough Council,803238,Oasis Care and Training Agency,M44F,Adult Social Care Operations,Supplies and Services,"1,306.44",Mar-22
Slough Borough Council,803238,Oasis Care and Training Agency,M44F,Adult Social Care Operations,Supplies and Services,"4,331.88",Mar-22
Slough Borough Council,803238,Oasis Care and Training Agency,M45C,Adult Social Care Operations,Supplies and Services,795.04,Mar-22
Slough Borough Council,803238,Oasis Care and Training Agency,M45C,Adult Social Care Operations,Supplies and Services,"2,165.96",Mar-22
Slough Borough Council,803238,Oasis Care and Training Agency,M45C,Adult Social Care Operations,Supplies and Services,"1,443.96",Mar-22
Slough Borough Council,803238,Oasis Care and Training Agency,M48C,Adult Social Care Operations,Supplies and Services,"9,576.00",Mar-22
Slough Borough Council,804687,Optalis Limited,M42E,Adult Social Care Operations,Supplies and Services,"5,642.13",Mar-22
Slough Borough Council,804687,Optalis Limited,M42E,Adult Social Care Operations,Supplies and Services,"4,807.26",Mar-22
Slough Borough Council,803490,Optimum Specialised Home Limited,B298,Finance,Supplies and Services,511.32,Mar-22
Slough Borough Council,803490,Optimum Specialised Home Limited,B298,Finance,Supplies and Services,719.62,Mar-22
Slough Borough Council,803490,Optimum Specialised Home Limited,M26E,Adult Social Care Operations,Supplies and Services,"2,100.00",Mar-22
Slough Borough Council,803490,Optimum Specialised Home Limited,M26E,Adult Social Care Operations,Supplies and Services,"1,795.00",Mar-22
Slough Borough Council,803490,Optimum Specialised Home Limited,M26E,Adult Social Care Operations,Supplies and Services,"2,100.00",Mar-22
Slough Borough Council,803490,Optimum Specialised Home Limited,M26E,Adult Social Care Operations,Supplies and Services,"2,100.00",Mar-22
Slough Borough Council,803490,Optimum Specialised Home Limited,M26E,Adult Social Care Operations,Supplies and Services,"1,795.00",Mar-22
Slough Borough Council,803490,Optimum Specialised Home Limited,M26E,Adult Social Care Operations,Supplies and Services,"1,795.00",Mar-22
Slough Borough Council,803490,Optimum Specialised Home Limited,M26E,Adult Social Care Operations,Supplies and Services,"1,795.00",Mar-22
Slough Borough Council,803490,Optimum Specialised Home Limited,M26E,Adult Social Care Operations,Supplies and Services,"2,100.00",Mar-22
Slough Borough Council,805804,OPTIONS AUTISM SERVICES LIMITED,F558,DSG - High Needs Block,Supplies and Services,"3,604.00",Mar-22
Slough Borough Council,1629,Opus Energy Limited,H205,Housing (People) Services,Premises,"5,847.82",Mar-22
Slough Borough Council,1629,Opus Energy Limited,K526,Building Management,Premises,"9,492.68",Mar-22
Slough Borough Council,1629,Opus Energy Limited,K526,Building Management,Premises,"20,893.49",Mar-22
Slough Borough Council,803960,Orchard Hill College,F462,DSG - High Needs Block,Supplies and Services,"17,257.79",Mar-22
Slough Borough Council,805011,Osborne Property Services Limited,J607,HDC Housing Development,Premises,"130,041.55",Mar-22
Slough Borough Council,805011,Osborne Property Services Limited,J607,HDC Housing Development,Premises,"140,772.36",Mar-22
Slough Borough Council,805011,Osborne Property Services Limited,J607,HDC Housing Development,Premises,"45,059.95",Mar-22
Slough Borough Council,805011,Osborne Property Services Limited,J607,HDC Housing Development,Supplies and Services,"121,692.77",Mar-22
Slough Borough Council,805011,Osborne Property Services Limited,P415,Capital,Capital Charges,"27,210.95",Mar-22
Slough Borough Council,805011,Osborne Property Services Limited,P415,Capital,Capital Charges,"1,976.43",Mar-22
Slough Borough Council,805011,Osborne Property Services Limited,P547,Capital,Capital Charges,"48,282.42",Mar-22
Slough Borough Council,805011,Osborne Property Services Limited,J606,HDC Housing Development,Supplies and Services,"245,018.05",Mar-22
Slough Borough Council,3371,Our Lady Of Peace Catholic Primary and Nursery School,E349,DSG - Schools,Supplies and Services,"35,143.43",Mar-22
Slough Borough Council,680,Oxford House Community Care,A07R,Adult Social Care Operations,Supplies and Services,"1,209.71",Mar-22
Slough Borough Council,680,Oxford House Community Care,M44C,Adult Social Care Operations,Supplies and Services,"1,592.51",Mar-22
Slough Borough Council,680,Oxford House Community Care,M44C,Adult Social Care Operations,Supplies and Services,"2,694.83",Mar-22
Slough Borough Council,680,Oxford House Community Care,M44C,Adult Social Care Operations,Supplies and Services,840.71,Mar-22
Slough Borough Council,680,Oxford House Community Care,M44C,Adult Social Care Operations,Supplies and Services,"2,541.76",Mar-22
Slough Borough Council,680,Oxford House Community Care,M44C,Adult Social Care Operations,Supplies and Services,566.67,Mar-22
Slough Borough Council,680,Oxford House Community Care,M44C,Adult Social Care Operations,Supplies and Services,"1,219.09",Mar-22
Slough Borough Council,680,Oxford House Community Care,M44C,Adult Social Care Operations,Supplies and Services,739.81,Mar-22
Slough Borough Council,680,Oxford House Community Care,M44C,Adult Social Care Operations,Supplies and Services,"1,085.34",Mar-22
Slough Borough Council,680,Oxford House Community Care,M44C,Adult Social Care Operations,Supplies and Services,"1,215.87",Mar-22
Slough Borough Council,680,Oxford House Community Care,M44C,Adult Social Care Operations,Supplies and Services,"1,215.34",Mar-22
Slough Borough Council,680,Oxford House Community Care,M44C,Adult Social Care Operations,Supplies and Services,"1,122.02",Mar-22
Slough Borough Council,680,Oxford House Community Care,M44C,Adult Social Care Operations,Supplies and Services,"2,163.99",Mar-22
Slough Borough Council,680,Oxford House Community Care,M44C,Adult Social Care Operations,Supplies and Services,792.59,Mar-22
Slough Borough Council,680,Oxford House Community Care,M44C,Adult Social Care Operations,Supplies and Services,861.22,Mar-22
Slough Borough Council,680,Oxford House Community Care,M44C,Adult Social Care Operations,Supplies and Services,961.01,Mar-22
Slough Borough Council,680,Oxford House Community Care,M44C,Adult Social Care Operations,Supplies and Services,"2,239.03",Mar-22
Slough Borough Council,680,Oxford House Community Care,M44C,Adult Social Care Operations,Supplies and Services,"1,207.95",Mar-22
Slough Borough Council,680,Oxford House Community Care,M44C,Adult Social Care Operations,Supplies and Services,"2,444.65",Mar-22
Slough Borough Council,680,Oxford House Community Care,M44C,Adult Social Care Operations,Supplies and Services,"1,137.30",Mar-22
Slough Borough Council,680,Oxford House Community Care,M44D,Adult Social Care Operations,Supplies and Services,611.01,Mar-22
Slough Borough Council,680,Oxford House Community Care,M44D,Adult Social Care Operations,Supplies and Services,632.14,Mar-22
Slough Borough Council,680,Oxford House Community Care,M44D,Adult Social Care Operations,Supplies and Services,734.21,Mar-22
Slough Borough Council,680,Oxford House Community Care,M44D,Adult Social Care Operations,Supplies and Services,"1,091.21",Mar-22
Slough Borough Council,680,Oxford House Community Care,M44D,Adult Social Care Operations,Supplies and Services,567.54,Mar-22
Slough Borough Council,680,Oxford House Community Care,M45C,Adult Social Care Operations,Supplies and Services,683.48,Mar-22
Slough Borough Council,680,Oxford House Community Care,M47D,Adult Social Care Operations,Supplies and Services,633.60,Mar-22
Slough Borough Council,680,Oxford House Community Care,M48C,Adult Social Care Operations,Supplies and Services,"1,091.20",Mar-22
Slough Borough Council,680,Oxford House Community Care,M48C,Adult Social Care Operations,Supplies and Services,949.22,Mar-22
Slough Borough Council,680,Oxford House Community Care,M48C,Adult Social Care Operations,Supplies and Services,739.81,Mar-22
Slough Borough Council,518,Oxford House Nursing Home,B298,Finance,Supplies and Services,"2,897.50",Mar-22
Slough Borough Council,518,Oxford House Nursing Home,M18C,Adult Social Care Operations,Supplies and Services,"45,789.00",Mar-22
Slough Borough Council,518,Oxford House Nursing Home,M28C,Adult Social Care Operations,Supplies and Services,"3,052.60",Mar-22
Slough Borough Council,518,Oxford House Nursing Home,M28C,Adult Social Care Operations,Supplies and Services,"3,052.60",Mar-22
Slough Borough Council,518,Oxford House Nursing Home,M28C,Adult Social Care Operations,Supplies and Services,"3,052.60",Mar-22
Slough Borough Council,518,Oxford House Nursing Home,M28C,Adult Social Care Operations,Supplies and Services,"3,052.60",Mar-22
Slough Borough Council,518,Oxford House Nursing Home,M28C,Adult Social Care Operations,Supplies and Services,"3,052.60",Mar-22
Slough Borough Council,3271,Partnership In Care Ltd,M27F,Adult Social Care Operations,Supplies and Services,"4,072.78",Mar-22
Slough Borough Council,3271,Partnership In Care Ltd,M27F,Adult Social Care Operations,Supplies and Services,"3,678.64",Mar-22
Slough Borough Council,2509,Parvaaz Project,M44E,Adult Social Care Operations,Supplies and Services,585.00,Mar-22
Slough Borough Council,2509,Parvaaz Project,M44E,Adult Social Care Operations,Supplies and Services,585.00,Mar-22
Slough Borough Council,2509,Parvaaz Project,M44E,Adult Social Care Operations,Supplies and Services,585.00,Mar-22
Slough Borough Council,2509,Parvaaz Project,M44E,Adult Social Care Operations,Supplies and Services,585.00,Mar-22
Slough Borough Council,2509,Parvaaz Project,M50E,Adult Social Care Operations,Supplies and Services,736.00,Mar-22
Slough Borough Council,2509,Parvaaz Project,M50E,Adult Social Care Operations,Supplies and Services,736.00,Mar-22
Slough Borough Council,2509,Parvaaz Project,M50E,Adult Social Care Operations,Supplies and Services,736.00,Mar-22
Slough Borough Council,2509,Parvaaz Project,M50E,Adult Social Care Operations,Supplies and Services,736.00,Mar-22
Slough Borough Council,824,Penn Wood Primary and Nursery School,E459,DSG - Schools,Supplies and Services,"323,290.61",Mar-22
Slough Borough Council,807611,Peopletoo Ltd,A01D,Adult Social Care Operations,Supplies and Services,"6,000.00",Mar-22
Slough Borough Council,807611,Peopletoo Ltd,A01D,Adult Social Care Operations,Supplies and Services,"8,380.00",Mar-22
Slough Borough Council,807611,Peopletoo Ltd,A01D,Adult Social Care Operations,Supplies and Services,"58,085.00",Mar-22
Slough Borough Council,1504,Permanent Futures Limited,F640,Inclusion,Agency Staff,"1,500.00",Mar-22
Slough Borough Council,1504,Permanent Futures Limited,P331,Capital,Supplies and Services,"10,175.00",Mar-22
Slough Borough Council,803786,Phillipa Holliday,C322,Communities and Leisure,Supplies and Services,"1,729.00",Mar-22
Slough Borough Council,807727,Phoenix Infant Academy c/o Thames Learning Trust,E289,DSG - Schools,Supplies and Services,"19,833.33",Mar-22
Slough Borough Council,805351,Pield Heath House School,F462,DSG - High Needs Block,Supplies and Services,"47,420.58",Mar-22
Slough Borough Council,3359,Pippins School,E379,DSG - Schools,Supplies and Services,"19,444.99",Mar-22
Slough Borough Council,807120,PJ Care Limited,M15D,Adult Social Care Operations,Supplies and Services,"9,831.65",Mar-22
Slough Borough Council,3644,Poppy Cottage,M42E,Adult Social Care Operations,Supplies and Services,"6,159.00",Mar-22
Slough Borough Council,3644,Poppy Cottage,M42E,Adult Social Care Operations,Supplies and Services,"6,159.00",Mar-22
Slough Borough Council,1054,Powerleague Fives Ltd,C406,Communities and Leisure,#N/A,620.00,Mar-22
Slough Borough Council,803188,Pre Paid Financial Services Ltd,A05C,Adult Social Care Commissioning,Supplies and Services,"2,050.80",Mar-22
Slough Borough Council,803188,Pre Paid Financial Services Ltd,A05C,Adult Social Care Commissioning,Supplies and Services,971.00,Mar-22
Slough Borough Council,803188,Pre Paid Financial Services Ltd,A01D,Adult Social Care Operations,Supplies and Services,624.93,Mar-22
Slough Borough Council,804812,Precise Media Monitoring,B252,Business Services,Supplies and Services,"9,250.00",Mar-22
Slough Borough Council,849,Priory Primary School,E389,DSG - Schools,Supplies and Services,"518,800.69",Mar-22
Slough Borough Council,805500,Privilege Care Ltd,B298,Finance,Supplies and Services,"1,163.35",Mar-22
Slough Borough Council,805500,Privilege Care Ltd,B298,Finance,Supplies and Services,"1,275.73",Mar-22
Slough Borough Council,803537,PROLUDIC LTD,P880,Capital,Capital Charges,"88,532.15",Mar-22
Slough Borough Council,803537,PROLUDIC LTD,P880,Capital,Capital Charges,"22,629.84",Mar-22
Slough Borough Council,803537,PROLUDIC LTD,P880,Capital,Capital Charges,"62,657.18",Mar-22
Slough Borough Council,803537,PROLUDIC LTD,P880,Capital,Capital Charges,"27,520.55",Mar-22
Slough Borough Council,803537,PROLUDIC LTD,P880,Capital,Capital Charges,"28,517.40",Mar-22
Slough Borough Council,803537,PROLUDIC LTD,P880,Capital,Capital Charges,"24,480.52",Mar-22
Slough Borough Council,803537,PROLUDIC LTD,P880,Capital,Capital Charges,"30,969.74",Mar-22
Slough Borough Council,803537,PROLUDIC LTD,C001,Communities and Leisure,Supplies and Services,"21,117.18",Mar-22
Slough Borough Council,1138,Qed Slough Ltd,F868,"Children, Learning and Skills",Supplies and Services,"5,000.00",Mar-22
Slough Borough Council,1138,Qed Slough Ltd,F868,"Children, Learning and Skills",Supplies and Services,"577,126.51",Mar-22
Slough Borough Council,1138,Qed Slough Ltd,F868,"Children, Learning and Skills",Supplies and Services,"4,332.48",Mar-22
Slough Borough Council,2376,Quality Care Homes Uk Ltd,M26E,Adult Social Care Operations,Supplies and Services,"1,800.00",Mar-22
Slough Borough Council,2376,Quality Care Homes Uk Ltd,M26E,Adult Social Care Operations,Supplies and Services,"1,800.00",Mar-22
Slough Borough Council,2376,Quality Care Homes Uk Ltd,M26E,Adult Social Care Operations,Supplies and Services,"1,800.00",Mar-22
Slough Borough Council,2376,Quality Care Homes Uk Ltd,M26E,Adult Social Care Operations,Supplies and Services,"1,800.00",Mar-22
Slough Borough Council,1884,Queensmead School,F462,DSG - High Needs Block,Supplies and Services,"26,075.00",Mar-22
Slough Borough Council,1884,Queensmead School,F462,DSG - High Needs Block,Supplies and Services,"26,075.00",Mar-22
Slough Borough Council,1884,Queensmead School,F462,DSG - High Needs Block,Supplies and Services,"34,012.00",Mar-22
Slough Borough Council,808200,Quest Recovery Services Ltd,M44C,Adult Social Care Operations,Supplies and Services,832.00,Mar-22
Slough Borough Council,808200,Quest Recovery Services Ltd,M44C,Adult Social Care Operations,Supplies and Services,"2,016.00",Mar-22
Slough Borough Council,808200,Quest Recovery Services Ltd,M44E,Adult Social Care Operations,Supplies and Services,"1,792.00",Mar-22
Slough Borough Council,805978,Quickscore,B179,Business Services,External Receipts,"1,800.00",Mar-22
Slough Borough Council,2685,R.E.A.C.H,B298,Finance,Supplies and Services,"1,022.65",Mar-22
Slough Borough Council,2685,R.E.A.C.H,B298,Finance,Supplies and Services,959.49,Mar-22
Slough Borough Council,2685,R.E.A.C.H,B298,Finance,Supplies and Services,681.76,Mar-22
Slough Borough Council,2685,R.E.A.C.H,B298,Finance,Supplies and Services,959.49,Mar-22
Slough Borough Council,2685,R.E.A.C.H,B298,Finance,Supplies and Services,681.76,Mar-22
Slough Borough Council,2685,R.E.A.C.H,B298,Finance,Supplies and Services,"1,439.23",Mar-22
Slough Borough Council,2685,R.E.A.C.H,M26E,Adult Social Care Operations,Supplies and Services,"7,404.56",Mar-22
Slough Borough Council,2685,R.E.A.C.H,M26E,Adult Social Care Operations,Supplies and Services,"5,928.12",Mar-22
Slough Borough Council,2685,R.E.A.C.H,M26E,Adult Social Care Operations,Supplies and Services,"7,483.72",Mar-22
Slough Borough Council,2685,R.E.A.C.H,M26E,Adult Social Care Operations,Supplies and Services,"5,261.44",Mar-22
Slough Borough Council,2685,R.E.A.C.H,M26E,Adult Social Care Operations,External Receipts,-608.80,Mar-22
Slough Borough Council,1305,Rackspace Limited,B282,Digital and Strategic IT,Supplies and Services,"4,569.82",Mar-22
Slough Borough Council,805444,Reading Transport Ltd,D512,Major Infrastructure Projects,Supplies and Services,"7,919.67",Mar-22
Slough Borough Council,806766,Red Brick Care Ltd,M44C,Adult Social Care Operations,Supplies and Services,"2,057.00",Mar-22
Slough Borough Council,806766,Red Brick Care Ltd,M44C,Adult Social Care Operations,Supplies and Services,"1,071.00",Mar-22
Slough Borough Council,805153,Redacted,F123,Schools,Supplies and Services,"2,187.00",Mar-22
Slough Borough Council,804359,Redacted,F123,Schools,Supplies and Services,762.48,Mar-22
Slough Borough Council,808246,Redacted,F123,Schools,Supplies and Services,760.00,Mar-22
Slough Borough Council,807635,Redacted,F123,Schools,Supplies and Services,702.00,Mar-22
Slough Borough Council,804597,Redline Buses Ltd,D512,Major Infrastructure Projects,Supplies and Services,"5,403.78",Mar-22
Slough Borough Council,806854,Reed Specialist Recruitment,B033,People,Salaries and Wages,622.50,Mar-22
Slough Borough Council,806854,Reed Specialist Recruitment,B033,People,Salaries and Wages,778.13,Mar-22
Slough Borough Council,806854,Reed Specialist Recruitment,B033,People,Salaries and Wages,778.13,Mar-22
Slough Borough Council,807562,Renovo Farnborough Limited,M25D,Adult Social Care Operations,Supplies and Services,"8,502.24",Mar-22
Slough Borough Council,3486,Response Organisation,M42F,Adult Social Care Operations,Supplies and Services,"1,274.28",Mar-22
Slough Borough Council,3486,Response Organisation,M42F,Adult Social Care Operations,Supplies and Services,"1,179.64",Mar-22
Slough Borough Council,1893,Ricardo-Aea Limited,D308,Major Infrastructure Projects,#N/A,"16,392.18",Mar-22
Slough Borough Council,1893,Ricardo-Aea Limited,D308,Major Infrastructure Projects,#N/A,870.00,Mar-22
Slough Borough Council,1893,Ricardo-Aea Limited,P155,Capital,Capital Charges,"4,237.50",Mar-22
Slough Borough Council,2529,Richmond Fellowship,M27F,Adult Social Care Operations,Supplies and Services,"1,996.43",Mar-22
Slough Borough Council,2529,Richmond Fellowship,M27F,Adult Social Care Operations,Supplies and Services,537.50,Mar-22
Slough Borough Council,2529,Richmond Fellowship,M27F,Adult Social Care Operations,Supplies and Services,537.50,Mar-22
Slough Borough Council,2529,Richmond Fellowship,M27F,Adult Social Care Operations,Supplies and Services,537.50,Mar-22
Slough Borough Council,2529,Richmond Fellowship,M27F,Adult Social Care Operations,Supplies and Services,537.50,Mar-22
Slough Borough Council,2529,Richmond Fellowship,M27F,Adult Social Care Operations,Supplies and Services,537.50,Mar-22
Slough Borough Council,2529,Richmond Fellowship,M27F,Adult Social Care Operations,Supplies and Services,537.50,Mar-22
Slough Borough Council,2529,Richmond Fellowship,M27F,Adult Social Care Operations,Supplies and Services,537.50,Mar-22
Slough Borough Council,2529,Richmond Fellowship,M27F,Adult Social Care Operations,Supplies and Services,537.50,Mar-22
Slough Borough Council,2529,Richmond Fellowship,M27F,Adult Social Care Operations,Supplies and Services,537.50,Mar-22
Slough Borough Council,2529,Richmond Fellowship,M27F,Adult Social Care Operations,Supplies and Services,537.50,Mar-22
Slough Borough Council,2529,Richmond Fellowship,M27F,Adult Social Care Operations,Supplies and Services,537.50,Mar-22
Slough Borough Council,2529,Richmond Fellowship,M27F,Adult Social Care Operations,Supplies and Services,537.50,Mar-22
Slough Borough Council,2529,Richmond Fellowship,M27F,Adult Social Care Operations,Supplies and Services,537.50,Mar-22
Slough Borough Council,2529,Richmond Fellowship,M27F,Adult Social Care Operations,Supplies and Services,537.50,Mar-22
Slough Borough Council,2529,Richmond Fellowship,M27F,Adult Social Care Operations,Supplies and Services,537.50,Mar-22
Slough Borough Council,2529,Richmond Fellowship,M27F,Adult Social Care Operations,Supplies and Services,537.50,Mar-22
Slough Borough Council,2529,Richmond Fellowship,M27F,Adult Social Care Operations,Supplies and Services,537.50,Mar-22
Slough Borough Council,2529,Richmond Fellowship,M27F,Adult Social Care Operations,Supplies and Services,537.50,Mar-22
Slough Borough Council,2529,Richmond Fellowship,M27F,Adult Social Care Operations,Supplies and Services,537.50,Mar-22
Slough Borough Council,2529,Richmond Fellowship,M27F,Adult Social Care Operations,Supplies and Services,537.50,Mar-22
Slough Borough Council,2529,Richmond Fellowship,M27F,Adult Social Care Operations,Supplies and Services,537.50,Mar-22
Slough Borough Council,2529,Richmond Fellowship,M27F,Adult Social Care Operations,Supplies and Services,537.50,Mar-22
Slough Borough Council,2529,Richmond Fellowship,M27F,Adult Social Care Operations,Supplies and Services,537.50,Mar-22
Slough Borough Council,2529,Richmond Fellowship,M27F,Adult Social Care Operations,Supplies and Services,537.50,Mar-22
Slough Borough Council,2529,Richmond Fellowship,M27F,Adult Social Care Operations,Supplies and Services,537.50,Mar-22
Slough Borough Council,2529,Richmond Fellowship,M27F,Adult Social Care Operations,Supplies and Services,537.50,Mar-22
Slough Borough Council,2529,Richmond Fellowship,M27F,Adult Social Care Operations,Supplies and Services,537.50,Mar-22
Slough Borough Council,2529,Richmond Fellowship,M27F,Adult Social Care Operations,Supplies and Services,537.50,Mar-22
Slough Borough Council,2529,Richmond Fellowship,M27F,Adult Social Care Operations,Supplies and Services,537.50,Mar-22
Slough Borough Council,2529,Richmond Fellowship,M27F,Adult Social Care Operations,Supplies and Services,537.50,Mar-22
Slough Borough Council,2529,Richmond Fellowship,M27F,Adult Social Care Operations,Supplies and Services,537.50,Mar-22
Slough Borough Council,2529,Richmond Fellowship,M27F,Adult Social Care Operations,Supplies and Services,537.50,Mar-22
Slough Borough Council,806930,Roselight Healthcare Service Limited,M42F,Adult Social Care Operations,Supplies and Services,"2,360.00",Mar-22
Slough Borough Council,806930,Roselight Healthcare Service Limited,M42F,Adult Social Care Operations,Supplies and Services,"3,340.00",Mar-22
Slough Borough Council,806930,Roselight Healthcare Service Limited,M44F,Adult Social Care Operations,Supplies and Services,"3,340.00",Mar-22
Slough Borough Council,806930,Roselight Healthcare Service Limited,M44F,Adult Social Care Operations,Supplies and Services,"2,600.00",Mar-22
Slough Borough Council,806930,Roselight Healthcare Service Limited,M44F,Adult Social Care Operations,Supplies and Services,"1,506.00",Mar-22
Slough Borough Council,806930,Roselight Healthcare Service Limited,M44F,Adult Social Care Operations,Supplies and Services,"1,930.00",Mar-22
Slough Borough Council,806930,Roselight Healthcare Service Limited,M44F,Adult Social Care Operations,Supplies and Services,"1,722.00",Mar-22
Slough Borough Council,804860,Royal Masonic Benevolent Institution,M18C,Adult Social Care Operations,Supplies and Services,"4,207.14",Mar-22
Slough Borough Council,2168,RSM UK Risk Assurance Services LLP,B146,Finance & Commercial,Supplies and Services,"22,850.00",Mar-22
Slough Borough Council,2168,RSM UK Risk Assurance Services LLP,B146,Finance & Commercial,Supplies and Services,"11,325.00",Mar-22
Slough Borough Council,2168,RSM UK Risk Assurance Services LLP,B146,Finance & Commercial,Supplies and Services,"27,375.00",Mar-22
Slough Borough Council,2168,RSM UK Risk Assurance Services LLP,B146,Finance & Commercial,Supplies and Services,"13,025.00",Mar-22
Slough Borough Council,807425,Ruskin Mill Trust Ltd,F462,DSG - High Needs Block,Supplies and Services,"69,598.00",Mar-22
Slough Borough Council,842,Ryvers Primary School,E399,DSG - Schools,Supplies and Services,"13,225.41",Mar-22
Slough Borough Council,805875,Salutem LD Bidco IV Limited T/A Ambito Care,M25D,Adult Social Care Operations,Supplies and Services,"6,642.86",Mar-22
Slough Borough Council,805875,Salutem LD Bidco IV Limited T/A Ambito Care,M26E,Adult Social Care Operations,Supplies and Services,"4,494.56",Mar-22
Slough Borough Council,805875,Salutem LD Bidco IV Limited T/A Ambito Care,M26E,Adult Social Care Operations,External Receipts,-611.59,Mar-22
Slough Borough Council,808259,Sandy Lane Primary School,F552,DSG - High Needs Block,Supplies and Services,"10,025.00",Mar-22
Slough Borough Council,925,Sara Wood,D320,Regulatory Services,Supplies and Services,825.00,Mar-22
Slough Borough Council,925,Sara Wood,D320,Regulatory Services,Supplies and Services,775.00,Mar-22
Slough Borough Council,925,Sara Wood,D320,Regulatory Services,Supplies and Services,625.00,Mar-22
Slough Borough Council,759,Segro Plc,B082,Place Strategy,#N/A,"3,076.63",Mar-22
Slough Borough Council,803999,Sequence Care Group,M26E,Adult Social Care Operations,Supplies and Services,"12,228.79",Mar-22
Slough Borough Council,2585,Seymour House,B298,Finance,Supplies and Services,937.43,Mar-22
Slough Borough Council,2585,Seymour House,B298,Finance,Supplies and Services,"1,319.29",Mar-22
Slough Borough Council,2585,Seymour House,B324,Finance,Supplies and Services,"2,651.57",Mar-22
Slough Borough Council,2585,Seymour House,M26E,Adult Social Care Operations,Supplies and Services,"5,093.28",Mar-22
Slough Borough Council,2585,Seymour House,M26E,Adult Social Care Operations,Supplies and Services,"1,344.00",Mar-22
Slough Borough Council,2585,Seymour House,M26E,Adult Social Care Operations,Supplies and Services,"5,912.30",Mar-22
Slough Borough Council,2585,Seymour House,M26E,Adult Social Care Operations,Supplies and Services,"4,470.48",Mar-22
Slough Borough Council,2585,Seymour House,M42E,Adult Social Care Operations,Supplies and Services,"2,150.40",Mar-22
Slough Borough Council,2585,Seymour House,M26E,Adult Social Care Operations,External Receipts,-537.40,Mar-22
Slough Borough Council,3119,Skills For Care,A05C,Adult Social Care Commissioning,Indirect Employee Expenses,"1,773.00",Mar-22
Slough Borough Council,1459,Slough And Eton C E School,E769,DSG - Schools,Supplies and Services,"38,168.34",Mar-22
Slough Borough Council,807834,Slough Children First,M99C,"Children, Learning and Skills",Supplies and Services,"-74,934.30",Mar-22
Slough Borough Council,807834,Slough Children First,M99C,"Children, Learning and Skills",Supplies and Services,"-2,660,578.92",Mar-22
Slough Borough Council,807834,Slough Children First,M99C,"Children, Learning and Skills",Supplies and Services,"-2,353,183.71",Mar-22
Slough Borough Council,807834,Slough Children First,F388,Children & Families,Salaries and Wages,"25,145.64",Mar-22
Slough Borough Council,807834,Slough Children First,F388,Children & Families,Salaries and Wages,"4,190.94",Mar-22
Slough Borough Council,2466,Slough Childrens Services Trust Limited,H055,Finance & Commercial,Supplies and Services,"20,277.30",Mar-22
Slough Borough Council,276,Slough Community Transport & Shopmobility,F123,Schools,Supplies and Services,"20,570.74",Mar-22
Slough Borough Council,1913,Slough Crossroads Caring For Carers,B298,Finance,Supplies and Services,"3,572.06",Mar-22
Slough Borough Council,1913,Slough Crossroads Caring For Carers,B298,Finance,Supplies and Services,849.01,Mar-22
Slough Borough Council,1913,Slough Crossroads Caring For Carers,M44C,Adult Social Care Operations,Supplies and Services,660.24,Mar-22
Slough Borough Council,1913,Slough Crossroads Caring For Carers,M44C,Adult Social Care Operations,Supplies and Services,924.56,Mar-22
Slough Borough Council,1913,Slough Crossroads Caring For Carers,M44C,Adult Social Care Operations,Supplies and Services,660.24,Mar-22
Slough Borough Council,1913,Slough Crossroads Caring For Carers,M44C,Adult Social Care Operations,Supplies and Services,638.24,Mar-22
Slough Borough Council,1913,Slough Crossroads Caring For Carers,M44C,Adult Social Care Operations,Supplies and Services,643.73,Mar-22
Slough Borough Council,1913,Slough Crossroads Caring For Carers,M44D,Adult Social Care Operations,Supplies and Services,627.06,Mar-22
Slough Borough Council,1913,Slough Crossroads Caring For Carers,M44E,Adult Social Care Operations,Supplies and Services,660.40,Mar-22
Slough Borough Council,1913,Slough Crossroads Caring For Carers,M44E,Adult Social Care Operations,Supplies and Services,858.52,Mar-22
Slough Borough Council,1913,Slough Crossroads Caring For Carers,M44E,Adult Social Care Operations,Supplies and Services,990.60,Mar-22
Slough Borough Council,1913,Slough Crossroads Caring For Carers,M44E,Adult Social Care Operations,Supplies and Services,858.52,Mar-22
Slough Borough Council,1913,Slough Crossroads Caring For Carers,M44E,Adult Social Care Operations,Supplies and Services,660.40,Mar-22
Slough Borough Council,1913,Slough Crossroads Caring For Carers,M44E,Adult Social Care Operations,Supplies and Services,503.55,Mar-22
Slough Borough Council,1913,Slough Crossroads Caring For Carers,M44E,Adult Social Care Operations,Supplies and Services,660.40,Mar-22
Slough Borough Council,1913,Slough Crossroads Caring For Carers,M44E,Adult Social Care Operations,Supplies and Services,594.36,Mar-22
Slough Borough Council,1913,Slough Crossroads Caring For Carers,M44E,Adult Social Care Operations,Supplies and Services,619.12,Mar-22
Slough Borough Council,1913,Slough Crossroads Caring For Carers,M44E,Adult Social Care Operations,Supplies and Services,"1,584.96",Mar-22
Slough Borough Council,1913,Slough Crossroads Caring For Carers,M44E,Adult Social Care Operations,Supplies and Services,759.46,Mar-22
Slough Borough Council,1913,Slough Crossroads Caring For Carers,M44E,Adult Social Care Operations,Supplies and Services,990.60,Mar-22
Slough Borough Council,1913,Slough Crossroads Caring For Carers,M44E,Adult Social Care Operations,Supplies and Services,660.40,Mar-22
Slough Borough Council,1913,Slough Crossroads Caring For Carers,M44E,Adult Social Care Operations,Supplies and Services,908.05,Mar-22
Slough Borough Council,3011,Slough Urban Renewal Community Projects LLP,P575,Capital,Capital Charges,"12,247.62",Mar-22
Slough Borough Council,3011,Slough Urban Renewal Community Projects LLP,P575,Capital,Capital Charges,"42,688.92",Mar-22
Slough Borough Council,3011,Slough Urban Renewal Community Projects LLP,P575,Capital,Capital Charges,"8,793.19",Mar-22
Slough Borough Council,114,Solutions 4 Health Ltd,B310,Finance,Supplies and Services,"69,907.66",Mar-22
Slough Borough Council,114,Solutions 4 Health Ltd,B310,Finance,Supplies and Services,"73,887.25",Mar-22
Slough Borough Council,114,Solutions 4 Health Ltd,A09C,Adult Social Care Commissioning,Supplies and Services,"229,057.81",Mar-22
Slough Borough Council,114,Solutions 4 Health Ltd,A09C,Adult Social Care Commissioning,Supplies and Services,"60,000.00",Mar-22
Slough Borough Council,803165,St Anthony�s Catholic Primary School & Nursery,E409,DSG - Schools,Supplies and Services,"50,739.08",Mar-22
Slough Borough Council,3383,St Bernards Catholic Grammar School,E559,DSG - Schools,Supplies and Services,"456,445.85",Mar-22
Slough Borough Council,808250,St Elizabeth�s Centre,F462,DSG - High Needs Block,Supplies and Services,"20,735.22",Mar-22
Slough Borough Council,3547,St Ethelberts School,E419,DSG - Schools,Supplies and Services,"23,459.33",Mar-22
Slough Borough Council,1378,St Josephs Catholic High School,E569,DSG - Schools,Supplies and Services,"30,416.67",Mar-22
Slough Borough Council,807546,St Nicolas� CE Combined School,F552,DSG - High Needs Block,Supplies and Services,"5,000.00",Mar-22
Slough Borough Council,805867,ST VINCENTS SCHOOL FOR THE BLIND,F462,DSG - High Needs Block,Supplies and Services,"13,495.00",Mar-22
Slough Borough Council,808142,Step Together Ltd,M28E,Adult Social Care Operations,Supplies and Services,640.00,Mar-22
Slough Borough Council,2688,Sunnyside Nursing Home,M15D,Adult Social Care Operations,Supplies and Services,"2,991.76",Mar-22
Slough Borough Council,293,Surecare Slough,A07R,Adult Social Care Operations,Supplies and Services,"-1,594.83",Mar-22
Slough Borough Council,293,Surecare Slough,A07R,Adult Social Care Operations,Supplies and Services,"2,674.56",Mar-22
Slough Borough Council,293,Surecare Slough,A07R,Adult Social Care Operations,Supplies and Services,"2,674.00",Mar-22
Slough Borough Council,293,Surecare Slough,A07R,Adult Social Care Operations,Supplies and Services,"2,406.60",Mar-22
Slough Borough Council,293,Surecare Slough,A07R,Adult Social Care Operations,Supplies and Services,630.30,Mar-22
Slough Borough Council,293,Surecare Slough,A07R,Adult Social Care Operations,Supplies and Services,547.59,Mar-22
Slough Borough Council,293,Surecare Slough,A07R,Adult Social Care Operations,Supplies and Services,"2,185.99",Mar-22
Slough Borough Council,293,Surecare Slough,A07R,Adult Social Care Operations,Supplies and Services,"2,674.00",Mar-22
Slough Borough Council,293,Surecare Slough,A07R,Adult Social Care Operations,Supplies and Services,"2,139.20",Mar-22
Slough Borough Council,293,Surecare Slough,A07R,Adult Social Care Operations,Supplies and Services,532.81,Mar-22
Slough Borough Council,293,Surecare Slough,A07R,Adult Social Care Operations,Supplies and Services,"1,451.76",Mar-22
Slough Borough Council,293,Surecare Slough,M44C,Adult Social Care Operations,Supplies and Services,"1,804.95",Mar-22
Slough Borough Council,293,Surecare Slough,M44C,Adult Social Care Operations,Supplies and Services,"1,993.62",Mar-22
Slough Borough Council,293,Surecare Slough,M44C,Adult Social Care Operations,Supplies and Services,"2,405.58",Mar-22
Slough Borough Council,293,Surecare Slough,M44C,Adult Social Care Operations,Supplies and Services,"2,406.60",Mar-22
Slough Borough Council,293,Surecare Slough,M44C,Adult Social Care Operations,Supplies and Services,"2,405.60",Mar-22
Slough Borough Council,293,Surecare Slough,M44C,Adult Social Care Operations,Supplies and Services,"2,674.00",Mar-22
Slough Borough Council,293,Surecare Slough,M44C,Adult Social Care Operations,Supplies and Services,"2,483.00",Mar-22
Slough Borough Council,293,Surecare Slough,M44C,Adult Social Care Operations,Supplies and Services,802.20,Mar-22
Slough Borough Council,293,Surecare Slough,M44C,Adult Social Care Operations,Supplies and Services,"1,184.20",Mar-22
Slough Borough Council,293,Surecare Slough,M44C,Adult Social Care Operations,Supplies and Services,"2,674.00",Mar-22
Slough Borough Council,293,Surecare Slough,M44C,Adult Social Care Operations,Supplies and Services,"2,406.60",Mar-22
Slough Borough Council,293,Surecare Slough,M44C,Adult Social Care Operations,Supplies and Services,534.80,Mar-22
Slough Borough Council,293,Surecare Slough,M44C,Adult Social Care Operations,Supplies and Services,"2,941.68",Mar-22
Slough Borough Council,293,Surecare Slough,M44C,Adult Social Care Operations,Supplies and Services,"1,203.30",Mar-22
Slough Borough Council,293,Surecare Slough,M44C,Adult Social Care Operations,Supplies and Services,783.10,Mar-22
Slough Borough Council,293,Surecare Slough,M44C,Adult Social Care Operations,Supplies and Services,"2,406.60",Mar-22
Slough Borough Council,293,Surecare Slough,M44C,Adult Social Care Operations,Supplies and Services,"2,941.40",Mar-22
Slough Borough Council,293,Surecare Slough,M44C,Adult Social Care Operations,Supplies and Services,"1,337.00",Mar-22
Slough Borough Council,293,Surecare Slough,M44C,Adult Social Care Operations,Supplies and Services,668.50,Mar-22
Slough Borough Council,293,Surecare Slough,M44C,Adult Social Care Operations,Supplies and Services,"2,502.10",Mar-22
Slough Borough Council,293,Surecare Slough,M44C,Adult Social Care Operations,Supplies and Services,935.90,Mar-22
Slough Borough Council,293,Surecare Slough,M44C,Adult Social Care Operations,Supplies and Services,534.80,Mar-22
Slough Borough Council,293,Surecare Slough,M44C,Adult Social Care Operations,Supplies and Services,"2,406.60",Mar-22
Slough Borough Council,293,Surecare Slough,M44C,Adult Social Care Operations,Supplies and Services,"2,406.60",Mar-22
Slough Borough Council,293,Surecare Slough,M44C,Adult Social Care Operations,Supplies and Services,"1,060.05",Mar-22
Slough Borough Council,293,Surecare Slough,M44C,Adult Social Care Operations,Supplies and Services,"1,337.84",Mar-22
Slough Borough Council,293,Surecare Slough,M44C,Adult Social Care Operations,Supplies and Services,955.45,Mar-22
Slough Borough Council,293,Surecare Slough,M44C,Adult Social Care Operations,Supplies and Services,"2,406.60",Mar-22
Slough Borough Council,293,Surecare Slough,M44C,Adult Social Care Operations,Supplies and Services,"1,413.09",Mar-22
Slough Borough Council,293,Surecare Slough,M44C,Adult Social Care Operations,Supplies and Services,"2,406.60",Mar-22
Slough Borough Council,293,Surecare Slough,M44C,Adult Social Care Operations,Supplies and Services,"2,674.00",Mar-22
Slough Borough Council,293,Surecare Slough,M44C,Adult Social Care Operations,Supplies and Services,"2,731.86",Mar-22
Slough Borough Council,293,Surecare Slough,M44C,Adult Social Care Operations,Supplies and Services,596.94,Mar-22
Slough Borough Council,293,Surecare Slough,M44C,Adult Social Care Operations,Supplies and Services,544.35,Mar-22
Slough Borough Council,293,Surecare Slough,M44C,Adult Social Care Operations,Supplies and Services,"1,052.97",Mar-22
Slough Borough Council,293,Surecare Slough,M44C,Adult Social Care Operations,Supplies and Services,"2,476.62",Mar-22
Slough Borough Council,293,Surecare Slough,M44C,Adult Social Care Operations,Supplies and Services,534.80,Mar-22
Slough Borough Council,293,Surecare Slough,M44C,Adult Social Care Operations,Supplies and Services,931.58,Mar-22
Slough Borough Council,293,Surecare Slough,M44C,Adult Social Care Operations,Supplies and Services,"1,184.34",Mar-22
Slough Borough Council,293,Surecare Slough,M44C,Adult Social Care Operations,Supplies and Services,"2,406.60",Mar-22
Slough Borough Council,293,Surecare Slough,M44C,Adult Social Care Operations,Supplies and Services,802.52,Mar-22
Slough Borough Council,293,Surecare Slough,M44C,Adult Social Care Operations,Supplies and Services,936.04,Mar-22
Slough Borough Council,293,Surecare Slough,M44C,Adult Social Care Operations,Supplies and Services,"2,406.60",Mar-22
Slough Borough Council,293,Surecare Slough,M44C,Adult Social Care Operations,Supplies and Services,"1,852.92",Mar-22
Slough Borough Council,293,Surecare Slough,M44C,Adult Social Care Operations,Supplies and Services,783.10,Mar-22
Slough Borough Council,293,Surecare Slough,M44C,Adult Social Care Operations,Supplies and Services,"2,406.60",Mar-22
Slough Borough Council,293,Surecare Slough,M44C,Adult Social Care Operations,Supplies and Services,"3,208.80",Mar-22
Slough Borough Council,293,Surecare Slough,M44C,Adult Social Care Operations,Supplies and Services,"1,203.30",Mar-22
Slough Borough Council,293,Surecare Slough,M44C,Adult Social Care Operations,Supplies and Services,597.01,Mar-22
Slough Borough Council,293,Surecare Slough,M44C,Adult Social Care Operations,Supplies and Services,668.50,Mar-22
Slough Borough Council,293,Surecare Slough,M44C,Adult Social Care Operations,Supplies and Services,"2,502.10",Mar-22
Slough Borough Council,293,Surecare Slough,M44C,Adult Social Care Operations,Supplies and Services,"2,941.40",Mar-22
Slough Borough Council,293,Surecare Slough,M44C,Adult Social Care Operations,Supplies and Services,"1,337.00",Mar-22
Slough Borough Council,293,Surecare Slough,M44C,Adult Social Care Operations,Supplies and Services,"1,184.20",Mar-22
Slough Borough Council,293,Surecare Slough,M44C,Adult Social Care Operations,Supplies and Services,534.80,Mar-22
Slough Borough Council,293,Surecare Slough,M44C,Adult Social Care Operations,Supplies and Services,"2,674.00",Mar-22
Slough Borough Council,293,Surecare Slough,M44C,Adult Social Care Operations,Supplies and Services,"1,260.60",Mar-22
Slough Borough Council,293,Surecare Slough,M44C,Adult Social Care Operations,Supplies and Services,"2,406.60",Mar-22
Slough Borough Council,293,Surecare Slough,M44C,Adult Social Care Operations,Supplies and Services,533.85,Mar-22
Slough Borough Council,293,Surecare Slough,M44C,Adult Social Care Operations,Supplies and Services,"1,069.60",Mar-22
Slough Borough Council,293,Surecare Slough,M44C,Adult Social Care Operations,Supplies and Services,574.63,Mar-22
Slough Borough Council,293,Surecare Slough,M44C,Adult Social Care Operations,Supplies and Services,935.90,Mar-22
Slough Borough Council,293,Surecare Slough,M44D,Adult Social Care Operations,Supplies and Services,"2,129.65",Mar-22
Slough Borough Council,293,Surecare Slough,M44D,Adult Social Care Operations,Supplies and Services,"1,337.00",Mar-22
Slough Borough Council,293,Surecare Slough,M44D,Adult Social Care Operations,Supplies and Services,"3,629.00",Mar-22
Slough Borough Council,293,Surecare Slough,M44D,Adult Social Care Operations,Supplies and Services,"2,139.20",Mar-22
Slough Borough Council,293,Surecare Slough,M44D,Adult Social Care Operations,Supplies and Services,"2,406.60",Mar-22
Slough Borough Council,293,Surecare Slough,M44D,Adult Social Care Operations,Supplies and Services,"1,222.40",Mar-22
Slough Borough Council,293,Surecare Slough,M44D,Adult Social Care Operations,Supplies and Services,"2,406.60",Mar-22
Slough Borough Council,293,Surecare Slough,M44D,Adult Social Care Operations,Supplies and Services,"1,582.54",Mar-22
Slough Borough Council,293,Surecare Slough,M44D,Adult Social Care Operations,Supplies and Services,"2,406.60",Mar-22
Slough Borough Council,293,Surecare Slough,M44D,Adult Social Care Operations,Supplies and Services,"1,872.08",Mar-22
Slough Borough Council,293,Surecare Slough,M44D,Adult Social Care Operations,Supplies and Services,"1,184.88",Mar-22
Slough Borough Council,293,Surecare Slough,M44D,Adult Social Care Operations,Supplies and Services,668.50,Mar-22
Slough Borough Council,293,Surecare Slough,M44D,Adult Social Care Operations,Supplies and Services,"2,406.60",Mar-22
Slough Borough Council,293,Surecare Slough,M44D,Adult Social Care Operations,Supplies and Services,"1,337.00",Mar-22
Slough Borough Council,293,Surecare Slough,M44D,Adult Social Care Operations,Supplies and Services,"1,222.40",Mar-22
Slough Borough Council,293,Surecare Slough,M44D,Adult Social Care Operations,Supplies and Services,"2,406.60",Mar-22
Slough Borough Council,293,Surecare Slough,M44D,Adult Social Care Operations,Supplies and Services,"3,629.00",Mar-22
Slough Borough Council,293,Surecare Slough,M44D,Adult Social Care Operations,Supplies and Services,"2,635.80",Mar-22
Slough Borough Council,293,Surecare Slough,M44D,Adult Social Care Operations,Supplies and Services,668.50,Mar-22
Slough Borough Council,293,Surecare Slough,M44D,Adult Social Care Operations,Supplies and Services,"2,406.60",Mar-22
Slough Borough Council,293,Surecare Slough,M44E,Adult Social Care Operations,Supplies and Services,687.60,Mar-22
Slough Borough Council,293,Surecare Slough,M44E,Adult Social Care Operations,Supplies and Services,802.20,Mar-22
Slough Borough Council,293,Surecare Slough,M44E,Adult Social Care Operations,Supplies and Services,687.60,Mar-22
Slough Borough Council,293,Surecare Slough,M44F,Adult Social Care Operations,Supplies and Services,687.60,Mar-22
Slough Borough Council,293,Surecare Slough,M45C,Adult Social Care Operations,Supplies and Services,971.25,Mar-22
Slough Borough Council,293,Surecare Slough,M45C,Adult Social Care Operations,Supplies and Services,903.72,Mar-22
Slough Borough Council,293,Surecare Slough,M45C,Adult Social Care Operations,Supplies and Services,"1,127.04",Mar-22
Slough Borough Council,293,Surecare Slough,M47D,Adult Social Care Operations,Supplies and Services,"2,406.60",Mar-22
Slough Borough Council,293,Surecare Slough,M47D,Adult Social Care Operations,Supplies and Services,"2,406.60",Mar-22
Slough Borough Council,293,Surecare Slough,M48C,Adult Social Care Operations,Supplies and Services,"2,950.55",Mar-22
Slough Borough Council,293,Surecare Slough,M48C,Adult Social Care Operations,Supplies and Services,"1,329.50",Mar-22
Slough Borough Council,293,Surecare Slough,M48C,Adult Social Care Operations,Supplies and Services,725.88,Mar-22
Slough Borough Council,293,Surecare Slough,M48C,Adult Social Care Operations,Supplies and Services,"2,656.17",Mar-22
Slough Borough Council,293,Surecare Slough,M48C,Adult Social Care Operations,Supplies and Services,"2,406.60",Mar-22
Slough Borough Council,293,Surecare Slough,M48C,Adult Social Care Operations,Supplies and Services,775.27,Mar-22
Slough Borough Council,293,Surecare Slough,M48C,Adult Social Care Operations,Supplies and Services,"1,375.48",Mar-22
Slough Borough Council,293,Surecare Slough,M48C,Adult Social Care Operations,Supplies and Services,"2,915.55",Mar-22
Slough Borough Council,805683,Team Carita DCS Limited,M44C,Adult Social Care Operations,Supplies and Services,"1,072.00",Mar-22
Slough Borough Council,805683,Team Carita DCS Limited,M44F,Adult Social Care Operations,Supplies and Services,896.00,Mar-22
Slough Borough Council,1596,Teleshore (Uk) Limited,D320,Regulatory Services,Supplies and Services,"3,781.00",Mar-22
Slough Borough Council,1596,Teleshore (Uk) Limited,D320,Regulatory Services,Supplies and Services,"1,464.01",Mar-22
Slough Borough Council,807878,Thames Valley Buses,D512,Major Infrastructure Projects,Supplies and Services,"10,701.00",Mar-22
Slough Borough Council,807878,Thames Valley Buses,D512,Major Infrastructure Projects,Supplies and Services,"6,911.55",Mar-22
Slough Borough Council,807878,Thames Valley Buses,D512,Major Infrastructure Projects,Supplies and Services,"6,642.00",Mar-22
Slough Borough Council,807878,Thames Valley Buses,D512,Major Infrastructure Projects,Supplies and Services,"6,911.55",Mar-22
Slough Borough Council,807878,Thames Valley Buses,D512,Major Infrastructure Projects,Supplies and Services,"1,750.58",Mar-22
Slough Borough Council,807878,Thames Valley Buses,D512,Major Infrastructure Projects,Supplies and Services,"6,911.55",Mar-22
Slough Borough Council,807878,Thames Valley Buses,D512,Major Infrastructure Projects,Supplies and Services,"6,911.55",Mar-22
Slough Borough Council,807878,Thames Valley Buses,D512,Major Infrastructure Projects,Supplies and Services,"1,751.08",Mar-22
Slough Borough Council,807878,Thames Valley Buses,D512,Major Infrastructure Projects,Supplies and Services,"1,792.08",Mar-22
Slough Borough Council,807878,Thames Valley Buses,D512,Major Infrastructure Projects,Supplies and Services,"1,908.08",Mar-22
Slough Borough Council,807878,Thames Valley Buses,D512,Major Infrastructure Projects,Supplies and Services,"1,792.58",Mar-22
Slough Borough Council,807878,Thames Valley Buses,D512,Major Infrastructure Projects,Supplies and Services,"6,911.55",Mar-22
Slough Borough Council,807878,Thames Valley Buses,D512,Major Infrastructure Projects,Supplies and Services,"6,911.55",Mar-22
Slough Borough Council,807878,Thames Valley Buses,D512,Major Infrastructure Projects,Supplies and Services,"1,734.58",Mar-22
Slough Borough Council,807878,Thames Valley Buses,D512,Major Infrastructure Projects,Supplies and Services,"1,825.68",Mar-22
Slough Borough Council,807878,Thames Valley Buses,D512,Major Infrastructure Projects,Supplies and Services,"1,835.08",Mar-22
Slough Borough Council,807878,Thames Valley Buses,D512,Major Infrastructure Projects,Supplies and Services,"6,911.55",Mar-22
Slough Borough Council,807878,Thames Valley Buses,D512,Major Infrastructure Projects,Supplies and Services,"5,535.00",Mar-22
Slough Borough Council,807878,Thames Valley Buses,D512,Major Infrastructure Projects,Supplies and Services,"4,797.00",Mar-22
Slough Borough Council,807878,Thames Valley Buses,D512,Major Infrastructure Projects,Supplies and Services,"1,757.68",Mar-22
Slough Borough Council,803712,Thames Valley Transport Services LTD,F123,Schools,Supplies and Services,"83,228.50",Mar-22
Slough Borough Council,717,Thames Water Utilities Limited,J015,Housing Revenue Account,Premises,"1,860.54",Mar-22
Slough Borough Council,717,Thames Water Utilities Limited,J015,Housing Revenue Account,Premises,"1,729.49",Mar-22
Slough Borough Council,717,Thames Water Utilities Limited,J015,Housing Revenue Account,Premises,"1,197.36",Mar-22
Slough Borough Council,717,Thames Water Utilities Limited,P235,Capital,Capital Charges,"25,000.00",Mar-22
Slough Borough Council,803774,The Abbeyfield Maidenhead Society Ltd,M27C,Adult Social Care Operations,Supplies and Services,"3,000.00",Mar-22
Slough Borough Council,807775,The Dionysus Ensemble,F253,Schools,Agency Staff,"2,500.00",Mar-22
Slough Borough Council,807775,The Dionysus Ensemble,F253,Schools,Agency Staff,"2,500.00",Mar-22
Slough Borough Council,807775,The Dionysus Ensemble,F253,Schools,Agency Staff,"-2,500.00",Mar-22
Slough Borough Council,653,The Godolphin Junior Academy,E779,DSG - Schools,Supplies and Services,"11,835.00",Mar-22
Slough Borough Council,1385,The Langley Academy,E719,DSG - Schools,Supplies and Services,"22,916.67",Mar-22
Slough Borough Council,803300,The Langley Academy Primary,E469,DSG - Schools,Supplies and Services,"36,999.12",Mar-22
Slough Borough Council,806847,The Langley Heritage Primary Academy,E369,DSG - Schools,Supplies and Services,"43,983.39",Mar-22
Slough Borough Council,805400,The Leading Care Company,M41D,Adult Social Care Operations,Supplies and Services,"2,058.01",Mar-22
Slough Borough Council,805400,The Leading Care Company,M44C,Adult Social Care Operations,Supplies and Services,"1,078.22",Mar-22
Slough Borough Council,805400,The Leading Care Company,M44C,Adult Social Care Operations,Supplies and Services,"1,065.56",Mar-22
Slough Borough Council,805400,The Leading Care Company,M44C,Adult Social Care Operations,Supplies and Services,"1,146.35",Mar-22
Slough Borough Council,805400,The Leading Care Company,M44C,Adult Social Care Operations,Supplies and Services,827.36,Mar-22
Slough Borough Council,805400,The Leading Care Company,M44C,Adult Social Care Operations,Supplies and Services,805.29,Mar-22
Slough Borough Council,805400,The Leading Care Company,M44C,Adult Social Care Operations,Supplies and Services,"1,777.15",Mar-22
Slough Borough Council,805400,The Leading Care Company,M44C,Adult Social Care Operations,Supplies and Services,642.78,Mar-22
Slough Borough Council,805400,The Leading Care Company,M44C,Adult Social Care Operations,Supplies and Services,711.43,Mar-22
Slough Borough Council,805400,The Leading Care Company,M44C,Adult Social Care Operations,Supplies and Services,716.10,Mar-22
Slough Borough Council,805400,The Leading Care Company,M44C,Adult Social Care Operations,Supplies and Services,623.70,Mar-22
Slough Borough Council,805400,The Leading Care Company,M44D,Adult Social Care Operations,Supplies and Services,"3,800.16",Mar-22
Slough Borough Council,805400,The Leading Care Company,M44D,Adult Social Care Operations,Supplies and Services,"1,053.51",Mar-22
Slough Borough Council,805400,The Leading Care Company,M44D,Adult Social Care Operations,Supplies and Services,"5,112.72",Mar-22
Slough Borough Council,805400,The Leading Care Company,M44D,Adult Social Care Operations,Supplies and Services,"-1,212.72",Mar-22
Slough Borough Council,805400,The Leading Care Company,M44E,Adult Social Care Operations,Supplies and Services,"5,513.76",Mar-22
Slough Borough Council,805400,The Leading Care Company,M48C,Adult Social Care Operations,Supplies and Services,"3,800.16",Mar-22
Slough Borough Council,3883,The Maples Reading,M26E,Adult Social Care Operations,Supplies and Services,"11,556.88",Mar-22
Slough Borough Council,3883,The Maples Reading,M26E,Adult Social Care Operations,Supplies and Services,-882.52,Mar-22
Slough Borough Council,807439,The Pines,M27F,Adult Social Care Operations,Supplies and Services,"8,268.14",Mar-22
Slough Borough Council,807439,The Pines,M27F,Adult Social Care Operations,Supplies and Services,"8,268.14",Mar-22
Slough Borough Council,807439,The Pines,M27F,Adult Social Care Operations,Supplies and Services,"7,467.62",Mar-22
Slough Borough Council,807588,The Priory School,F462,DSG - High Needs Block,#N/A,"5,320.00",Mar-22
Slough Borough Council,807588,The Priory School,F462,DSG - High Needs Block,#N/A,"5,320.00",Mar-22
Slough Borough Council,807516,The Queen Anne Royal Free CE First School,F552,DSG - High Needs Block,Supplies and Services,"2,500.00",Mar-22
Slough Borough Council,807516,The Queen Anne Royal Free CE First School,F552,DSG - High Needs Block,Supplies and Services,"2,500.00",Mar-22
Slough Borough Council,2898,The Regard Partnership Ltd,M26E,Adult Social Care Operations,Supplies and Services,"6,107.75",Mar-22
Slough Borough Council,2898,The Regard Partnership Ltd,M26E,Adult Social Care Operations,Supplies and Services,"7,231.77",Mar-22
Slough Borough Council,2898,The Regard Partnership Ltd,M42E,Adult Social Care Operations,Supplies and Services,"5,033.74",Mar-22
Slough Borough Council,2898,The Regard Partnership Ltd,M42E,Adult Social Care Operations,Supplies and Services,"5,353.17",Mar-22
Slough Borough Council,2898,The Regard Partnership Ltd,M42E,Adult Social Care Operations,Supplies and Services,"5,129.35",Mar-22
Slough Borough Council,2898,The Regard Partnership Ltd,M42E,Adult Social Care Operations,Supplies and Services,"6,520.63",Mar-22
Slough Borough Council,2898,The Regard Partnership Ltd,M42E,Adult Social Care Operations,Supplies and Services,"6,743.47",Mar-22
Slough Borough Council,2898,The Regard Partnership Ltd,M42E,Adult Social Care Operations,Supplies and Services,"5,007.74",Mar-22
Slough Borough Council,2898,The Regard Partnership Ltd,M44D,Adult Social Care Operations,Supplies and Services,"4,519.14",Mar-22
Slough Borough Council,2898,The Regard Partnership Ltd,M44E,Adult Social Care Operations,Supplies and Services,"5,594.70",Mar-22
Slough Borough Council,808166,The Royal National College for the Blind,F462,DSG - High Needs Block,Supplies and Services,"17,689.34",Mar-22
Slough Borough Council,821,The Westgate School,E789,DSG - Schools,Supplies and Services,"43,331.66",Mar-22
Slough Borough Council,804686,Thistle Insurance Services Ltd,J400,Place Management,#N/A,"38,536.54",Mar-22
Slough Borough Council,807030,Thrive365 Ltd,F210,Communities and Leisure,TP-Other Bodies,"2,400.00",Mar-22
Slough Borough Council,803194,TMP Worldwide,B348,People,Indirect Employee Expenses,840.00,Mar-22
Slough Borough Council,803194,TMP Worldwide,B348,People,Indirect Employee Expenses,840.00,Mar-22
Slough Borough Council,803194,TMP Worldwide,B348,People,Supplies and Services,525.00,Mar-22
Slough Borough Council,2889,Tudor (UK) Ltd t/a Tudor Environmental,P220,Capital,Capital Charges,561.80,Mar-22
Slough Borough Council,807494,UNITED LIVING PROPERTY SERVICES,P577,Capital,Capital Charges,"52,468.85",Mar-22
Slough Borough Council,807494,UNITED LIVING PROPERTY SERVICES,P577,Capital,Capital Charges,"58,301.75",Mar-22
Slough Borough Council,3953,Upton Court Grammar School,E799,DSG - Schools,Supplies and Services,"4,000.00",Mar-22
Slough Borough Council,3579,Village Sensations,B421,Place Strategy & Infrastructure,Supplies and Services,"10,662.80",Mar-22
Slough Borough Council,1212,Virgin Media Ltd,B023,Finance & Commercial,#N/A,"3,433.85",Mar-22
Slough Borough Council,1212,Virgin Media Ltd,B023,Finance & Commercial,#N/A,"3,239.11",Mar-22
Slough Borough Council,2682,Voyage 1 Limited,M26E,Adult Social Care Operations,Supplies and Services,"8,400.91",Mar-22
Slough Borough Council,2682,Voyage 1 Limited,M26E,Adult Social Care Operations,Supplies and Services,"5,477.92",Mar-22
Slough Borough Council,2682,Voyage 1 Limited,M26E,Adult Social Care Operations,Supplies and Services,"5,054.19",Mar-22
Slough Borough Council,2682,Voyage 1 Limited,M26E,Adult Social Care Operations,Supplies and Services,"6,463.20",Mar-22
Slough Borough Council,2682,Voyage 1 Limited,M27F,Adult Social Care Operations,Supplies and Services,"5,016.97",Mar-22
Slough Borough Council,2682,Voyage 1 Limited,M26E,Adult Social Care Operations,Supplies and Services,"7,556.30",Mar-22
Slough Borough Council,2682,Voyage 1 Limited,M26E,Adult Social Care Operations,External Receipts,-595.40,Mar-22
Slough Borough Council,2682,Voyage 1 Limited,M26E,Adult Social Care Operations,External Receipts,-659.19,Mar-22
Slough Borough Council,2682,Voyage 1 Limited,M26E,Adult Social Care Operations,External Receipts,-687.27,Mar-22
Slough Borough Council,3436,Voyage Ltd,M26E,Adult Social Care Operations,Supplies and Services,"6,330.73",Mar-22
Slough Borough Council,3436,Voyage Ltd,M26E,Adult Social Care Operations,Supplies and Services,"3,575.98",Mar-22
Slough Borough Council,3436,Voyage Ltd,M42E,Adult Social Care Operations,Supplies and Services,"5,404.64",Mar-22
Slough Borough Council,3436,Voyage Ltd,M42E,Adult Social Care Operations,Supplies and Services,"4,324.84",Mar-22
Slough Borough Council,3436,Voyage Ltd,M42E,Adult Social Care Operations,Supplies and Services,"4,982.88",Mar-22
Slough Borough Council,3436,Voyage Ltd,M42E,Adult Social Care Operations,Supplies and Services,"5,282.84",Mar-22
Slough Borough Council,3436,Voyage Ltd,M42E,Adult Social Care Operations,Supplies and Services,"5,846.53",Mar-22
Slough Borough Council,3436,Voyage Ltd,M42E,Adult Social Care Operations,Supplies and Services,"4,630.84",Mar-22
Slough Borough Council,3436,Voyage Ltd,M42E,Adult Social Care Operations,Supplies and Services,"4,347.72",Mar-22
Slough Borough Council,3436,Voyage Ltd,M42E,Adult Social Care Operations,Supplies and Services,"5,724.92",Mar-22
Slough Borough Council,3436,Voyage Ltd,M42E,Adult Social Care Operations,Supplies and Services,"5,989.53",Mar-22
Slough Borough Council,774,West Berkshire County Council,A02L,Adult Social Care Operations,Supplies and Services,"1,660.16",Mar-22
Slough Borough Council,774,West Berkshire County Council,A02L,Adult Social Care Operations,Supplies and Services,"1,660.16",Mar-22
Slough Borough Council,774,West Berkshire County Council,A02L,Adult Social Care Operations,Supplies and Services,"1,660.16",Mar-22
Slough Borough Council,774,West Berkshire County Council,A02L,Adult Social Care Operations,Supplies and Services,"1,660.16",Mar-22
Slough Borough Council,774,West Berkshire County Council,A02L,Adult Social Care Operations,Supplies and Services,"1,660.16",Mar-22
Slough Borough Council,1649,Western House Primary School,E439,DSG - Schools,Supplies and Services,"17,040.00",Mar-22
Slough Borough Council,3628,White Leaf Care Ltd,M26E,Adult Social Care Operations,Supplies and Services,"4,198.28",Mar-22
Slough Borough Council,3628,White Leaf Care Ltd,M27C,Adult Social Care Operations,Supplies and Services,"7,985.60",Mar-22
Slough Borough Council,808062,Whitefriars Nursing & Residential Home,M26E,Adult Social Care Operations,Supplies and Services,"3,365.60",Mar-22
Slough Borough Council,804908,Whitestone Care,B298,Finance,Supplies and Services,705.93,Mar-22
Slough Borough Council,1753,Willow Primary School,E499,DSG - Schools,Supplies and Services,"27,008.67",Mar-22
Slough Borough Council,1475,Windowflowers Ltd,B421,Place Strategy & Infrastructure,Supplies and Services,"3,496.50",Mar-22
Slough Borough Council,807549,Windsar Care (UK) LLP,A06E,Adult Social Care Operations,Supplies and Services,"15,942.86",Mar-22
Slough Borough Council,807549,Windsar Care (UK) LLP,M15F,Adult Social Care Operations,Supplies and Services,"3,800.00",Mar-22
Slough Borough Council,807549,Windsar Care (UK) LLP,M15F,Adult Social Care Operations,Supplies and Services,"3,800.00",Mar-22
Slough Borough Council,807549,Windsar Care (UK) LLP,M18C,Adult Social Care Operations,Supplies and Services,"3,900.00",Mar-22
Slough Borough Council,807549,Windsar Care (UK) LLP,M18C,Adult Social Care Operations,Supplies and Services,"3,800.00",Mar-22
Slough Borough Council,807549,Windsar Care (UK) LLP,A06C,Adult Social Care Commissioning,Supplies and Services,"47,828.58",Mar-22
Slough Borough Council,804807,Windsar Care Centre Ltd,B298,Finance,Supplies and Services,"6,135.88",Mar-22
Slough Borough Council,804807,Windsar Care Centre Ltd,B324,Finance,Supplies and Services,"10,109.10",Mar-22
Slough Borough Council,804807,Windsar Care Centre Ltd,M15D,Adult Social Care Operations,Supplies and Services,"3,000.00",Mar-22
Slough Borough Council,804807,Windsar Care Centre Ltd,M15D,Adult Social Care Operations,Supplies and Services,"6,000.00",Mar-22
Slough Borough Council,804807,Windsar Care Centre Ltd,M15F,Adult Social Care Operations,Supplies and Services,"2,960.00",Mar-22
Slough Borough Council,804807,Windsar Care Centre Ltd,M17C,Adult Social Care Operations,Supplies and Services,"3,900.00",Mar-22
Slough Borough Council,804807,Windsar Care Centre Ltd,M17C,Adult Social Care Operations,Supplies and Services,"3,800.00",Mar-22
Slough Borough Council,804807,Windsar Care Centre Ltd,M18C,Adult Social Care Operations,Supplies and Services,"3,800.00",Mar-22
Slough Borough Council,804807,Windsar Care Centre Ltd,M18C,Adult Social Care Operations,Supplies and Services,"3,100.00",Mar-22
Slough Borough Council,804807,Windsar Care Centre Ltd,M18C,Adult Social Care Operations,Supplies and Services,"3,000.00",Mar-22
Slough Borough Council,804807,Windsar Care Centre Ltd,M18C,Adult Social Care Operations,Supplies and Services,"3,600.00",Mar-22
Slough Borough Council,804807,Windsar Care Centre Ltd,M18C,Adult Social Care Operations,Supplies and Services,"3,900.00",Mar-22
Slough Borough Council,804807,Windsar Care Centre Ltd,M18C,Adult Social Care Operations,Supplies and Services,"3,900.00",Mar-22
Slough Borough Council,804807,Windsar Care Centre Ltd,M18C,Adult Social Care Operations,Supplies and Services,"3,900.00",Mar-22
Slough Borough Council,804807,Windsar Care Centre Ltd,M18C,Adult Social Care Operations,Supplies and Services,"3,900.00",Mar-22
Slough Borough Council,804807,Windsar Care Centre Ltd,M18C,Adult Social Care Operations,Supplies and Services,"4,800.00",Mar-22
Slough Borough Council,804807,Windsar Care Centre Ltd,M18C,Adult Social Care Operations,Supplies and Services,"3,900.00",Mar-22
Slough Borough Council,804807,Windsar Care Centre Ltd,M18C,Adult Social Care Operations,Supplies and Services,"3,600.00",Mar-22
Slough Borough Council,804807,Windsar Care Centre Ltd,M27C,Adult Social Care Operations,Supplies and Services,"3,400.00",Mar-22
Slough Borough Council,804807,Windsar Care Centre Ltd,M28C,Adult Social Care Operations,Supplies and Services,"4,178.57",Mar-22
Slough Borough Council,804807,Windsar Care Centre Ltd,M28C,Adult Social Care Operations,Supplies and Services,"4,317.86",Mar-22
Slough Borough Council,804807,Windsar Care Centre Ltd,M28C,Adult Social Care Operations,Supplies and Services,"4,178.57",Mar-22
Slough Borough Council,804807,Windsar Care Centre Ltd,M28C,Adult Social Care Operations,Supplies and Services,"4,317.86",Mar-22
Slough Borough Council,804807,Windsar Care Centre Ltd,M28C,Adult Social Care Operations,Supplies and Services,"-4,039.29",Mar-22
Slough Borough Council,804807,Windsar Care Centre Ltd,M28C,Adult Social Care Operations,Supplies and Services,"4,178.57",Mar-22
Slough Borough Council,804807,Windsar Care Centre Ltd,M28C,Adult Social Care Operations,Supplies and Services,"3,200.00",Mar-22
Slough Borough Council,804807,Windsar Care Centre Ltd,M29C,Adult Social Care Operations,Supplies and Services,"1,334.28",Mar-22
Slough Borough Council,804807,Windsar Care Centre Ltd,M29C,Adult Social Care Operations,Supplies and Services,"4,317.86",Mar-22
Slough Borough Council,804807,Windsar Care Centre Ltd,M29C,Adult Social Care Operations,Supplies and Services,996.43,Mar-22
Slough Borough Council,3604,Windsar Care Ltd,M15F,Adult Social Care Operations,Supplies and Services,"2,400.00",Mar-22
Slough Borough Council,3604,Windsar Care Ltd,M15F,Adult Social Care Operations,Supplies and Services,"3,100.00",Mar-22
Slough Borough Council,3604,Windsar Care Ltd,M15F,Adult Social Care Operations,Supplies and Services,"3,800.00",Mar-22
Slough Borough Council,3604,Windsar Care Ltd,M15F,Adult Social Care Operations,Supplies and Services,"3,600.00",Mar-22
Slough Borough Council,3604,Windsar Care Ltd,M17C,Adult Social Care Operations,Supplies and Services,"3,000.00",Mar-22
Slough Borough Council,3604,Windsar Care Ltd,M18C,Adult Social Care Operations,Supplies and Services,"3,100.00",Mar-22
Slough Borough Council,3604,Windsar Care Ltd,M18C,Adult Social Care Operations,Supplies and Services,"3,200.00",Mar-22
Slough Borough Council,3604,Windsar Care Ltd,M18C,Adult Social Care Operations,Supplies and Services,"3,500.00",Mar-22
Slough Borough Council,3604,Windsar Care Ltd,M25C,Adult Social Care Operations,Supplies and Services,"1,942.86",Mar-22
Slough Borough Council,3604,Windsar Care Ltd,M25C,Adult Social Care Operations,Supplies and Services,"3,600.00",Mar-22
Slough Borough Council,3604,Windsar Care Ltd,M25C,Adult Social Care Operations,Supplies and Services,"3,000.00",Mar-22
Slough Borough Council,3604,Windsar Care Ltd,M25D,Adult Social Care Operations,Supplies and Services,"3,900.00",Mar-22
Slough Borough Council,3604,Windsar Care Ltd,M26E,Adult Social Care Operations,Supplies and Services,"3,000.00",Mar-22
Slough Borough Council,3604,Windsar Care Ltd,M27C,Adult Social Care Operations,Supplies and Services,"3,600.00",Mar-22
Slough Borough Council,806641,Windsor Care Limited,M17C,Adult Social Care Operations,Supplies and Services,"3,264.32",Mar-22
Slough Borough Council,806641,Windsor Care Limited,M17C,Adult Social Care Operations,Supplies and Services,"3,614.07",Mar-22
Slough Borough Council,804667,Windsor Clinical & Home Care Services Grp Ltd,M15F,Adult Social Care Operations,Supplies and Services,"4,714.29",Mar-22
Slough Borough Council,804667,Windsor Clinical & Home Care Services Grp Ltd,M15F,Adult Social Care Operations,Supplies and Services,628.57,Mar-22
Slough Borough Council,804667,Windsor Clinical & Home Care Services Grp Ltd,M15F,Adult Social Care Operations,Supplies and Services,"4,714.29",Mar-22
Slough Borough Council,804667,Windsor Clinical & Home Care Services Grp Ltd,M15F,Adult Social Care Operations,Supplies and Services,"4,871.43",Mar-22
Slough Borough Council,804667,Windsor Clinical & Home Care Services Grp Ltd,M15F,Adult Social Care Operations,Supplies and Services,"4,871.43",Mar-22
Slough Borough Council,804667,Windsor Clinical & Home Care Services Grp Ltd,M15F,Adult Social Care Operations,Supplies and Services,"4,714.29",Mar-22
Slough Borough Council,804667,Windsor Clinical & Home Care Services Grp Ltd,M15F,Adult Social Care Operations,Supplies and Services,"4,871.43",Mar-22
Slough Borough Council,804667,Windsor Clinical & Home Care Services Grp Ltd,M15F,Adult Social Care Operations,Supplies and Services,"1,100.00",Mar-22
Slough Borough Council,804667,Windsor Clinical & Home Care Services Grp Ltd,M17C,Adult Social Care Operations,Supplies and Services,"2,796.43",Mar-22
Slough Borough Council,804667,Windsor Clinical & Home Care Services Grp Ltd,M17C,Adult Social Care Operations,Supplies and Services,"2,889.64",Mar-22
Slough Borough Council,804667,Windsor Clinical & Home Care Services Grp Ltd,M17C,Adult Social Care Operations,Supplies and Services,"2,889.64",Mar-22
Slough Borough Council,804667,Windsor Clinical & Home Care Services Grp Ltd,M17C,Adult Social Care Operations,Supplies and Services,"2,889.64",Mar-22
Slough Borough Council,804667,Windsor Clinical & Home Care Services Grp Ltd,M17C,Adult Social Care Operations,Supplies and Services,"2,796.43",Mar-22
Slough Borough Council,804667,Windsor Clinical & Home Care Services Grp Ltd,M17C,Adult Social Care Operations,Supplies and Services,"2,889.64",Mar-22
Slough Borough Council,804667,Windsor Clinical & Home Care Services Grp Ltd,M17C,Adult Social Care Operations,Supplies and Services,"2,796.43",Mar-22
Slough Borough Council,804667,Windsor Clinical & Home Care Services Grp Ltd,M17C,Adult Social Care Operations,Supplies and Services,"2,889.64",Mar-22
Slough Borough Council,804667,Windsor Clinical & Home Care Services Grp Ltd,M17C,Adult Social Care Operations,Supplies and Services,"2,610.00",Mar-22
Slough Borough Council,805099,Windsor Forest Colleges Group,F558,DSG - High Needs Block,Supplies and Services,"43,633.23",Mar-22
Slough Borough Council,805099,Windsor Forest Colleges Group,F558,DSG - High Needs Block,Supplies and Services,"42,043.76",Mar-22
Slough Borough Council,807103,Witherslack Group,F462,DSG - High Needs Block,Supplies and Services,"27,884.00",Mar-22
Slough Borough Council,807103,Witherslack Group,F462,DSG - High Needs Block,Supplies and Services,"33,462.00",Mar-22
Slough Borough Council,807103,Witherslack Group,F462,DSG - High Needs Block,Supplies and Services,"24,659.66",Mar-22
Slough Borough Council,807103,Witherslack Group,F462,DSG - High Needs Block,Supplies and Services,"-26,417.37",Mar-22
Slough Borough Council,807103,Witherslack Group,F462,DSG - High Needs Block,Supplies and Services,"24,659.66",Mar-22
Slough Borough Council,748,YMCA St Paul�s Group,H211,Adult Social Care Operations,Supplies and Services,"8,531.29",Mar-22
Slough Borough Council,1272,Yotta Limited,D610,Direct Service Organisation (DSO),Supplies and Services,"10,063.07",Mar-22
Slough Borough Council,1272,Yotta Limited,D620,Direct Service Organisation (DSO),Supplies and Services,"14,742.67",Mar-22
